BODY,BODY NAME,Service Label,SERVICE CODE,ORGANISATIONAL UNIT,ORGANISATIONAL UNIT CODE,EXPENDITURE CATEGORY,EXPENDITURE CODE,DATE (POSTING DATE),TRANSACTION NUMBER,AMOUNT,SUPPLIER NAME,SUPPLIER ID
WARRINGTON BOROUGH COUNCIL,http://statistics.data.gov.uk/id/local-authority/00EU,Environment & Regeneration,ER0,Postal & Courier Services,52130,Postages,450000,08-Nov-12,1900103147,796,Neopost Finance Limited,100694
WARRINGTON BOROUGH COUNCIL,http://statistics.data.gov.uk/id/local-authority/00EU,Assistant Chief Executive,CEX,Legal Services,11200,Paymt Of Prof.Subs.,490150,01-Nov-12,1900102722,812,CILEX,100720
WARRINGTON BOROUGH COUNCIL,http://statistics.data.gov.uk/id/local-authority/00EU,Neighbourhood & Community Services,NCS,Care Purchase - Mental Health Team 1,54230,CP-Domicil.External,440950,01-Nov-12,1900102772,"3,449.00",Independent Living Alliance,100726
WARRINGTON BOROUGH COUNCIL,http://statistics.data.gov.uk/id/local-authority/00EU,Neighbourhood & Community Services,NCS,Care Purchase - Mental Health Team 3,54250,CP-Domicil.External,440950,27-Nov-12,1900105242,"2,538.00",Independent Living Alliance,100726
WARRINGTON BOROUGH COUNCIL,http://statistics.data.gov.uk/id/local-authority/00EU,Neighbourhood & Community Services,NCS,Supporting People Grant Payments,53260,People with Mental Health Problems,535200,30-Nov-12,1900105563,"7,628.00",Redacted Personal Data,100735
WARRINGTON BOROUGH COUNCIL,http://statistics.data.gov.uk/id/local-authority/00EU,Assistant Chief Executive,CEX,Coroners Service,11100,Post Mortem Fees-Rep,440250,20-Nov-12,1900104855,978,Dr H Al Rawi,100745
WARRINGTON BOROUGH COUNCIL,http://statistics.data.gov.uk/id/local-authority/00EU,Assistant Chief Executive,CEX,Debtors,10380,Bailiff Fees,441400,13-Nov-12,1900103533,701,Rossendales Cb Ltd,100762
WARRINGTON BOROUGH COUNCIL,http://statistics.data.gov.uk/id/local-authority/00EU,Assistant Chief Executive,CEX,Debtors,10380,Bailiff Fees,441400,14-Nov-12,1900103557,534,Rossendales Cb Ltd,100762
WARRINGTON BOROUGH COUNCIL,http://statistics.data.gov.uk/id/local-authority/00EU,Assistant Chief Executive,CEX,Coroners Service,11100,Post Mortem Fees-Rep,440250,20-Nov-12,1900104360,"2,068.00",Dr D Butterworth,100765
WARRINGTON BOROUGH COUNCIL,http://statistics.data.gov.uk/id/local-authority/00EU,Neighbourhood & Community Services,NCS,Care Purchase - PD,54440,Direct Payments,552000,13-Nov-12,1900103619,851,Redacted Personal Data,100766
WARRINGTON BOROUGH COUNCIL,http://statistics.data.gov.uk/id/local-authority/00EU,Environment & Regeneration,ER0,ICT & Business Improvement,23020,ICT Comms - Line Rental,450200,22-Nov-12,1900105001,547,Cable & Wireless Communications,100023
WARRINGTON BOROUGH COUNCIL,http://statistics.data.gov.uk/id/local-authority/00EU,Environment & Regeneration,ER0,ICT & Business Improvement,23020,ICT Comms - Line Usage,450300,22-Nov-12,1900105001,"3,850.00",Cable & Wireless Communications,100023
WARRINGTON BOROUGH COUNCIL,http://statistics.data.gov.uk/id/local-authority/00EU,Neighbourhood & Community Services,NCS,Care Purchase - Learning Disability,54450,CP Adult Placement,443450,28-Nov-12,1900105357,"1,496.00",Redacted Personal Data,100044
WARRINGTON BOROUGH COUNCIL,http://statistics.data.gov.uk/id/local-authority/00EU,Neighbourhood & Community Services,NCS,Care Purchase - PD,54440,Direct Payments,552000,13-Nov-12,1900103605,"2,768.00",Redacted Personal Data,100049
WARRINGTON BOROUGH COUNCIL,http://statistics.data.gov.uk/id/local-authority/00EU,Neighbourhood & Community Services,NCS,Care Purchase - PD,54440,CP Adult Placement,443450,28-Nov-12,1900105360,"2,991.00",Redacted Personal Data,100052
WARRINGTON BOROUGH COUNCIL,http://statistics.data.gov.uk/id/local-authority/00EU,Neighbourhood & Community Services,NCS,Care Purchase Budget,54490,CP ExternalOther Exp,440800,07-Nov-12,1900103126,715,Heathfield Residental Home,100059
WARRINGTON BOROUGH COUNCIL,http://statistics.data.gov.uk/id/local-authority/00EU,Neighbourhood & Community Services,NCS,Care Purchase Budget,54490,CP ExternalOther Exp,440800,13-Nov-12,1900103493,"18,000.00",Heathfield Residental Home,100059
WARRINGTON BOROUGH COUNCIL,http://statistics.data.gov.uk/id/local-authority/00EU,Assistant Chief Executive,CEX,Coroners Service,11100,Reimbursement for Deputy Coroner,440400,20-Nov-12,1900104362,"4,754.00",Dr J E Napier,100061
WARRINGTON BOROUGH COUNCIL,http://statistics.data.gov.uk/id/local-authority/00EU,Assistant Chief Executive,CEX,Coroners Service,11100,Post Mortem Fees-Rep,440250,26-Nov-12,1900105162,"2,384.00",Dr Gk Kokai,100079
WARRINGTON BOROUGH COUNCIL,http://statistics.data.gov.uk/id/local-authority/00EU,Assistant Chief Executive,CEX,Coroners Service,11100,Post Mortem Fees-Rep,440250,06-Nov-12,1900103025,694,Dr C M Manson,100080
WARRINGTON BOROUGH COUNCIL,http://statistics.data.gov.uk/id/local-authority/00EU,Assistant Chief Executive,CEX,Coroners Service,11100,Post Mortem Fees-Rep,440250,21-Nov-12,1900104898,557,Dr A Armour,100081
WARRINGTON BOROUGH COUNCIL,http://statistics.data.gov.uk/id/local-authority/00EU,Assistant Chief Executive,CEX,Coroners Service,11100,Post Mortem Fees-Rep,440250,30-Nov-12,1900105576,596,Dr A Armour,100081
WARRINGTON BOROUGH COUNCIL,http://statistics.data.gov.uk/id/local-authority/00EU,Neighbourhood & Community Services,NCS,Care Purchase - Mental Health Team 2,54240,CP-LongStayExternal,441150,16-Nov-12,1900104278,"2,368.00",Phoenix House,100085
WARRINGTON BOROUGH COUNCIL,http://statistics.data.gov.uk/id/local-authority/00EU,Neighbourhood & Community Services,NCS,Care Purchase - Mental Health Team 2,54240,CP-LongStayExternal,441150,16-Nov-12,1900104279,"2,537.00",Phoenix House,100085
WARRINGTON BOROUGH COUNCIL,http://statistics.data.gov.uk/id/local-authority/00EU,Neighbourhood & Community Services,NCS,Care Purchase - Mental Health Team 2,54240,CP-LongStayExternal,441150,16-Nov-12,1900104280,"2,706.00",Phoenix House,100085
WARRINGTON BOROUGH COUNCIL,http://statistics.data.gov.uk/id/local-authority/00EU,Neighbourhood & Community Services,NCS,Woolston Leisure Centre           (new h,51007,Operating Lease Repayment,650350,22-Nov-12,1900105035,"33,211.00",De Lage Landen Leasing Ltd,100097
WARRINGTON BOROUGH COUNCIL,http://statistics.data.gov.uk/id/local-authority/00EU,Neighbourhood & Community Services,NCS,Care Purchase - ABI,54260,CP-LongStayExternal,441150,21-Nov-12,1900104887,"6,428.00",Milbury Care Services Limited,100099
WARRINGTON BOROUGH COUNCIL,http://statistics.data.gov.uk/id/local-authority/00EU,Neighbourhood & Community Services,NCS,Care Purchase - Learning Disability,54450,CP-LongStayExternal,441150,21-Nov-12,1900104888,"8,418.00",Milbury Care Services Limited,100099
WARRINGTON BOROUGH COUNCIL,http://statistics.data.gov.uk/id/local-authority/00EU,Neighbourhood & Community Services,NCS,Care Purchase - OP & OT Central,54420,CP-LongStayExternal,441150,21-Nov-12,1900104890,"5,800.00",Milbury Care Services Limited,100099
WARRINGTON BOROUGH COUNCIL,http://statistics.data.gov.uk/id/local-authority/00EU,Neighbourhood & Community Services,NCS,Care Purchase - Mental Health Team 3,54250,CP-LongStayExternal,441150,21-Nov-12,1900104892,"7,085.00",Milbury Care Services Limited,100099
WARRINGTON BOROUGH COUNCIL,http://statistics.data.gov.uk/id/local-authority/00EU,Neighbourhood & Community Services,NCS,Care Purchase - PD,54440,CP-Nursing Care-External,441200,27-Nov-12,1900105308,"5,360.00",Milbury Care Services Limited,100099
WARRINGTON BOROUGH COUNCIL,http://statistics.data.gov.uk/id/local-authority/00EU,Neighbourhood & Community Services,NCS,Care Purchase - Learning Disability,54450,Direct Payments,552000,13-Nov-12,1900103607,717,Redacted Personal Data,100270
WARRINGTON BOROUGH COUNCIL,http://statistics.data.gov.uk/id/local-authority/00EU,Neighbourhood & Community Services,NCS,Care Purchase -OP & OT East,54430,CP-LongStayExternal,441150,06-Nov-12,1900102997,"1,752.00",The Nugent Care Society,100277
WARRINGTON BOROUGH COUNCIL,http://statistics.data.gov.uk/id/local-authority/00EU,Neighbourhood & Community Services,NCS,Care Purchase -OP & OT East,54430,CP-LongStayExternal,441150,06-Nov-12,1900102998,"1,392.00",The Nugent Care Society,100277
WARRINGTON BOROUGH COUNCIL,http://statistics.data.gov.uk/id/local-authority/00EU,Neighbourhood & Community Services,NCS,Care Purchase -OP & OT East,54430,CP-LongStayExternal,441150,06-Nov-12,1900102999,"1,392.00",The Nugent Care Society,100277
WARRINGTON BOROUGH COUNCIL,http://statistics.data.gov.uk/id/local-authority/00EU,Neighbourhood & Community Services,NCS,Service Manager - OP & OT,54300,Training,190150,16-Nov-12,1900104293,"4,650.00",Personal Care Consultants,100279
WARRINGTON BOROUGH COUNCIL,http://statistics.data.gov.uk/id/local-authority/00EU,Children & Young People,CHL,EIG Funding - Youth Cafe,31536,Electricity,210000,08-Nov-12,1900103153,612,Southern Electric Plc,100307
WARRINGTON BOROUGH COUNCIL,http://statistics.data.gov.uk/id/local-authority/00EU,Neighbourhood & Community Services,NCS,Care Purchase Budget,54490,CP ExternalOther Exp,440800,06-Nov-12,1900102992,"4,116.00",European Care (Uk) Ltd,100320
WARRINGTON BOROUGH COUNCIL,http://statistics.data.gov.uk/id/local-authority/00EU,Neighbourhood & Community Services,NCS,Care Purchase Budget,54490,CP ExternalOther Exp,440800,13-Nov-12,1900103490,"40,000.00",European Care (Uk) Ltd,100320
WARRINGTON BOROUGH COUNCIL,http://statistics.data.gov.uk/id/local-authority/00EU,Neighbourhood & Community Services,NCS,Care Purchase - PD,54440,Direct Payments,552000,13-Nov-12,1900103608,"1,797.00",Redacted Personal Data,100338
WARRINGTON BOROUGH COUNCIL,http://statistics.data.gov.uk/id/local-authority/00EU,Neighbourhood & Community Services,NCS,Care Purchase - PD,54440,Direct Payments,552000,13-Nov-12,1900103609,"1,000.00",Redacted Personal Data,100340
WARRINGTON BOROUGH COUNCIL,http://statistics.data.gov.uk/id/local-authority/00EU,Assistant Chief Executive,CEX,Coroners Service,11100,Post Mortem Fees-Rep,440250,20-Nov-12,1900104361,"1,138.00",Dr B.N.A Hamid,100354
WARRINGTON BOROUGH COUNCIL,http://statistics.data.gov.uk/id/local-authority/00EU,Neighbourhood & Community Services,NCS,Care Purchase - PD,54440,CP-Nursing Care-External,441200,27-Nov-12,1900105288,"2,780.00",Leonard Cheshire Disability,100370
WARRINGTON BOROUGH COUNCIL,http://statistics.data.gov.uk/id/local-authority/00EU,Environment & Regeneration,ER0,Building Control,43410,Removal Bodies & Exc,440350,07-Nov-12,1900103093,600,Swift Data Pro Software Ltd,100376
WARRINGTON BOROUGH COUNCIL,http://statistics.data.gov.uk/id/local-authority/00EU,Environment & Regeneration,ER0,Development Control,43430,Removal Bodies & Exc,440350,07-Nov-12,1900103093,600,Swift Data Pro Software Ltd,100376
WARRINGTON BOROUGH COUNCIL,http://statistics.data.gov.uk/id/local-authority/00EU,Children & Young People,CHL,Agency Placements,30904,CP ExternalOther Exp,440800,09-Nov-12,1900103301,"1,700.00",Keys Child Care Ltd,100391
WARRINGTON BOROUGH COUNCIL,http://statistics.data.gov.uk/id/local-authority/00EU,Assistant Chief Executive,CEX,Coroners Service,11100,Post Mortem Fees-Rep,440250,20-Nov-12,1900104854,527,Dr J Krajacevic,100409
WARRINGTON BOROUGH COUNCIL,http://statistics.data.gov.uk/id/local-authority/00EU,Neighbourhood & Community Services,NCS,Care Purchase - Learning Disability,54450,CP-Nursing Care-External,441200,21-Nov-12,1900104904,"2,436.00",Chadderton Total-Care Unit Ltd,100425
WARRINGTON BOROUGH COUNCIL,http://statistics.data.gov.uk/id/local-authority/00EU,Assistant Chief Executive,CEX,Coroners Service,11100,Post Mortem Fees-Rep,440250,20-Nov-12,1900104350,"1,302.00",Dr J.S Stafford,100426
WARRINGTON BOROUGH COUNCIL,http://statistics.data.gov.uk/id/local-authority/00EU,Neighbourhood & Community Services,NCS,Care Purchase - Learning Disability,54450,Direct Payments,552000,13-Nov-12,1900103611,720,Redacted Personal Data,100452
WARRINGTON BOROUGH COUNCIL,http://statistics.data.gov.uk/id/local-authority/00EU,Neighbourhood & Community Services,NCS,Care Purchase - PD,54440,Direct Payments,552000,13-Nov-12,1900103612,"1,200.00",Redacted Personal Data,100472
WARRINGTON BOROUGH COUNCIL,http://statistics.data.gov.uk/id/local-authority/00EU,Environment & Regeneration,ER0,Bus Interchange,44460,Non BMP General Repairs,200050,29-Nov-12,1900105447,"4,509.00",Tarmac Central Limited,100489
WARRINGTON BOROUGH COUNCIL,http://statistics.data.gov.uk/id/local-authority/00EU,Neighbourhood & Community Services,NCS,Care Purchase Budget,54490,CP - Cont Care - External,441350,13-Nov-12,1900103469,568,The Extracare Charitable Trust,100497
WARRINGTON BOROUGH COUNCIL,http://statistics.data.gov.uk/id/local-authority/00EU,Neighbourhood & Community Services,NCS,Care Purchase Budget,54490,CP - Cont Care - External,441350,13-Nov-12,1900103470,568,The Extracare Charitable Trust,100497
WARRINGTON BOROUGH COUNCIL,http://statistics.data.gov.uk/id/local-authority/00EU,Neighbourhood & Community Services,NCS,Care Purchase - PD,54440,Direct Payments,552000,13-Nov-12,1900103614,737,Redacted Personal Data,100508
WARRINGTON BOROUGH COUNCIL,http://statistics.data.gov.uk/id/local-authority/00EU,Assistant Chief Executive,CEX,Debtors,10380,External Printing,430100,14-Nov-12,1900104131,635,Vertex Data Science,100530
WARRINGTON BOROUGH COUNCIL,http://statistics.data.gov.uk/id/local-authority/00EU,Assistant Chief Executive,CEX,Council Tax & Recovery,10320,External Printing,430100,14-Nov-12,1900104131,657,Vertex Data Science,100530
WARRINGTON BOROUGH COUNCIL,http://statistics.data.gov.uk/id/local-authority/00EU,Assistant Chief Executive,CEX,Business Support Centre,52120,External Printing,430100,14-Nov-12,1900104131,"8,615.00",Vertex Data Science,100530
WARRINGTON BOROUGH COUNCIL,http://statistics.data.gov.uk/id/local-authority/00EU,Environment & Regeneration,ER0,New Town House,43119,Non BMP General Repairs,200050,30-Nov-12,1900105490,"5,806.00",Adt Fire And Security Plc,100549
WARRINGTON BOROUGH COUNCIL,http://statistics.data.gov.uk/id/local-authority/00EU,Environment & Regeneration,ER0,Estates & Valuation,43520,Agency Supply - GF,180000,07-Nov-12,1900103099,546,Anderselite,100563
WARRINGTON BOROUGH COUNCIL,http://statistics.data.gov.uk/id/local-authority/00EU,Environment & Regeneration,ER0,Estates & Valuation,43520,Agency Supply - GF,180000,07-Nov-12,1900103102,526,Anderselite,100563
WARRINGTON BOROUGH COUNCIL,http://statistics.data.gov.uk/id/local-authority/00EU,Assistant Chief Executive,CEX,Coroners Service,11100,Post Mortem Fees-Rep,440250,20-Nov-12,1900104838,"1,656.00",Dr N Alash,100579
WARRINGTON BOROUGH COUNCIL,http://statistics.data.gov.uk/id/local-authority/00EU,Neighbourhood & Community Services,NCS,Care Purchase - Learning Disability,54450,CP-LongStayExternal,441150,21-Nov-12,1900104915,"2,797.00",Redacted Personal Data,100583
WARRINGTON BOROUGH COUNCIL,http://statistics.data.gov.uk/id/local-authority/00EU,Children & Young People,CYP,Primary,81001,Furniture & Fittings,400150,28-Nov-12,1900105425,"7,230.00",Southerns Office Interiors,100604
WARRINGTON BOROUGH COUNCIL,http://statistics.data.gov.uk/id/local-authority/00EU,Neighbourhood & Community Services,NCS,Care Purchase - Learning Disability,54450,Direct Payments,552000,13-Nov-12,1900103615,"1,120.00",Redacted Personal Data,100607
WARRINGTON BOROUGH COUNCIL,http://statistics.data.gov.uk/id/local-authority/00EU,Neighbourhood & Community Services,NCS,Care Purchase - OP & OT West,54470,CP-LongStayExternal,441150,01-Nov-12,1900102767,"1,496.00",Four Seasons Health Care,100629
WARRINGTON BOROUGH COUNCIL,http://statistics.data.gov.uk/id/local-authority/00EU,Neighbourhood & Community Services,NCS,Care Purchase - PD,54440,Direct Payments,552000,13-Nov-12,1900103617,"1,907.00",Redacted Personal Data,100666
WARRINGTON BOROUGH COUNCIL,http://statistics.data.gov.uk/id/local-authority/00EU,Neighbourhood & Community Services,NCS,Care Purchase - PD,54440,Direct Payments,552000,13-Nov-12,1900103618,"1,778.00",Redacted Personal Data,100667
WARRINGTON BOROUGH COUNCIL,http://statistics.data.gov.uk/id/local-authority/00EU,Neighbourhood & Community Services,NCS,Care Purchase - PD,54440,Direct Payments,552000,06-Nov-12,1900103073,"2,906.00",Redacted Personal Data,100678
WARRINGTON BOROUGH COUNCIL,http://statistics.data.gov.uk/id/local-authority/00EU,Neighbourhood & Community Services,NCS,Care Purchase - Learning Disability,54450,CP ExternalOther Exp,440800,16-Nov-12,1900104236,972,Frontis Homes Ltd,100795
WARRINGTON BOROUGH COUNCIL,http://statistics.data.gov.uk/id/local-authority/00EU,Neighbourhood & Community Services,NCS,Care Purchase - Learning Disability,54450,CP ExternalOther Exp,440800,16-Nov-12,1900104237,957,Frontis Homes Ltd,100795
WARRINGTON BOROUGH COUNCIL,http://statistics.data.gov.uk/id/local-authority/00EU,Neighbourhood & Community Services,NCS,Care Purchase - OP & OT Central,54420,CP-Domicil.External,440950,01-Nov-12,1900102739,720,Allied Healthcare Group Ltd,100796
WARRINGTON BOROUGH COUNCIL,http://statistics.data.gov.uk/id/local-authority/00EU,Neighbourhood & Community Services,NCS,Care Purchase -OP & OT East,54430,CP-Domicil.External,440950,01-Nov-12,1900102739,"1,062.00",Allied Healthcare Group Ltd,100796
WARRINGTON BOROUGH COUNCIL,http://statistics.data.gov.uk/id/local-authority/00EU,Neighbourhood & Community Services,NCS,Care Purchase - OP & OT Central,54420,CP-Domicil.External,440950,07-Nov-12,1900103121,717,Allied Healthcare Group Ltd,100796
WARRINGTON BOROUGH COUNCIL,http://statistics.data.gov.uk/id/local-authority/00EU,Neighbourhood & Community Services,NCS,Care Purchase -OP & OT East,54430,CP-Domicil.External,440950,07-Nov-12,1900103121,"1,070.00",Allied Healthcare Group Ltd,100796
WARRINGTON BOROUGH COUNCIL,http://statistics.data.gov.uk/id/local-authority/00EU,Neighbourhood & Community Services,NCS,Care Purchase - OP & OT Central,54420,CP-Domicil.External,440950,13-Nov-12,1900103447,705,Allied Healthcare Group Ltd,100796
WARRINGTON BOROUGH COUNCIL,http://statistics.data.gov.uk/id/local-authority/00EU,Neighbourhood & Community Services,NCS,Care Purchase -OP & OT East,54430,CP-Domicil.External,440950,13-Nov-12,1900103447,"1,007.00",Allied Healthcare Group Ltd,100796
WARRINGTON BOROUGH COUNCIL,http://statistics.data.gov.uk/id/local-authority/00EU,Neighbourhood & Community Services,NCS,Care Purchase - PD,54440,CP-Domicil.External,440950,13-Nov-12,1900103495,569,Allied Healthcare Group Ltd,100796
WARRINGTON BOROUGH COUNCIL,http://statistics.data.gov.uk/id/local-authority/00EU,Neighbourhood & Community Services,NCS,Care Purchase - PD,54440,CP-Domicil.External,440950,13-Nov-12,1900103497,569,Allied Healthcare Group Ltd,100796
WARRINGTON BOROUGH COUNCIL,http://statistics.data.gov.uk/id/local-authority/00EU,Neighbourhood & Community Services,NCS,Care Purchase - PD,54440,Supporting People - External,441250,13-Nov-12,1900103498,718,Allied Healthcare Group Ltd,100796
WARRINGTON BOROUGH COUNCIL,http://statistics.data.gov.uk/id/local-authority/00EU,Neighbourhood & Community Services,NCS,Care Purchase - PD,54440,CP-Domicil.External,440950,13-Nov-12,1900103498,"4,258.00",Allied Healthcare Group Ltd,100796
WARRINGTON BOROUGH COUNCIL,http://statistics.data.gov.uk/id/local-authority/00EU,Neighbourhood & Community Services,NCS,Care Purchase - OP & OT Central,54420,CP-Domicil.External,440950,23-Nov-12,1900105056,935,Allied Healthcare Group Ltd,100796
WARRINGTON BOROUGH COUNCIL,http://statistics.data.gov.uk/id/local-authority/00EU,Neighbourhood & Community Services,NCS,Care Purchase -OP & OT East,54430,CP-Domicil.External,440950,23-Nov-12,1900105056,"1,004.00",Allied Healthcare Group Ltd,100796
WARRINGTON BOROUGH COUNCIL,http://statistics.data.gov.uk/id/local-authority/00EU,Neighbourhood & Community Services,NCS,Care Purchase -OP & OT East,54430,CP-Domicil.External,440950,27-Nov-12,1900105254,916,Allied Healthcare Group Ltd,100796
WARRINGTON BOROUGH COUNCIL,http://statistics.data.gov.uk/id/local-authority/00EU,Neighbourhood & Community Services,NCS,Care Purchase - OP & OT Central,54420,CP-Domicil.External,440950,27-Nov-12,1900105254,972,Allied Healthcare Group Ltd,100796
WARRINGTON BOROUGH COUNCIL,http://statistics.data.gov.uk/id/local-authority/00EU,Neighbourhood & Community Services,NCS,Care Purchase - PD,54440,Direct Payments,552000,13-Nov-12,1900103621,"3,059.00",Redacted Personal Data,100879
WARRINGTON BOROUGH COUNCIL,http://statistics.data.gov.uk/id/local-authority/00EU,Neighbourhood & Community Services,NCS,Care Purchase - PD,54440,Direct Payments,552000,13-Nov-12,1900103622,"1,160.00",Redacted Personal Data,100890
WARRINGTON BOROUGH COUNCIL,http://statistics.data.gov.uk/id/local-authority/00EU,Neighbourhood & Community Services,NCS,Care Purchase - OP & OT West,54470,CP-LongStayExternal,441150,21-Nov-12,1900104863,"3,496.00",Linear Park (Housing With Care),100897
WARRINGTON BOROUGH COUNCIL,http://statistics.data.gov.uk/id/local-authority/00EU,Children & Young People,CYP,Primary,81001,ICT Comms - Equipment Purchase,450100,15-Nov-12,1900104164,"2,214.00",Edac Solutions North West,100899
WARRINGTON BOROUGH COUNCIL,http://statistics.data.gov.uk/id/local-authority/00EU,Neighbourhood & Community Services,NCS,Care Purchase - Learning Disability,54450,Supporting People - External,441250,01-Nov-12,1900102754,987,Creative Support Ltd,100902
WARRINGTON BOROUGH COUNCIL,http://statistics.data.gov.uk/id/local-authority/00EU,Neighbourhood & Community Services,NCS,Care Purchase - Learning Disability,54450,CP-Domicil.External,440950,01-Nov-12,1900102754,"10,326.00",Creative Support Ltd,100902
WARRINGTON BOROUGH COUNCIL,http://statistics.data.gov.uk/id/local-authority/00EU,Neighbourhood & Community Services,NCS,Care Purchase - Mental Health Team 3,54250,CP-Domicil.External,440950,06-Nov-12,1900102990,911,Creative Support Ltd,100902
WARRINGTON BOROUGH COUNCIL,http://statistics.data.gov.uk/id/local-authority/00EU,Neighbourhood & Community Services,NCS,Care Purchase - Mental Health Team 2,54240,CP-Domicil.External,440950,06-Nov-12,1900102990,"4,402.00",Creative Support Ltd,100902
WARRINGTON BOROUGH COUNCIL,http://statistics.data.gov.uk/id/local-authority/00EU,Neighbourhood & Community Services,NCS,Care Purchase - Learning Disability,54450,CP-Domicil.External,440950,13-Nov-12,1900103448,835,Creative Support Ltd,100902
WARRINGTON BOROUGH COUNCIL,http://statistics.data.gov.uk/id/local-authority/00EU,Neighbourhood & Community Services,NCS,Care Purchase - PD,54440,CP-Domicil.External,440950,13-Nov-12,1900103448,"1,278.00",Creative Support Ltd,100902
WARRINGTON BOROUGH COUNCIL,http://statistics.data.gov.uk/id/local-authority/00EU,Neighbourhood & Community Services,NCS,Care Purchase - ABI,54260,CP-Domicil.External,440950,13-Nov-12,1900103448,"2,530.00",Creative Support Ltd,100902
WARRINGTON BOROUGH COUNCIL,http://statistics.data.gov.uk/id/local-authority/00EU,Neighbourhood & Community Services,NCS,Care Purchase - ABI,54260,CP-Domicil.External,440950,13-Nov-12,1900103450,"3,031.00",Creative Support Ltd,100902
WARRINGTON BOROUGH COUNCIL,http://statistics.data.gov.uk/id/local-authority/00EU,Neighbourhood & Community Services,NCS,Care Purchase - PD,54440,CP-Domicil.External,440950,13-Nov-12,1900103450,"9,093.00",Creative Support Ltd,100902
WARRINGTON BOROUGH COUNCIL,http://statistics.data.gov.uk/id/local-authority/00EU,Neighbourhood & Community Services,NCS,Care Purchase Budget,54490,Voids,515150,13-Nov-12,1900103450,"9,093.00",Creative Support Ltd,100902
WARRINGTON BOROUGH COUNCIL,http://statistics.data.gov.uk/id/local-authority/00EU,Neighbourhood & Community Services,NCS,Care Purchase - PD,54440,Supporting People - External,441250,13-Nov-12,1900103454,531,Creative Support Ltd,100902
WARRINGTON BOROUGH COUNCIL,http://statistics.data.gov.uk/id/local-authority/00EU,Neighbourhood & Community Services,NCS,Care Purchase - Learning Disability,54450,CP-Domicil.External,440950,13-Nov-12,1900103454,"2,392.00",Creative Support Ltd,100902
WARRINGTON BOROUGH COUNCIL,http://statistics.data.gov.uk/id/local-authority/00EU,Neighbourhood & Community Services,NCS,Care Purchase - Learning Disability,54450,Supporting People - External,441250,13-Nov-12,1900103454,"4,780.00",Creative Support Ltd,100902
WARRINGTON BOROUGH COUNCIL,http://statistics.data.gov.uk/id/local-authority/00EU,Neighbourhood & Community Services,NCS,Care Purchase Budget,54490,Voids,515150,13-Nov-12,1900103456,"1,952.00",Creative Support Ltd,100902
WARRINGTON BOROUGH COUNCIL,http://statistics.data.gov.uk/id/local-authority/00EU,Neighbourhood & Community Services,NCS,Care Purchase - PD,54440,Supporting People - External,441250,13-Nov-12,1900103456,"5,079.00",Creative Support Ltd,100902
WARRINGTON BOROUGH COUNCIL,http://statistics.data.gov.uk/id/local-authority/00EU,Neighbourhood & Community Services,NCS,Care Purchase - PD,54440,CP-Domicil.External,440950,13-Nov-12,1900103458,"1,493.00",Creative Support Ltd,100902
WARRINGTON BOROUGH COUNCIL,http://statistics.data.gov.uk/id/local-authority/00EU,Neighbourhood & Community Services,NCS,Care Purchase - Mental Health Team 2,54240,CP-Domicil.External,440950,13-Nov-12,1900103459,607,Creative Support Ltd,100902
WARRINGTON BOROUGH COUNCIL,http://statistics.data.gov.uk/id/local-authority/00EU,Neighbourhood & Community Services,NCS,Care Purchase - Learning Disability,54450,CP-Domicil.External,440950,13-Nov-12,1900103478,936,Creative Support Ltd,100902
WARRINGTON BOROUGH COUNCIL,http://statistics.data.gov.uk/id/local-authority/00EU,Neighbourhood & Community Services,NCS,Care Purchase - PD,54440,CP-Domicil.External,440950,13-Nov-12,1900103478,"1,278.00",Creative Support Ltd,100902
WARRINGTON BOROUGH COUNCIL,http://statistics.data.gov.uk/id/local-authority/00EU,Neighbourhood & Community Services,NCS,Care Purchase - ABI,54260,CP-Domicil.External,440950,13-Nov-12,1900103478,"2,732.00",Creative Support Ltd,100902
WARRINGTON BOROUGH COUNCIL,http://statistics.data.gov.uk/id/local-authority/00EU,Neighbourhood & Community Services,NCS,Care Purchase - Mental Health Team 2,54240,CP-Domicil.External,440950,13-Nov-12,1900103492,852,Creative Support Ltd,100902
WARRINGTON BOROUGH COUNCIL,http://statistics.data.gov.uk/id/local-authority/00EU,Neighbourhood & Community Services,NCS,Care Purchase - Mental Health Team 1,54230,CP-Domicil.External,440950,13-Nov-12,1900103492,"2,428.00",Creative Support Ltd,100902
WARRINGTON BOROUGH COUNCIL,http://statistics.data.gov.uk/id/local-authority/00EU,Neighbourhood & Community Services,NCS,Care Purchase - Learning Disability,54450,CP-Domicil.External,440950,13-Nov-12,1900103492,"2,612.00",Creative Support Ltd,100902
WARRINGTON BOROUGH COUNCIL,http://statistics.data.gov.uk/id/local-authority/00EU,Neighbourhood & Community Services,NCS,Care Purchase - ABI,54260,CP-Domicil.External,440950,13-Nov-12,1900103492,"3,330.00",Creative Support Ltd,100902
WARRINGTON BOROUGH COUNCIL,http://statistics.data.gov.uk/id/local-authority/00EU,Neighbourhood & Community Services,NCS,Care Purchase - Learning Disability,54450,Supporting People - External,441250,16-Nov-12,1900104284,"1,480.00",Creative Support Ltd,100902
WARRINGTON BOROUGH COUNCIL,http://statistics.data.gov.uk/id/local-authority/00EU,Neighbourhood & Community Services,NCS,Care Purchase - Learning Disability,54450,CP-Domicil.External,440950,16-Nov-12,1900104284,"12,960.00",Creative Support Ltd,100902
WARRINGTON BOROUGH COUNCIL,http://statistics.data.gov.uk/id/local-authority/00EU,Neighbourhood & Community Services,NCS,Care Purchase - Learning Disability,54450,Supporting People - External,441250,27-Nov-12,1900105296,"1,132.00",Creative Support Ltd,100902
WARRINGTON BOROUGH COUNCIL,http://statistics.data.gov.uk/id/local-authority/00EU,Neighbourhood & Community Services,NCS,Care Purchase - Learning Disability,54450,CP-Domicil.External,440950,27-Nov-12,1900105296,"11,546.00",Creative Support Ltd,100902
WARRINGTON BOROUGH COUNCIL,http://statistics.data.gov.uk/id/local-authority/00EU,Neighbourhood & Community Services,NCS,Care Purchase -OP & OT East,54430,Direct Payments,552000,13-Nov-12,1900103623,"1,142.00",Redacted Personal Data,100907
WARRINGTON BOROUGH COUNCIL,http://statistics.data.gov.uk/id/local-authority/00EU,Neighbourhood & Community Services,NCS,Care Purchase - OP & OT South,54480,Direct Payments,552000,13-Nov-12,1900103624,564,Redacted Personal Data,100933
WARRINGTON BOROUGH COUNCIL,http://statistics.data.gov.uk/id/local-authority/00EU,Neighbourhood & Community Services,NCS,Care Purchase - OP & OT South,54480,Direct Payments,552000,13-Nov-12,1900103625,661,Redacted Personal Data,100934
WARRINGTON BOROUGH COUNCIL,http://statistics.data.gov.uk/id/local-authority/00EU,Neighbourhood & Community Services,NCS,Care Purchase - Learning Disability,54450,Direct Payments,552000,13-Nov-12,1900103626,"1,120.00",Redacted Personal Data,100945
WARRINGTON BOROUGH COUNCIL,http://statistics.data.gov.uk/id/local-authority/00EU,Environment & Regeneration,ER0,Postal & Courier Services,52130,Postages,450000,30-Nov-12,1900105552,"1,550.00",Logistex Express Ltd,100946
WARRINGTON BOROUGH COUNCIL,http://statistics.data.gov.uk/id/local-authority/00EU,Neighbourhood & Community Services,NCS,Care Purchase - Learning Disability,54450,Direct Payments,552000,13-Nov-12,1900103627,"2,360.00",Redacted Personal Data,100954
WARRINGTON BOROUGH COUNCIL,http://statistics.data.gov.uk/id/local-authority/00EU,Neighbourhood & Community Services,NCS,Orford Festival,51263,Equipment Purchase & Contract,400000,21-Nov-12,1900104945,"15,000.00",Warrington Cultural Trust,100957
WARRINGTON BOROUGH COUNCIL,http://statistics.data.gov.uk/id/local-authority/00EU,Neighbourhood & Community Services,NCS,Pyramid - Build Mangt,51130,Electricity,210000,21-Nov-12,1900104959,"2,555.00",Warrington Cultural Trust,100957
WARRINGTON BOROUGH COUNCIL,http://statistics.data.gov.uk/id/local-authority/00EU,Neighbourhood & Community Services,NCS,Care Purchase - Learning Disability,54450,Direct Payments,552000,13-Nov-12,1900103628,"3,771.00",Redacted Personal Data,100959
WARRINGTON BOROUGH COUNCIL,http://statistics.data.gov.uk/id/local-authority/00EU,Assistant Chief Executive,CEX,Coroners Service,11100,Post Mortem Fees-Rep,440250,20-Nov-12,1900104343,774,Dr S A Hales,100988
WARRINGTON BOROUGH COUNCIL,http://statistics.data.gov.uk/id/local-authority/00EU,Environment & Regeneration,ER0,Town Hall,45167,Response Maintenance,200000,21-Nov-12,1900104964,"2,650.00",Apec Environmental Ltd,101001
WARRINGTON BOROUGH COUNCIL,http://statistics.data.gov.uk/id/local-authority/00EU,Children & Young People,CHL,CiC Team 2,31101,Personal Needs Allowance,550400,21-Nov-12,1900104950,"1,455.00",Golden Gates Housing Trust,101005
WARRINGTON BOROUGH COUNCIL,http://statistics.data.gov.uk/id/local-authority/00EU,Neighbourhood & Community Services,NCS,Care Purchase - PD,54440,Direct Payments,552000,13-Nov-12,1900103629,"1,146.00",Redacted Personal Data,101007
WARRINGTON BOROUGH COUNCIL,http://statistics.data.gov.uk/id/local-authority/00EU,Neighbourhood & Community Services,NCS,Care Purchase - ABI,54260,Direct Payments,552000,13-Nov-12,1900103630,"2,390.00",Redacted Personal Data,101016
WARRINGTON BOROUGH COUNCIL,http://statistics.data.gov.uk/id/local-authority/00EU,Children & Young People,CHL,EIG Funding - Dallam Childrens Centre,31511,Gas,210050,16-Nov-12,1900104238,833,Abel Alarm Company Ltd,101027
WARRINGTON BOROUGH COUNCIL,http://statistics.data.gov.uk/id/local-authority/00EU,Children & Young People,CHL,DSG Early Years PVI Settings,32417,Private & Voluntary 3 Year Olds,470100,14-Nov-12,1900104112,"1,500.00",The Lakes Nursery,101036
WARRINGTON BOROUGH COUNCIL,http://statistics.data.gov.uk/id/local-authority/00EU,Neighbourhood & Community Services,NCS,Care Purchase - Learning Disability,54450,Direct Payments,552000,13-Nov-12,1900103632,"1,760.00",Redacted Personal Data,101045
WARRINGTON BOROUGH COUNCIL,http://statistics.data.gov.uk/id/local-authority/00EU,Assistant Chief Executive,CEX,Coroners Service,11100,Post Mortem Fees-Rep,440250,30-Nov-12,1900105526,944,Dr William Lawler,101052
WARRINGTON BOROUGH COUNCIL,http://statistics.data.gov.uk/id/local-authority/00EU,Neighbourhood & Community Services,NCS,Care Purchase Budget,54490,CP ExternalOther Exp,440800,01-Nov-12,1900102740,"8,933.00",Ashberry Healthcare Ltd,101061
WARRINGTON BOROUGH COUNCIL,http://statistics.data.gov.uk/id/local-authority/00EU,Neighbourhood & Community Services,NCS,Care Purchase Budget,54490,CP ExternalOther Exp,440800,13-Nov-12,1900103514,"51,000.00",Ashberry Healthcare Ltd,101061
WARRINGTON BOROUGH COUNCIL,http://statistics.data.gov.uk/id/local-authority/00EU,Neighbourhood & Community Services,NCS,Care Purchase - Learning Disability,54450,Direct Payments,552000,13-Nov-12,1900103634,"2,663.00",Redacted Personal Data,101096
WARRINGTON BOROUGH COUNCIL,http://statistics.data.gov.uk/id/local-authority/00EU,Environment & Regeneration,ENO,Housing Projects,82008,Disabled Persons Grant 1996,554000,26-Nov-12,1900105186,"3,765.00",Stannah Lift Services,101099
WARRINGTON BOROUGH COUNCIL,http://statistics.data.gov.uk/id/local-authority/00EU,Neighbourhood & Community Services,NCS,Care Purchase - Learning Disability,54450,Direct Payments,552000,13-Nov-12,1900103635,"5,546.00",Redacted Personal Data,101104
WARRINGTON BOROUGH COUNCIL,http://statistics.data.gov.uk/id/local-authority/00EU,Corporate Financing,COR,Early Retirement Funding,60160,Redundancy,190550,08-Nov-12,1900103227,"249,325.00",Serco Ltd,101112
WARRINGTON BOROUGH COUNCIL,http://statistics.data.gov.uk/id/local-authority/00EU,Children & Young People,CHL,Business Services,33005,Equipment Purchase & Contract,400000,28-Nov-12,1900105349,591,Johnsons Business Moves,101117
WARRINGTON BOROUGH COUNCIL,http://statistics.data.gov.uk/id/local-authority/00EU,Children & Young People,CHL,Business Services,33005,Equipment Purchase & Contract,400000,28-Nov-12,1900105352,611,Johnsons Business Moves,101117
WARRINGTON BOROUGH COUNCIL,http://statistics.data.gov.uk/id/local-authority/00EU,Neighbourhood & Community Services,NCS,Care Purchase - PD,54440,Direct Payments,552000,13-Nov-12,1900103637,849,Redacted Personal Data,101147
WARRINGTON BOROUGH COUNCIL,http://statistics.data.gov.uk/id/local-authority/00EU,Neighbourhood & Community Services,NCS,Care Purchase -OP & OT East,54430,Direct Payments,552000,13-Nov-12,1900103639,812,Redacted Personal Data,101174
WARRINGTON BOROUGH COUNCIL,http://statistics.data.gov.uk/id/local-authority/00EU,Neighbourhood & Community Services,NCS,Care Purchase - Learning Disability,54450,CP Adult Placement,443450,28-Nov-12,1900105361,"1,496.00",Redacted Personal Data,101175
WARRINGTON BOROUGH COUNCIL,http://statistics.data.gov.uk/id/local-authority/00EU,Environment & Regeneration,ENO,Housing Projects,82008,Disabled Persons Grant 1996,554000,05-Nov-12,1900102981,610,Warrington Housing Association,101208
WARRINGTON BOROUGH COUNCIL,http://statistics.data.gov.uk/id/local-authority/00EU,Neighbourhood & Community Services,NCS,Padgate House,54760,Rent Of Premises,220000,19-Nov-12,1900104305,986,Warrington Housing Association,101208
WARRINGTON BOROUGH COUNCIL,http://statistics.data.gov.uk/id/local-authority/00EU,Environment & Regeneration,ENO,Housing Projects,82008,Disabled Persons Grant 1996,554000,19-Nov-12,1900104314,"1,668.00",Warrington Housing Association,101208
WARRINGTON BOROUGH COUNCIL,http://statistics.data.gov.uk/id/local-authority/00EU,Neighbourhood & Community Services,NCS,Supporting People Grant Payments,53260,Pilot Projects,535300,20-Nov-12,1900104326,"41,000.00",Warrington Housing Association,101208
WARRINGTON BOROUGH COUNCIL,http://statistics.data.gov.uk/id/local-authority/00EU,Environment & Regeneration,ENO,Housing Projects,82008,Disabled Persons Grant 1996,554000,21-Nov-12,1900104955,701,Warrington Housing Association,101208
WARRINGTON BOROUGH COUNCIL,http://statistics.data.gov.uk/id/local-authority/00EU,Environment & Regeneration,ER0,Homelessness,43650,Consult.& Prof. Serv,440000,26-Nov-12,1900105233,"3,000.00",Warrington Housing Association,101208
WARRINGTON BOROUGH COUNCIL,http://statistics.data.gov.uk/id/local-authority/00EU,Environment & Regeneration,ENO,Housing Projects,82008,Disabled Persons Grant 1996,554000,26-Nov-12,1900105236,641,Warrington Housing Association,101208
WARRINGTON BOROUGH COUNCIL,http://statistics.data.gov.uk/id/local-authority/00EU,Environment & Regeneration,ENO,Housing Projects,82008,Disabled Persons Grant 1996,554000,28-Nov-12,1900105404,"1,035.00",Warrington Housing Association,101208
WARRINGTON BOROUGH COUNCIL,http://statistics.data.gov.uk/id/local-authority/00EU,Environment & Regeneration,ENO,Housing Projects,82008,Disabled Persons Grant 1996,554000,30-Nov-12,1900105565,"4,134.00",Warrington Housing Association,101208
WARRINGTON BOROUGH COUNCIL,http://statistics.data.gov.uk/id/local-authority/00EU,Environment & Regeneration,ENO,Housing Projects,82008,Disabled Persons Grant 1996,554000,30-Nov-12,1900105568,"1,024.00",Warrington Housing Association,101208
WARRINGTON BOROUGH COUNCIL,http://statistics.data.gov.uk/id/local-authority/00EU,Environment & Regeneration,ENO,Housing Projects,82008,Disabled Persons Grant 1996,554000,30-Nov-12,1900105570,"1,801.00",Warrington Housing Association,101208
WARRINGTON BOROUGH COUNCIL,http://statistics.data.gov.uk/id/local-authority/00EU,Neighbourhood & Community Services,NCS,Care Purchase - Learning Disability,54450,CP-LongStayExternal,441150,27-Nov-12,1900105260,"10,471.00",Pendleton Care Limited,101213
WARRINGTON BOROUGH COUNCIL,http://statistics.data.gov.uk/id/local-authority/00EU,Neighbourhood & Community Services,NCS,Care Purchase - Mental Health Team 2,54240,CP-Domicil.External,440950,05-Nov-12,1900102957,"1,144.00",Next Stage A Way Forward Ltd,101217
WARRINGTON BOROUGH COUNCIL,http://statistics.data.gov.uk/id/local-authority/00EU,Neighbourhood & Community Services,NCS,Care Purchase - Mental Health Team 2,54240,CP-Domicil.External,440950,05-Nov-12,1900102959,"1,877.00",Next Stage A Way Forward Ltd,101217
WARRINGTON BOROUGH COUNCIL,http://statistics.data.gov.uk/id/local-authority/00EU,Neighbourhood & Community Services,NCS,Care Purchase - Mental Health Team 3,54250,CP-Domicil.External,440950,05-Nov-12,1900102963,"1,190.00",Next Stage A Way Forward Ltd,101217
WARRINGTON BOROUGH COUNCIL,http://statistics.data.gov.uk/id/local-authority/00EU,Neighbourhood & Community Services,NCS,Care Purchase - Mental Health Team 3,54250,CP-Domicil.External,440950,21-Nov-12,1900104871,"1,190.00",Next Stage A Way Forward Ltd,101217
WARRINGTON BOROUGH COUNCIL,http://statistics.data.gov.uk/id/local-authority/00EU,Neighbourhood & Community Services,NCS,Care Purchase - Mental Health Team 3,54250,CP-Domicil.External,440950,21-Nov-12,1900104872,"1,465.00",Next Stage A Way Forward Ltd,101217
WARRINGTON BOROUGH COUNCIL,http://statistics.data.gov.uk/id/local-authority/00EU,Neighbourhood & Community Services,NCS,Care Purchase - Mental Health Team 2,54240,CP-Domicil.External,440950,21-Nov-12,1900104908,"1,282.00",Next Stage A Way Forward Ltd,101217
WARRINGTON BOROUGH COUNCIL,http://statistics.data.gov.uk/id/local-authority/00EU,Neighbourhood & Community Services,NCS,Care Purchase - Mental Health Team 2,54240,CP-Domicil.External,440950,21-Nov-12,1900104916,"1,465.00",Next Stage A Way Forward Ltd,101217
WARRINGTON BOROUGH COUNCIL,http://statistics.data.gov.uk/id/local-authority/00EU,Neighbourhood & Community Services,NCS,Care Purchase - Mental Health Team 3,54250,CP-Domicil.External,440950,21-Nov-12,1900104917,"1,190.00",Next Stage A Way Forward Ltd,101217
WARRINGTON BOROUGH COUNCIL,http://statistics.data.gov.uk/id/local-authority/00EU,Neighbourhood & Community Services,NCS,Care Purchase - Mental Health Team 2,54240,CP-Domicil.External,440950,21-Nov-12,1900104918,"1,648.00",Next Stage A Way Forward Ltd,101217
WARRINGTON BOROUGH COUNCIL,http://statistics.data.gov.uk/id/local-authority/00EU,Neighbourhood & Community Services,NCS,Care Purchase - Mental Health Team 2,54240,CP-Domicil.External,440950,21-Nov-12,1900104919,824,Next Stage A Way Forward Ltd,101217
WARRINGTON BOROUGH COUNCIL,http://statistics.data.gov.uk/id/local-authority/00EU,Neighbourhood & Community Services,NCS,Care Purchase - Mental Health Team 2,54240,CP-Domicil.External,440950,21-Nov-12,1900104920,961,Next Stage A Way Forward Ltd,101217
WARRINGTON BOROUGH COUNCIL,http://statistics.data.gov.uk/id/local-authority/00EU,Neighbourhood & Community Services,NCS,Care Purchase - Mental Health Team 2,54240,CP-LongStayExternal,441150,21-Nov-12,1900104921,"1,282.00",Next Stage A Way Forward Ltd,101217
WARRINGTON BOROUGH COUNCIL,http://statistics.data.gov.uk/id/local-authority/00EU,Neighbourhood & Community Services,NCS,Care Purchase - Mental Health Team 1,54230,CP-Domicil.External,440950,21-Nov-12,1900104922,"1,923.00",Next Stage A Way Forward Ltd,101217
WARRINGTON BOROUGH COUNCIL,http://statistics.data.gov.uk/id/local-authority/00EU,Neighbourhood & Community Services,NCS,Care Purchase - Mental Health Team 3,54250,CP-Domicil.External,440950,21-Nov-12,1900104923,"1,190.00",Next Stage A Way Forward Ltd,101217
WARRINGTON BOROUGH COUNCIL,http://statistics.data.gov.uk/id/local-authority/00EU,Neighbourhood & Community Services,NCS,Care Purchase - Mental Health Team 3,54250,CP-Domicil.External,440950,21-Nov-12,1900104924,"1,740.00",Next Stage A Way Forward Ltd,101217
WARRINGTON BOROUGH COUNCIL,http://statistics.data.gov.uk/id/local-authority/00EU,Neighbourhood & Community Services,NCS,Care Purchase - Mental Health Team 2,54240,CP-Domicil.External,440950,21-Nov-12,1900104925,"1,923.00",Next Stage A Way Forward Ltd,101217
WARRINGTON BOROUGH COUNCIL,http://statistics.data.gov.uk/id/local-authority/00EU,Neighbourhood & Community Services,NCS,Care Purchase - Mental Health Team 2,54240,CP-Domicil.External,440950,21-Nov-12,1900104926,"1,465.00",Next Stage A Way Forward Ltd,101217
WARRINGTON BOROUGH COUNCIL,http://statistics.data.gov.uk/id/local-authority/00EU,Neighbourhood & Community Services,NCS,Care Purchase - Mental Health Team 3,54250,CP-Domicil.External,440950,21-Nov-12,1900104927,"1,465.00",Next Stage A Way Forward Ltd,101217
WARRINGTON BOROUGH COUNCIL,http://statistics.data.gov.uk/id/local-authority/00EU,Neighbourhood & Community Services,NCS,Care Purchase - Mental Health Team 2,54240,CP-Domicil.External,440950,21-Nov-12,1900104929,"1,923.00",Next Stage A Way Forward Ltd,101217
WARRINGTON BOROUGH COUNCIL,http://statistics.data.gov.uk/id/local-authority/00EU,Assistant Chief Executive,CEX,Coroners Service,11100,Post Mortem Fees-Rep,440250,30-Nov-12,1900105513,"1,493.00",Dr Jackie Elder,101240
WARRINGTON BOROUGH COUNCIL,http://statistics.data.gov.uk/id/local-authority/00EU,Neighbourhood & Community Services,NCS,Care Purchase - Learning Disability,54450,Direct Payments,552000,13-Nov-12,1900103644,"2,815.00",Redacted Personal Data,101246
WARRINGTON BOROUGH COUNCIL,http://statistics.data.gov.uk/id/local-authority/00EU,Neighbourhood & Community Services,NCS,Care Purchase - Learning Disability,54450,Direct Payments,552000,13-Nov-12,1900103645,520,Redacted Personal Data,101261
WARRINGTON BOROUGH COUNCIL,http://statistics.data.gov.uk/id/local-authority/00EU,Neighbourhood & Community Services,NCS,Care Purchase - PD,54440,Direct Payments,552000,13-Nov-12,1900103646,"3,595.00",Redacted Personal Data,101276
WARRINGTON BOROUGH COUNCIL,http://statistics.data.gov.uk/id/local-authority/00EU,Neighbourhood & Community Services,NCS,DAT Pooled Budget,53860,Drug Action,443600,09-Nov-12,1900103315,552,Co-Op Pharmacy Ltd,101287
WARRINGTON BOROUGH COUNCIL,http://statistics.data.gov.uk/id/local-authority/00EU,Neighbourhood & Community Services,NCS,Care Purchase - Learning Disability,54450,Direct Payments,552000,13-Nov-12,1900103647,"2,177.00",Redacted Personal Data,101310
WARRINGTON BOROUGH COUNCIL,http://statistics.data.gov.uk/id/local-authority/00EU,Children & Young People,CHL,Child Disability,32212,Direct Payments,552000,13-Nov-12,1900103648,666,Redacted Personal Data,101322
WARRINGTON BOROUGH COUNCIL,http://statistics.data.gov.uk/id/local-authority/00EU,Neighbourhood & Community Services,NCS,Care Purchase - PD,54440,Direct Payments,552000,13-Nov-12,1900103650,"2,328.00",Redacted Personal Data,101335
WARRINGTON BOROUGH COUNCIL,http://statistics.data.gov.uk/id/local-authority/00EU,Neighbourhood & Community Services,NCS,Care Purchase - PD,54440,Direct Payments,552000,13-Nov-12,1900103651,939,Redacted Personal Data,101336
WARRINGTON BOROUGH COUNCIL,http://statistics.data.gov.uk/id/local-authority/00EU,Neighbourhood & Community Services,NCS,Care Purchase - Learning Disability,54450,Direct Payments,552000,13-Nov-12,1900103652,"4,063.00",Redacted Personal Data,101341
WARRINGTON BOROUGH COUNCIL,http://statistics.data.gov.uk/id/local-authority/00EU,Neighbourhood & Community Services,NCS,Care Purchase - PD,54440,Direct Payments,552000,13-Nov-12,1900103653,"1,231.00",Redacted Personal Data,101354
WARRINGTON BOROUGH COUNCIL,http://statistics.data.gov.uk/id/local-authority/00EU,Neighbourhood & Community Services,NCS,Care Purchase - Learning Disability,54450,Direct Payments,552000,13-Nov-12,1900103654,800,Redacted Personal Data,101396
WARRINGTON BOROUGH COUNCIL,http://statistics.data.gov.uk/id/local-authority/00EU,Children & Young People,CHL,Child Disability,32212,Direct Payments,552000,13-Nov-12,1900103655,984,Redacted Personal Data,101407
WARRINGTON BOROUGH COUNCIL,http://statistics.data.gov.uk/id/local-authority/00EU,Neighbourhood & Community Services,NCS,Care Purchase - Learning Disability,54450,Direct Payments,552000,13-Nov-12,1900103656,"1,370.00",Redacted Personal Data,101420
WARRINGTON BOROUGH COUNCIL,http://statistics.data.gov.uk/id/local-authority/00EU,Neighbourhood & Community Services,NCS,Care Purchase - PD,54440,Supporting People - External,441250,13-Nov-12,1900103658,600,Redacted Personal Data,101431
WARRINGTON BOROUGH COUNCIL,http://statistics.data.gov.uk/id/local-authority/00EU,Neighbourhood & Community Services,NCS,Care Purchase - PD,54440,Direct Payments,552000,13-Nov-12,1900103658,"1,190.00",Redacted Personal Data,101431
WARRINGTON BOROUGH COUNCIL,http://statistics.data.gov.uk/id/local-authority/00EU,Neighbourhood & Community Services,NCS,Care Purchase - PD,54440,Direct Payments,552000,13-Nov-12,1900103659,680,Redacted Personal Data,101444
WARRINGTON BOROUGH COUNCIL,http://statistics.data.gov.uk/id/local-authority/00EU,Environment & Regeneration,ER0,Postal & Courier Services,52130,Postages,450000,05-Nov-12,1900102885,"1,173.00",Royal Mail,101445
WARRINGTON BOROUGH COUNCIL,http://statistics.data.gov.uk/id/local-authority/00EU,Assistant Chief Executive,CEX,Police and Crime Commissioner Election,11640,Postages,450000,05-Nov-12,1900102949,"1,275.00",Royal Mail,101445
WARRINGTON BOROUGH COUNCIL,http://statistics.data.gov.uk/id/local-authority/00EU,Assistant Chief Executive,CEX,Police and Crime Commissioner Election,11640,Postages,450000,22-Nov-12,1900105027,"10,479.00",Royal Mail,101445
WARRINGTON BOROUGH COUNCIL,http://statistics.data.gov.uk/id/local-authority/00EU,Assistant Chief Executive,CEX,Police and Crime Commissioner Election,11640,Postages,450000,28-Nov-12,1900105411,"1,565.00",Royal Mail,101445
WARRINGTON BOROUGH COUNCIL,http://statistics.data.gov.uk/id/local-authority/00EU,Assistant Chief Executive,CEX,Police and Crime Commissioner Election,11640,Postages,450000,29-Nov-12,1900105457,"3,701.00",Royal Mail,101445
WARRINGTON BOROUGH COUNCIL,http://statistics.data.gov.uk/id/local-authority/00EU,Environment & Regeneration,ER0,Postal & Courier Services,52130,Postages,450000,30-Nov-12,1900105542,"1,045.00",Royal Mail,101445
WARRINGTON BOROUGH COUNCIL,http://statistics.data.gov.uk/id/local-authority/00EU,Environment & Regeneration,ER0,Postal & Courier Services,52130,Postages,450000,30-Nov-12,1900105553,"1,299.00",Royal Mail,101445
WARRINGTON BOROUGH COUNCIL,http://statistics.data.gov.uk/id/local-authority/00EU,Environment & Regeneration,ER0,Postal & Courier Services,52130,Postages,450000,30-Nov-12,1900105555,"1,547.00",Royal Mail,101445
WARRINGTON BOROUGH COUNCIL,http://statistics.data.gov.uk/id/local-authority/00EU,Environment & Regeneration,ER0,Postal & Courier Services,52130,Postages,450000,30-Nov-12,1900105558,"1,192.00",Royal Mail,101445
WARRINGTON BOROUGH COUNCIL,http://statistics.data.gov.uk/id/local-authority/00EU,Children & Young People,CHL,DSG LEA Initiatives SCC,32410,Legal Costs Incurred,440200,22-Nov-12,1900104992,"2,004.00",Weightmans Office AC,101452
WARRINGTON BOROUGH COUNCIL,http://statistics.data.gov.uk/id/local-authority/00EU,Assistant Chief Executive,CEX,HR Advisory,20005,Legal Costs Incurred,440200,22-Nov-12,1900104994,"1,740.00",Weightmans Office AC,101452
WARRINGTON BOROUGH COUNCIL,http://statistics.data.gov.uk/id/local-authority/00EU,Children & Young People,CHL,DSG LEA Initiatives SCC,32410,Legal Costs Incurred,440200,22-Nov-12,1900104996,759,Weightmans Office AC,101452
WARRINGTON BOROUGH COUNCIL,http://statistics.data.gov.uk/id/local-authority/00EU,Children & Young People,CHL,DSG LEA Initiatives SCC,32410,Legal Costs Incurred,440200,22-Nov-12,1900104999,692,Weightmans Office AC,101452
WARRINGTON BOROUGH COUNCIL,http://statistics.data.gov.uk/id/local-authority/00EU,Neighbourhood & Community Services,NCS,Care Purchase - Learning Disability,54450,Direct Payments,552000,13-Nov-12,1900103660,"3,647.00",Redacted Personal Data,101463
WARRINGTON BOROUGH COUNCIL,http://statistics.data.gov.uk/id/local-authority/00EU,Neighbourhood & Community Services,NCS,Care Purchase - Learning Disability,54450,Direct Payments,552000,13-Nov-12,1900103662,"4,802.00",Redacted Personal Data,101472
WARRINGTON BOROUGH COUNCIL,http://statistics.data.gov.uk/id/local-authority/00EU,Assistant Chief Executive,CEX,CRT Apprenticeships,22470,"Campaigns,  Projects and Events",491950,30-Nov-12,1900105539,700,Pink Ladies,101485
WARRINGTON BOROUGH COUNCIL,http://statistics.data.gov.uk/id/local-authority/00EU,Neighbourhood & Community Services,NCS,Care Purchase - ABI,54260,CP-Nursing Care-External,441200,01-Nov-12,1900102785,"5,000.00",St Marys Care Centre,101503
WARRINGTON BOROUGH COUNCIL,http://statistics.data.gov.uk/id/local-authority/00EU,Neighbourhood & Community Services,NCS,Care Purchase Budget,54490,CP ExternalOther Exp,440800,01-Nov-12,1900102786,"6,781.00",St Marys Care Centre,101503
WARRINGTON BOROUGH COUNCIL,http://statistics.data.gov.uk/id/local-authority/00EU,Neighbourhood & Community Services,NCS,Care Purchase Budget,54490,CP ExternalOther Exp,440800,13-Nov-12,1900103488,"32,000.00",St Marys Care Centre,101503
WARRINGTON BOROUGH COUNCIL,http://statistics.data.gov.uk/id/local-authority/00EU,Neighbourhood & Community Services,NCS,Care Purchase - OP & OT West,54470,CP-Nursing Care-External,441200,16-Nov-12,1900104231,"3,960.00",St Marys Care Centre,101503
WARRINGTON BOROUGH COUNCIL,http://statistics.data.gov.uk/id/local-authority/00EU,Neighbourhood & Community Services,NCS,Care Purchase - ABI,54260,CP-Nursing Care-External,441200,27-Nov-12,1900105272,"5,000.00",St Marys Care Centre,101503
WARRINGTON BOROUGH COUNCIL,http://statistics.data.gov.uk/id/local-authority/00EU,Assistant Chief Executive,CEX,CRT Apprenticeships,22470,"Campaigns,  Projects and Events",491950,26-Nov-12,1900105191,"2,036.00",Warrington Wolves Foundation,101508
WARRINGTON BOROUGH COUNCIL,http://statistics.data.gov.uk/id/local-authority/00EU,Neighbourhood & Community Services,NCS,Care Purchase - Learning Disability,54450,Direct Payments,552000,13-Nov-12,1900103664,849,Redacted Personal Data,101515
WARRINGTON BOROUGH COUNCIL,http://statistics.data.gov.uk/id/local-authority/00EU,Neighbourhood & Community Services,NCS,Care Purchase - Learning Disability,54450,Direct Payments,552000,13-Nov-12,1900103665,"1,513.00",Redacted Personal Data,101516
WARRINGTON BOROUGH COUNCIL,http://statistics.data.gov.uk/id/local-authority/00EU,Neighbourhood & Community Services,NCS,Care Purchase - PD,54440,Direct Payments,552000,13-Nov-12,1900103600,859,Redacted Personal Data,101541
WARRINGTON BOROUGH COUNCIL,http://statistics.data.gov.uk/id/local-authority/00EU,Neighbourhood & Community Services,NCS,Care Purchase - PD,54440,Direct Payments,552000,13-Nov-12,1900103667,859,Redacted Personal Data,101541
WARRINGTON BOROUGH COUNCIL,http://statistics.data.gov.uk/id/local-authority/00EU,Neighbourhood & Community Services,NCS,Care Purchase - ABI,54260,Direct Payments,552000,13-Nov-12,1900103668,849,Redacted Personal Data,101542
WARRINGTON BOROUGH COUNCIL,http://statistics.data.gov.uk/id/local-authority/00EU,Neighbourhood & Community Services,NCS,Care Purchase - Learning Disability,54450,Direct Payments,552000,13-Nov-12,1900103669,764,Redacted Personal Data,101547
WARRINGTON BOROUGH COUNCIL,http://statistics.data.gov.uk/id/local-authority/00EU,Neighbourhood & Community Services,NCS,Care Purchase - Learning Disability,54450,Direct Payments,552000,27-Nov-12,1900105470,"1,019.00",Redacted Personal Data,101547
WARRINGTON BOROUGH COUNCIL,http://statistics.data.gov.uk/id/local-authority/00EU,Neighbourhood & Community Services,NCS,Care Purchase - Learning Disability,54450,CP - Cont Care - External,441350,13-Nov-12,1900103670,"1,542.00",Redacted Personal Data,101551
WARRINGTON BOROUGH COUNCIL,http://statistics.data.gov.uk/id/local-authority/00EU,Neighbourhood & Community Services,NCS,Care Purchase - Learning Disability,54450,Direct Payments,552000,13-Nov-12,1900103670,"1,542.00",Redacted Personal Data,101551
WARRINGTON BOROUGH COUNCIL,http://statistics.data.gov.uk/id/local-authority/00EU,Neighbourhood & Community Services,NCS,Care Purchase - PD,54440,Direct Payments,552000,13-Nov-12,1900103601,679,Redacted Personal Data,101558
WARRINGTON BOROUGH COUNCIL,http://statistics.data.gov.uk/id/local-authority/00EU,Neighbourhood & Community Services,NCS,Care Purchase - PD,54440,Direct Payments,552000,13-Nov-12,1900103672,679,Redacted Personal Data,101558
WARRINGTON BOROUGH COUNCIL,http://statistics.data.gov.uk/id/local-authority/00EU,Neighbourhood & Community Services,NCS,Care Purchase - Learning Disability,54450,Direct Payments,552000,13-Nov-12,1900103673,"2,462.00",Redacted Personal Data,101568
WARRINGTON BOROUGH COUNCIL,http://statistics.data.gov.uk/id/local-authority/00EU,Neighbourhood & Community Services,NCS,Care Purchase - Learning Disability,54450,Direct Payments,552000,13-Nov-12,1900103674,"1,698.00",Redacted Personal Data,101584
WARRINGTON BOROUGH COUNCIL,http://statistics.data.gov.uk/id/local-authority/00EU,Neighbourhood & Community Services,NCS,Care Purchase - OP & OT West,54470,Direct Payments,552000,13-Nov-12,1900103675,856,Redacted Personal Data,101592
WARRINGTON BOROUGH COUNCIL,http://statistics.data.gov.uk/id/local-authority/00EU,Children & Young People,CHL,Child Disability,32212,Direct Payments,552000,13-Nov-12,1900103676,665,Redacted Personal Data,101595
WARRINGTON BOROUGH COUNCIL,http://statistics.data.gov.uk/id/local-authority/00EU,Neighbourhood & Community Services,NCS,Care Purchase - Learning Disability,54450,Direct Payments,552000,13-Nov-12,1900103677,"1,237.00",Redacted Personal Data,101614
WARRINGTON BOROUGH COUNCIL,http://statistics.data.gov.uk/id/local-authority/00EU,Neighbourhood & Community Services,NCS,Care Purchase - Learning Disability,54450,Direct Payments,552000,13-Nov-12,1900103678,"1,237.00",Redacted Personal Data,101619
WARRINGTON BOROUGH COUNCIL,http://statistics.data.gov.uk/id/local-authority/00EU,Neighbourhood & Community Services,NCS,Care Purchase - Learning Disability,54450,Direct Payments,552000,13-Nov-12,1900103679,"1,019.00",Redacted Personal Data,101625
WARRINGTON BOROUGH COUNCIL,http://statistics.data.gov.uk/id/local-authority/00EU,Children & Young People,CHL,Child Disability,32212,CP - Cont Care - External,441350,13-Nov-12,1900103681,580,Redacted Personal Data,101630
WARRINGTON BOROUGH COUNCIL,http://statistics.data.gov.uk/id/local-authority/00EU,Children & Young People,CHL,Child Disability,32212,Direct Payments,552000,13-Nov-12,1900103681,580,Redacted Personal Data,101630
WARRINGTON BOROUGH COUNCIL,http://statistics.data.gov.uk/id/local-authority/00EU,Assistant Chief Executive,CEX,Council Tax & Recovery,10320,Bailiff Fees,441400,14-Nov-12,1900103576,"1,546.00",Phoenix Commercial Collections,101671
WARRINGTON BOROUGH COUNCIL,http://statistics.data.gov.uk/id/local-authority/00EU,Neighbourhood & Community Services,NCS,Care Purchase - Learning Disability,54450,CP-LongStayExternal,441150,05-Nov-12,1900102920,"12,348.00",Griffin Care Ltd,101672
WARRINGTON BOROUGH COUNCIL,http://statistics.data.gov.uk/id/local-authority/00EU,Neighbourhood & Community Services,NCS,Care Purchase - Learning Disability,54450,CP-LongStayExternal,441150,05-Nov-12,1900102921,"12,348.00",Griffin Care Ltd,101672
WARRINGTON BOROUGH COUNCIL,http://statistics.data.gov.uk/id/local-authority/00EU,Neighbourhood & Community Services,NCS,Care Purchase - PD,54440,Direct Payments,552000,13-Nov-12,1900103684,560,Redacted Personal Data,101677
WARRINGTON BOROUGH COUNCIL,http://statistics.data.gov.uk/id/local-authority/00EU,Neighbourhood & Community Services,NCS,Care Purchase - Learning Disability,54450,Direct Payments,552000,13-Nov-12,1900103685,880,Redacted Personal Data,101686
WARRINGTON BOROUGH COUNCIL,http://statistics.data.gov.uk/id/local-authority/00EU,Assistant Chief Executive,CEX,Coroners Service,11100,Consult.& Prof. Serv,440000,30-Nov-12,1900105515,853,Dr Natalie Meara,101727
WARRINGTON BOROUGH COUNCIL,http://statistics.data.gov.uk/id/local-authority/00EU,Neighbourhood & Community Services,NCS,Care Purchase - Learning Disability,54450,Direct Payments,552000,13-Nov-12,1900103689,"1,347.00",Redacted Personal Data,101730
WARRINGTON BOROUGH COUNCIL,http://statistics.data.gov.uk/id/local-authority/00EU,Environment & Regeneration,ER0,Estates & Valuation,43520,Agency Supply - GF,180000,07-Nov-12,1900103097,931,Judd Farris Property Recruitment,101741
WARRINGTON BOROUGH COUNCIL,http://statistics.data.gov.uk/id/local-authority/00EU,Environment & Regeneration,ER0,Estates & Valuation,43520,Agency Supply - GF,180000,07-Nov-12,1900103103,"1,040.00",Judd Farris Property Recruitment,101741
WARRINGTON BOROUGH COUNCIL,http://statistics.data.gov.uk/id/local-authority/00EU,Environment & Regeneration,ER0,Estates & Valuation,43520,Agency Supply - GF,180000,07-Nov-12,1900103115,"1,040.00",Judd Farris Property Recruitment,101741
WARRINGTON BOROUGH COUNCIL,http://statistics.data.gov.uk/id/local-authority/00EU,Environment & Regeneration,ER0,Estates & Valuation,43520,Agency Supply - GF,180000,29-Nov-12,1900105443,834,Judd Farris Property Recruitment,101741
WARRINGTON BOROUGH COUNCIL,http://statistics.data.gov.uk/id/local-authority/00EU,Environment & Regeneration,ER0,Estates & Valuation,43520,Agency Supply - GF,180000,30-Nov-12,1900105579,529,Judd Farris Property Recruitment,101741
WARRINGTON BOROUGH COUNCIL,http://statistics.data.gov.uk/id/local-authority/00EU,Environment & Regeneration,ER0,Estates & Valuation,43520,Agency Supply - GF,180000,30-Nov-12,1900105584,879,Judd Farris Property Recruitment,101741
WARRINGTON BOROUGH COUNCIL,http://statistics.data.gov.uk/id/local-authority/00EU,Environment & Regeneration,ER0,Estates & Valuation,43520,Agency Supply - GF,180000,30-Nov-12,1900105586,535,Judd Farris Property Recruitment,101741
WARRINGTON BOROUGH COUNCIL,http://statistics.data.gov.uk/id/local-authority/00EU,Environment & Regeneration,ER0,Estates & Valuation,43520,Agency Supply - GF,180000,30-Nov-12,1900105587,"1,015.00",Judd Farris Property Recruitment,101741
WARRINGTON BOROUGH COUNCIL,http://statistics.data.gov.uk/id/local-authority/00EU,Neighbourhood & Community Services,NCS,Care Purchase Budget,54490,CP ExternalOther Exp,440800,05-Nov-12,1900102962,"1,892.00",Wcl - Heathside Mews,101742
WARRINGTON BOROUGH COUNCIL,http://statistics.data.gov.uk/id/local-authority/00EU,Neighbourhood & Community Services,NCS,Care Purchase Budget,54490,CP ExternalOther Exp,440800,13-Nov-12,1900103491,"40,000.00",Wcl - Heathside Mews,101742
WARRINGTON BOROUGH COUNCIL,http://statistics.data.gov.uk/id/local-authority/00EU,Neighbourhood & Community Services,NCS,Care Purchase - Learning Disability,54450,Direct Payments,552000,13-Nov-12,1900103690,599,Redacted Personal Data,101748
WARRINGTON BOROUGH COUNCIL,http://statistics.data.gov.uk/id/local-authority/00EU,Neighbourhood & Community Services,NCS,Care Purchase - PD,54440,Direct Payments,552000,13-Nov-12,1900103691,679,Redacted Personal Data,101752
WARRINGTON BOROUGH COUNCIL,http://statistics.data.gov.uk/id/local-authority/00EU,Children & Young People,CHL,Child Disability,32212,Direct Payments,552000,13-Nov-12,1900103692,"1,002.00",Redacted Personal Data,101758
WARRINGTON BOROUGH COUNCIL,http://statistics.data.gov.uk/id/local-authority/00EU,Neighbourhood & Community Services,NCS,Care Purchase - Learning Disability,54450,Direct Payments,552000,13-Nov-12,1900103693,509,Redacted Personal Data,101759
WARRINGTON BOROUGH COUNCIL,http://statistics.data.gov.uk/id/local-authority/00EU,Neighbourhood & Community Services,NCS,Care Purchase - OP & OT West,54470,CP-Domicil.External,440950,01-Nov-12,1900102770,"3,661.00",Homelife Leeds Ltd,101794
WARRINGTON BOROUGH COUNCIL,http://statistics.data.gov.uk/id/local-authority/00EU,Neighbourhood & Community Services,NCS,Care Purchase - Mental Health Team 2,54240,Direct Payments,552000,13-Nov-12,1900103694,"1,949.00",Redacted Personal Data,101808
WARRINGTON BOROUGH COUNCIL,http://statistics.data.gov.uk/id/local-authority/00EU,Neighbourhood & Community Services,NCS,Care Purchase - PD,54440,CP-Nursing Care-External,441200,21-Nov-12,1900104859,"4,136.00",Abbey Lawns Care Home Ltd,101816
WARRINGTON BOROUGH COUNCIL,http://statistics.data.gov.uk/id/local-authority/00EU,Neighbourhood & Community Services,NCS,Care Purchase - Learning Disability,54450,CP-Domicil.External,440950,23-Nov-12,1900105058,687,Progress Adult Services Ltd,101817
WARRINGTON BOROUGH COUNCIL,http://statistics.data.gov.uk/id/local-authority/00EU,Neighbourhood & Community Services,NCS,Care Purchase - Learning Disability,54450,CP-LongStayExternal,441150,23-Nov-12,1900105058,"11,238.00",Progress Adult Services Ltd,101817
WARRINGTON BOROUGH COUNCIL,http://statistics.data.gov.uk/id/local-authority/00EU,Neighbourhood & Community Services,NCS,Care Purchase - Learning Disability,54450,CP-LongStayExternal,441150,23-Nov-12,1900105062,"11,238.00",Progress Adult Services Ltd,101817
WARRINGTON BOROUGH COUNCIL,http://statistics.data.gov.uk/id/local-authority/00EU,Assistant Chief Executive,CEX,Coroners Service,11100,Consult.& Prof. Serv,440000,30-Nov-12,1900105478,"1,388.00",Dr R T Shepherd,101823
WARRINGTON BOROUGH COUNCIL,http://statistics.data.gov.uk/id/local-authority/00EU,Neighbourhood & Community Services,NCS,Care Purchase - OP & OT South,54480,Direct Payments,552000,13-Nov-12,1900103695,912,Redacted Personal Data,101825
WARRINGTON BOROUGH COUNCIL,http://statistics.data.gov.uk/id/local-authority/00EU,Neighbourhood & Community Services,NCS,Care Purchase - Learning Disability,54450,CP-LongStayExternal,441150,27-Nov-12,1900105273,"12,532.00",Inclusive Lifestyles Ltd,101840
WARRINGTON BOROUGH COUNCIL,http://statistics.data.gov.uk/id/local-authority/00EU,Neighbourhood & Community Services,NCS,Care Purchase - Learning Disability,54450,CP-LongStayExternal,441150,27-Nov-12,1900105274,"1,258.00",Inclusive Lifestyles Ltd,101840
WARRINGTON BOROUGH COUNCIL,http://statistics.data.gov.uk/id/local-authority/00EU,Neighbourhood & Community Services,NCS,Care Purchase - Learning Disability,54450,CP-LongStayExternal,441150,27-Nov-12,1900105275,"1,482.00",Inclusive Lifestyles Ltd,101840
WARRINGTON BOROUGH COUNCIL,http://statistics.data.gov.uk/id/local-authority/00EU,Neighbourhood & Community Services,NCS,Care Purchase - Learning Disability,54450,CP-LongStayExternal,441150,27-Nov-12,1900105276,"12,744.00",Inclusive Lifestyles Ltd,101840
WARRINGTON BOROUGH COUNCIL,http://statistics.data.gov.uk/id/local-authority/00EU,Neighbourhood & Community Services,NCS,Care Purchase - OP & OT South,54480,CP-Nursing Care-External,441200,21-Nov-12,1900104868,"1,965.00",Meridian Healthcare Ltd,101845
WARRINGTON BOROUGH COUNCIL,http://statistics.data.gov.uk/id/local-authority/00EU,Neighbourhood & Community Services,NCS,Care Purchase - OP & OT South,54480,CP-LongStayExternal,441150,21-Nov-12,1900104869,"1,507.00",Meridian Healthcare Ltd,101845
WARRINGTON BOROUGH COUNCIL,http://statistics.data.gov.uk/id/local-authority/00EU,Neighbourhood & Community Services,NCS,Care Purchase - OP & OT Central,54420,CP-Nursing Care-External,441200,21-Nov-12,1900104870,"1,695.00",Meridian Healthcare Ltd,101845
WARRINGTON BOROUGH COUNCIL,http://statistics.data.gov.uk/id/local-authority/00EU,Children & Young People,CHL,Child Disability,32212,Direct Payments,552000,13-Nov-12,1900103697,"1,278.00",Redacted Personal Data,101849
WARRINGTON BOROUGH COUNCIL,http://statistics.data.gov.uk/id/local-authority/00EU,Neighbourhood & Community Services,NCS,Care Purchase -OP & OT East,54430,CP-LongStayExternal,441150,01-Nov-12,1900102778,"1,516.00",Mayfield House Care Home Ltd,101862
WARRINGTON BOROUGH COUNCIL,http://statistics.data.gov.uk/id/local-authority/00EU,Neighbourhood & Community Services,NCS,Care Purchase -OP & OT East,54430,CP-LongStayExternal,441150,27-Nov-12,1900105259,"1,516.00",Mayfield House Care Home Ltd,101862
WARRINGTON BOROUGH COUNCIL,http://statistics.data.gov.uk/id/local-authority/00EU,Neighbourhood & Community Services,NCS,DAT Pooled Budget,53860,Drug Action,443600,09-Nov-12,1900103306,520,Orford Pharmacy,101867
WARRINGTON BOROUGH COUNCIL,http://statistics.data.gov.uk/id/local-authority/00EU,Children & Young People,CHL,Special Schools Transport,33208,Warrington BC Schools Transport,300700,16-Nov-12,1900104255,"2,000.00",Direct Taxis,101873
WARRINGTON BOROUGH COUNCIL,http://statistics.data.gov.uk/id/local-authority/00EU,Children & Young People,CHL,Special Schools Transport,33208,Independent School Transport,301550,16-Nov-12,1900104260,"1,890.00",Direct Taxis,101873
WARRINGTON BOROUGH COUNCIL,http://statistics.data.gov.uk/id/local-authority/00EU,Holding Accounts,HOL,Single Billing Holding Account,91130,Electricity,210000,12-Nov-12,1900103428,"96,969.00",Npower Electricity,101884
WARRINGTON BOROUGH COUNCIL,http://statistics.data.gov.uk/id/local-authority/00EU,Holding Accounts,HOL,Single Billing Holding Account,91130,Electricity,210000,28-Nov-12,1900105433,"93,080.00",Npower Electricity,101884
WARRINGTON BOROUGH COUNCIL,http://statistics.data.gov.uk/id/local-authority/00EU,Holding Accounts,HOL,Single Billing Holding Account,91130,Electricity,210000,28-Nov-12,1900105434,"83,366.00",Npower Electricity,101884
WARRINGTON BOROUGH COUNCIL,http://statistics.data.gov.uk/id/local-authority/00EU,Neighbourhood & Community Services,NCS,Care Purchase Budget,54490,CP - Cont Care - External,441350,01-Nov-12,1900102757,632,Dh Homecare,101961
WARRINGTON BOROUGH COUNCIL,http://statistics.data.gov.uk/id/local-authority/00EU,Neighbourhood & Community Services,NCS,Care Purchase - OP & OT Central,54420,CP-Domicil.External,440950,01-Nov-12,1900102757,"1,300.00",Dh Homecare,101961
WARRINGTON BOROUGH COUNCIL,http://statistics.data.gov.uk/id/local-authority/00EU,Neighbourhood & Community Services,NCS,Care Purchase - PD,54440,CP-Domicil.External,440950,01-Nov-12,1900102757,"3,132.00",Dh Homecare,101961
WARRINGTON BOROUGH COUNCIL,http://statistics.data.gov.uk/id/local-authority/00EU,Neighbourhood & Community Services,NCS,Care Purchase - OP & OT South,54480,CP-Domicil.External,440950,01-Nov-12,1900102757,"18,944.00",Dh Homecare,101961
WARRINGTON BOROUGH COUNCIL,http://statistics.data.gov.uk/id/local-authority/00EU,Holding Accounts,HOL,Single Billing Holding Account,91130,Agency Supply - GF,180000,12-Nov-12,1900103426,"44,493.00",Comensura,102009
WARRINGTON BOROUGH COUNCIL,http://statistics.data.gov.uk/id/local-authority/00EU,Holding Accounts,HOL,Single Billing Holding Account,91130,Agency Supply - GF,180000,12-Nov-12,1900103427,"41,781.00",Comensura,102009
WARRINGTON BOROUGH COUNCIL,http://statistics.data.gov.uk/id/local-authority/00EU,Holding Accounts,HOL,Single Billing Holding Account,91130,Agency Supply - GF,180000,14-Nov-12,1900104123,"41,432.00",Comensura,102009
WARRINGTON BOROUGH COUNCIL,http://statistics.data.gov.uk/id/local-authority/00EU,Holding Accounts,HOL,Single Billing Holding Account,91130,Agency Supply - GF,180000,21-Nov-12,1900104979,"40,654.00",Comensura,102009
WARRINGTON BOROUGH COUNCIL,http://statistics.data.gov.uk/id/local-authority/00EU,Holding Accounts,HOL,Single Billing Holding Account,91130,Agency Supply - GF,180000,28-Nov-12,1900105363,"38,896.00",Comensura,102009
WARRINGTON BOROUGH COUNCIL,http://statistics.data.gov.uk/id/local-authority/00EU,Neighbourhood & Community Services,NCS,Care Purchase - PD,54440,Direct Payments,552000,13-Nov-12,1900103700,652,Redacted Personal Data,102010
WARRINGTON BOROUGH COUNCIL,http://statistics.data.gov.uk/id/local-authority/00EU,Neighbourhood & Community Services,NCS,Care Purchase - OP & OT West,54470,CP-LongStayExternal,441150,01-Nov-12,1900102768,"1,660.00",Manor Park Care Home,102013
WARRINGTON BOROUGH COUNCIL,http://statistics.data.gov.uk/id/local-authority/00EU,Environment & Regeneration,ENP,Environment & Regeneration,82000,Legal Costs Incurred,440200,02-Nov-12,1900102803,"2,200.00",Redacted Personal Data,102113
WARRINGTON BOROUGH COUNCIL,http://statistics.data.gov.uk/id/local-authority/00EU,Environment & Regeneration,ENP,Environment & Regeneration,82000,Consult.& Prof. Serv,440000,05-Nov-12,1900102875,"1,680.00",Capita Symonds Ltd,102122
WARRINGTON BOROUGH COUNCIL,http://statistics.data.gov.uk/id/local-authority/00EU,Children & Young People,CHL,Agency Placements,30904,Fostering Accommodation,441050,05-Nov-12,1900102914,639,National Fostering Agency England,102141
WARRINGTON BOROUGH COUNCIL,http://statistics.data.gov.uk/id/local-authority/00EU,Neighbourhood & Community Services,NCS,Care Purchase - OP & OT West,54470,CP-Nursing Care-External,441200,01-Nov-12,1900102788,"2,628.00",The Turner Home,102163
WARRINGTON BOROUGH COUNCIL,http://statistics.data.gov.uk/id/local-authority/00EU,Neighbourhood & Community Services,NCS,Care Purchase - OP & OT West,54470,CP-LongStayExternal,441150,01-Nov-12,1900102789,"2,544.00",The Turner Home,102163
WARRINGTON BOROUGH COUNCIL,http://statistics.data.gov.uk/id/local-authority/00EU,Neighbourhood & Community Services,NCS,Care Purchase -OP & OT East,54430,CP-Nursing Care-External,441200,01-Nov-12,1900102790,"2,580.00",The Turner Home,102163
WARRINGTON BOROUGH COUNCIL,http://statistics.data.gov.uk/id/local-authority/00EU,Neighbourhood & Community Services,NCS,Care Purchase - ABI,54260,CP-LongStayExternal,441150,02-Nov-12,1900102863,"5,660.00",Thames Health Care Ltd,102170
WARRINGTON BOROUGH COUNCIL,http://statistics.data.gov.uk/id/local-authority/00EU,Neighbourhood & Community Services,NCS,Care Purchase - ABI,54260,CP-LongStayExternal,441150,27-Nov-12,1900105256,"5,660.00",Thames Health Care Ltd,102170
WARRINGTON BOROUGH COUNCIL,http://statistics.data.gov.uk/id/local-authority/00EU,Assistant Chief Executive,CEX,Electoral Registration,11500,Equipment Purchase & Contract,400000,23-Nov-12,1900105127,"3,813.00",Idox Software Ltd,102179
WARRINGTON BOROUGH COUNCIL,http://statistics.data.gov.uk/id/local-authority/00EU,Neighbourhood & Community Services,NCS,Care Purchase - OP & OT Central,54420,Direct Payments,552000,13-Nov-12,1900103704,661,Redacted Personal Data,102183
WARRINGTON BOROUGH COUNCIL,http://statistics.data.gov.uk/id/local-authority/00EU,Neighbourhood & Community Services,NCS,Care Purchase - OP & OT West,54470,CP-Domicil.External,440950,07-Nov-12,1900103131,635,M-Power Activity Services Ltd,102186
WARRINGTON BOROUGH COUNCIL,http://statistics.data.gov.uk/id/local-authority/00EU,Neighbourhood & Community Services,NCS,Care Purchase - Learning Disability,54450,CP-Domicil.External,440950,07-Nov-12,1900103131,"1,983.00",M-Power Activity Services Ltd,102186
WARRINGTON BOROUGH COUNCIL,http://statistics.data.gov.uk/id/local-authority/00EU,Assistant Chief Executive,CEX,Coroners Service,11100,Post Mortem Fees-Rep,440250,30-Nov-12,1900105494,"3,252.00",Dr P Simcock,102209
WARRINGTON BOROUGH COUNCIL,http://statistics.data.gov.uk/id/local-authority/00EU,Neighbourhood & Community Services,NCS,Care Purchase - Learning Disability,54450,Direct Payments,552000,13-Nov-12,1900103705,719,Redacted Personal Data,102217
WARRINGTON BOROUGH COUNCIL,http://statistics.data.gov.uk/id/local-authority/00EU,Neighbourhood & Community Services,NCS,Care Purchase - PD,54440,Direct Payments,552000,13-Nov-12,1900103706,"1,509.00",Redacted Personal Data,102222
WARRINGTON BOROUGH COUNCIL,http://statistics.data.gov.uk/id/local-authority/00EU,Neighbourhood & Community Services,NCS,Care Purchase - PD,54440,CP Adult Placement,443450,28-Nov-12,1900105359,"1,528.00",Redacted Personal Data,102249
WARRINGTON BOROUGH COUNCIL,http://statistics.data.gov.uk/id/local-authority/00EU,Assistant Chief Executive,CEX,Council Tax & Recovery,10320,Court Costs,460100,06-Nov-12,1900103033,"2,019.00",Hmcs North Cheshire Collections,102261
WARRINGTON BOROUGH COUNCIL,http://statistics.data.gov.uk/id/local-authority/00EU,Neighbourhood & Community Services,NCS,Care Purchase - Learning Disability,54450,Supporting People - External,441250,15-Nov-12,1900104186,598,Care Uk Care Solutions Ltd,102263
WARRINGTON BOROUGH COUNCIL,http://statistics.data.gov.uk/id/local-authority/00EU,Neighbourhood & Community Services,NCS,Care Purchase - Learning Disability,54450,Supporting People - External,441250,15-Nov-12,1900104187,927,Care Uk Care Solutions Ltd,102263
WARRINGTON BOROUGH COUNCIL,http://statistics.data.gov.uk/id/local-authority/00EU,Neighbourhood & Community Services,NCS,Care Purchase - Learning Disability,54450,CP-Domicil.External,440950,15-Nov-12,1900104187,"4,224.00",Care Uk Care Solutions Ltd,102263
WARRINGTON BOROUGH COUNCIL,http://statistics.data.gov.uk/id/local-authority/00EU,Neighbourhood & Community Services,NCS,Care Purchase - Learning Disability,54450,CP-Domicil.External,440950,15-Nov-12,1900104188,"3,953.00",Care Uk Care Solutions Ltd,102263
WARRINGTON BOROUGH COUNCIL,http://statistics.data.gov.uk/id/local-authority/00EU,Neighbourhood & Community Services,NCS,Care Purchase - Learning Disability,54450,CP-Domicil.External,440950,15-Nov-12,1900104189,"4,172.00",Care Uk Care Solutions Ltd,102263
WARRINGTON BOROUGH COUNCIL,http://statistics.data.gov.uk/id/local-authority/00EU,Neighbourhood & Community Services,NCS,Care Purchase - Learning Disability,54450,CP-Domicil.External,440950,15-Nov-12,1900104190,"3,294.00",Care Uk Care Solutions Ltd,102263
WARRINGTON BOROUGH COUNCIL,http://statistics.data.gov.uk/id/local-authority/00EU,Neighbourhood & Community Services,NCS,Care Purchase - Learning Disability,54450,CP-Domicil.External,440950,15-Nov-12,1900104191,"4,050.00",Care Uk Care Solutions Ltd,102263
WARRINGTON BOROUGH COUNCIL,http://statistics.data.gov.uk/id/local-authority/00EU,Neighbourhood & Community Services,NCS,Care Purchase - Learning Disability,54450,Supporting People - External,441250,15-Nov-12,1900104192,976,Care Uk Care Solutions Ltd,102263
WARRINGTON BOROUGH COUNCIL,http://statistics.data.gov.uk/id/local-authority/00EU,Neighbourhood & Community Services,NCS,Care Purchase - Learning Disability,54450,Supporting People - External,441250,15-Nov-12,1900104194,683,Care Uk Care Solutions Ltd,102263
WARRINGTON BOROUGH COUNCIL,http://statistics.data.gov.uk/id/local-authority/00EU,Neighbourhood & Community Services,NCS,Care Purchase - Learning Disability,54450,CP-Domicil.External,440950,16-Nov-12,1900104261,732,Care Uk Care Solutions Ltd,102263
WARRINGTON BOROUGH COUNCIL,http://statistics.data.gov.uk/id/local-authority/00EU,Neighbourhood & Community Services,NCS,Care Purchase - Learning Disability,54450,CP-Domicil.External,440950,16-Nov-12,1900104263,"2,096.00",Care Uk Care Solutions Ltd,102263
WARRINGTON BOROUGH COUNCIL,http://statistics.data.gov.uk/id/local-authority/00EU,Neighbourhood & Community Services,NCS,Care Purchase - Learning Disability,54450,CP-Domicil.External,440950,16-Nov-12,1900104264,"1,865.00",Care Uk Care Solutions Ltd,102263
WARRINGTON BOROUGH COUNCIL,http://statistics.data.gov.uk/id/local-authority/00EU,Neighbourhood & Community Services,NCS,Care Purchase - Learning Disability,54450,CP-Domicil.External,440950,16-Nov-12,1900104265,"1,998.00",Care Uk Care Solutions Ltd,102263
WARRINGTON BOROUGH COUNCIL,http://statistics.data.gov.uk/id/local-authority/00EU,Neighbourhood & Community Services,NCS,Care Purchase - Learning Disability,54450,CP-Domicil.External,440950,16-Nov-12,1900104266,"2,145.00",Care Uk Care Solutions Ltd,102263
WARRINGTON BOROUGH COUNCIL,http://statistics.data.gov.uk/id/local-authority/00EU,Neighbourhood & Community Services,NCS,Care Purchase - Learning Disability,54450,CP-Domicil.External,440950,16-Nov-12,1900104267,"10,154.00",Care Uk Care Solutions Ltd,102263
WARRINGTON BOROUGH COUNCIL,http://statistics.data.gov.uk/id/local-authority/00EU,Neighbourhood & Community Services,NCS,Care Purchase - Learning Disability,54450,CP-Domicil.External,440950,16-Nov-12,1900104268,"1,614.00",Care Uk Care Solutions Ltd,102263
WARRINGTON BOROUGH COUNCIL,http://statistics.data.gov.uk/id/local-authority/00EU,Neighbourhood & Community Services,NCS,Care Purchase - Learning Disability,54450,Supporting People - External,441250,16-Nov-12,1900104268,"4,782.00",Care Uk Care Solutions Ltd,102263
WARRINGTON BOROUGH COUNCIL,http://statistics.data.gov.uk/id/local-authority/00EU,Neighbourhood & Community Services,NCS,Care Purchase - Learning Disability,54450,CP-Domicil.External,440950,16-Nov-12,1900104271,659,Care Uk Care Solutions Ltd,102263
WARRINGTON BOROUGH COUNCIL,http://statistics.data.gov.uk/id/local-authority/00EU,Neighbourhood & Community Services,NCS,Care Purchase - Learning Disability,54450,Supporting People - External,441250,16-Nov-12,1900104273,732,Care Uk Care Solutions Ltd,102263
WARRINGTON BOROUGH COUNCIL,http://statistics.data.gov.uk/id/local-authority/00EU,Environment & Regeneration,ER0,New Town House,43119,Trade Refuse Charges,440700,13-Nov-12,1900103442,"1,086.00",B & M Waste,102293
WARRINGTON BOROUGH COUNCIL,http://statistics.data.gov.uk/id/local-authority/00EU,Neighbourhood & Community Services,NCS,Care Purchase - OP & OT South,54480,CP-Nursing Care-External,441200,13-Nov-12,1900103451,"1,532.00",Flightcare Limited,102299
WARRINGTON BOROUGH COUNCIL,http://statistics.data.gov.uk/id/local-authority/00EU,Neighbourhood & Community Services,NCS,Care Purchase - OP & OT South,54480,CP-LongStayExternal,441150,21-Nov-12,1900104864,"1,532.00",Longview Care Home Ltd,102331
WARRINGTON BOROUGH COUNCIL,http://statistics.data.gov.uk/id/local-authority/00EU,Neighbourhood & Community Services,NCS,Care Purchase - OP & OT South,54480,CP-LongStayExternal,441150,21-Nov-12,1900104865,"1,532.00",Longview Care Home Ltd,102331
WARRINGTON BOROUGH COUNCIL,http://statistics.data.gov.uk/id/local-authority/00EU,Neighbourhood & Community Services,NCS,Care Purchase - Learning Disability,54450,Direct Payments,552000,13-Nov-12,1900103708,"1,103.00",Redacted Personal Data,102348
WARRINGTON BOROUGH COUNCIL,http://statistics.data.gov.uk/id/local-authority/00EU,Environment & Regeneration,ER0,Estates & Valuation,43520,Agency Supply - GF,180000,07-Nov-12,1900103117,"1,106.00",Nuttallroberts Ltd,102450
WARRINGTON BOROUGH COUNCIL,http://statistics.data.gov.uk/id/local-authority/00EU,Environment & Regeneration,ER0,Estates & Valuation,43520,Agency Supply - GF,180000,30-Nov-12,1900105580,975,Nuttallroberts Ltd,102450
WARRINGTON BOROUGH COUNCIL,http://statistics.data.gov.uk/id/local-authority/00EU,Environment & Regeneration,ER0,Estates & Valuation,43520,Agency Supply - GF,180000,30-Nov-12,1900105581,"1,119.00",Nuttallroberts Ltd,102450
WARRINGTON BOROUGH COUNCIL,http://statistics.data.gov.uk/id/local-authority/00EU,Environment & Regeneration,ER0,Estates & Valuation,43520,Agency Supply - GF,180000,30-Nov-12,1900105582,"1,106.00",Nuttallroberts Ltd,102450
WARRINGTON BOROUGH COUNCIL,http://statistics.data.gov.uk/id/local-authority/00EU,Neighbourhood & Community Services,NCS,Care Purchase - Learning Disability,54450,CP-LongStayExternal,441150,27-Nov-12,1900105291,"3,508.00",Potens Ltd TA Heath Lodge,102481
WARRINGTON BOROUGH COUNCIL,http://statistics.data.gov.uk/id/local-authority/00EU,Neighbourhood & Community Services,NCS,Neighbourhood Co-o Central,51309,Payment of Grants,470050,21-Nov-12,1900104905,"2,175.00",Stay & Play,102502
WARRINGTON BOROUGH COUNCIL,http://statistics.data.gov.uk/id/local-authority/00EU,Neighbourhood & Community Services,NCS,Care Purchase - Learning Disability,54450,CP-Nursing Care-External,441200,21-Nov-12,1900104944,"3,588.00",Stocks Hall Care Homes Ltd,102512
WARRINGTON BOROUGH COUNCIL,http://statistics.data.gov.uk/id/local-authority/00EU,Neighbourhood & Community Services,NCS,Care Purchase Budget,54490,CP ExternalOther Exp,440800,13-Nov-12,1900103457,"5,461.00",Leyton Healthcare,102517
WARRINGTON BOROUGH COUNCIL,http://statistics.data.gov.uk/id/local-authority/00EU,Neighbourhood & Community Services,NCS,Care Purchase Budget,54490,CP ExternalOther Exp,440800,13-Nov-12,1900103522,"167,000.00",Leyton Healthcare,102517
WARRINGTON BOROUGH COUNCIL,http://statistics.data.gov.uk/id/local-authority/00EU,Neighbourhood & Community Services,NCS,Care Purchase - OP & OT West,54470,CP-LongStayExternal,441150,06-Nov-12,1900103000,"1,904.00",Orchard Care Homes,102524
WARRINGTON BOROUGH COUNCIL,http://statistics.data.gov.uk/id/local-authority/00EU,Neighbourhood & Community Services,NCS,Care Purchase - Learning Disability,54450,Direct Payments,552000,13-Nov-12,1900103709,600,Redacted Personal Data,102547
WARRINGTON BOROUGH COUNCIL,http://statistics.data.gov.uk/id/local-authority/00EU,Children & Young People,CYP,Childrens Other,81004,ICT Comms - Equipment Purchase,450100,20-Nov-12,1900104385,"2,865.00",Lanway Corporate Business Systems,102559
WARRINGTON BOROUGH COUNCIL,http://statistics.data.gov.uk/id/local-authority/00EU,Environment & Regeneration,ENO,Housing Projects,82008,Disabled Persons Grant 1996,554000,06-Nov-12,1900102993,"3,547.00",R Hough & Co,102596
WARRINGTON BOROUGH COUNCIL,http://statistics.data.gov.uk/id/local-authority/00EU,Neighbourhood & Community Services,NCS,Care Purchase - Learning Disability,54450,Direct Payments,552000,13-Nov-12,1900103714,849,Redacted Personal Data,102667
WARRINGTON BOROUGH COUNCIL,http://statistics.data.gov.uk/id/local-authority/00EU,Neighbourhood & Community Services,NCS,Care Purchase - Learning Disability,54450,Direct Payments,552000,13-Nov-12,1900103715,"1,570.00",Redacted Personal Data,102688
WARRINGTON BOROUGH COUNCIL,http://statistics.data.gov.uk/id/local-authority/00EU,Neighbourhood & Community Services,NCS,Care Purchase - Learning Disability,54450,Direct Payments,552000,13-Nov-12,1900103716,"1,273.00",Redacted Personal Data,102710
WARRINGTON BOROUGH COUNCIL,http://statistics.data.gov.uk/id/local-authority/00EU,Neighbourhood & Community Services,NCS,Care Purchase - Learning Disability,54450,Direct Payments,552000,13-Nov-12,1900103717,849,Redacted Personal Data,102718
WARRINGTON BOROUGH COUNCIL,http://statistics.data.gov.uk/id/local-authority/00EU,Neighbourhood & Community Services,NCS,Care Purchase - Learning Disability,54450,Direct Payments,552000,13-Nov-12,1900103718,900,Redacted Personal Data,102759
WARRINGTON BOROUGH COUNCIL,http://statistics.data.gov.uk/id/local-authority/00EU,Neighbourhood & Community Services,NCS,Care Purchase - Learning Disability,54450,CP-Nursing Care-External,441200,21-Nov-12,1900104913,"8,212.00",Community Care Matters Limited,102791
WARRINGTON BOROUGH COUNCIL,http://statistics.data.gov.uk/id/local-authority/00EU,Neighbourhood & Community Services,NCS,Care Purchase - Learning Disability,54450,CP - Cont Care - External,441350,21-Nov-12,1900104913,"19,408.00",Community Care Matters Limited,102791
WARRINGTON BOROUGH COUNCIL,http://statistics.data.gov.uk/id/local-authority/00EU,Neighbourhood & Community Services,NCS,Care Purchase - Learning Disability,54450,CP-LongStayExternal,441150,21-Nov-12,1900104914,"8,464.00",Community Care Matters Limited,102791
WARRINGTON BOROUGH COUNCIL,http://statistics.data.gov.uk/id/local-authority/00EU,Neighbourhood & Community Services,NCS,Care Purchase Budget,54490,CP - Cont Care - External,441350,21-Nov-12,1900104914,"20,100.00",Community Care Matters Limited,102791
WARRINGTON BOROUGH COUNCIL,http://statistics.data.gov.uk/id/local-authority/00EU,Neighbourhood & Community Services,NCS,Care Purchase - Learning Disability,54450,CP-Day Care-External,441100,21-Nov-12,1900104893,"18,272.00",Walton Lea Project,102953
WARRINGTON BOROUGH COUNCIL,http://statistics.data.gov.uk/id/local-authority/00EU,Environment & Regeneration,ER0,Core Operational Business,41730,Works Contract Paymt,442500,20-Nov-12,1900104845,"10,867.00",Assist Streetcare,102956
WARRINGTON BOROUGH COUNCIL,http://statistics.data.gov.uk/id/local-authority/00EU,Environment & Regeneration,ER0,Core Operational Business,41730,Works Contract Paymt,442500,20-Nov-12,1900104847,"5,381.00",Assist Streetcare,102956
WARRINGTON BOROUGH COUNCIL,http://statistics.data.gov.uk/id/local-authority/00EU,Environment & Regeneration,ER0,Core Operational Business,41730,Works Contract Paymt,442500,20-Nov-12,1900104849,"4,973.00",Assist Streetcare,102956
WARRINGTON BOROUGH COUNCIL,http://statistics.data.gov.uk/id/local-authority/00EU,Environment & Regeneration,ER0,Core Operational Business,41730,Works Contract Paymt,442500,20-Nov-12,1900104851,"6,725.00",Assist Streetcare,102956
WARRINGTON BOROUGH COUNCIL,http://statistics.data.gov.uk/id/local-authority/00EU,Environment & Regeneration,ER0,Core Operational Business,41730,Works Contract Paymt,442500,21-Nov-12,1900104880,"20,965.00",Assist Streetcare,102956
WARRINGTON BOROUGH COUNCIL,http://statistics.data.gov.uk/id/local-authority/00EU,Environment & Regeneration,ER0,Core Operational Business,41730,Works Contract Paymt,442500,21-Nov-12,1900104882,"4,915.00",Assist Streetcare,102956
WARRINGTON BOROUGH COUNCIL,http://statistics.data.gov.uk/id/local-authority/00EU,Environment & Regeneration,ER0,Core Operational Business,41730,Works Contract Paymt,442500,21-Nov-12,1900104886,"20,965.00",Assist Streetcare,102956
WARRINGTON BOROUGH COUNCIL,http://statistics.data.gov.uk/id/local-authority/00EU,Children & Young People,CHL,DSG Early Years PVI Settings,32417,Private & Voluntary 3 Year Olds,470100,14-Nov-12,1900104086,"1,500.00",Kids Planet Day Nursery Lymm,102992
WARRINGTON BOROUGH COUNCIL,http://statistics.data.gov.uk/id/local-authority/00EU,Neighbourhood & Community Services,NCS,Care Purchase - OP & OT South,54480,Direct Payments,552000,13-Nov-12,1900103721,627,Redacted Personal Data,103028
WARRINGTON BOROUGH COUNCIL,http://statistics.data.gov.uk/id/local-authority/00EU,Neighbourhood & Community Services,NCS,Care Purchase - OP & OT South,54480,CP-LongStayExternal,441150,01-Nov-12,1900102748,"1,949.00",Ashley House Residential Home,103045
WARRINGTON BOROUGH COUNCIL,http://statistics.data.gov.uk/id/local-authority/00EU,Children & Young People,CHL,DSG Early Years PVI Settings,32417,Private & Voluntary 3 Year Olds,470100,14-Nov-12,1900104104,"1,500.00",St Monica Catholic Pre School,103081
WARRINGTON BOROUGH COUNCIL,http://statistics.data.gov.uk/id/local-authority/00EU,Neighbourhood & Community Services,NCS,Care Purchase - Learning Disability,54450,CP-Domicil.External,440950,07-Nov-12,1900103123,504,Seashell Trust,103082
WARRINGTON BOROUGH COUNCIL,http://statistics.data.gov.uk/id/local-authority/00EU,Neighbourhood & Community Services,NCS,Care Purchase - Learning Disability,54450,Voids,515150,26-Nov-12,1900105147,"22,142.00",Warrington Housing Association,103168
WARRINGTON BOROUGH COUNCIL,http://statistics.data.gov.uk/id/local-authority/00EU,Environment & Regeneration,ER0,Development Control,43430,Consult.& Prof. Serv,440000,02-Nov-12,1900102862,"3,019.00",Urban Vision Partnership Ltd,103202
WARRINGTON BOROUGH COUNCIL,http://statistics.data.gov.uk/id/local-authority/00EU,Neighbourhood & Community Services,NCS,Carers Co-ordinator,53240,CP - Cont Care - External,441350,22-Nov-12,1900105017,727,Safehands Network Ltd,103226
WARRINGTON BOROUGH COUNCIL,http://statistics.data.gov.uk/id/local-authority/00EU,Neighbourhood & Community Services,NCS,Care Purchase - Hospital Discharge Team,54280,CP-Domicil.External,440950,22-Nov-12,1900105017,981,Safehands Network Ltd,103226
WARRINGTON BOROUGH COUNCIL,http://statistics.data.gov.uk/id/local-authority/00EU,Neighbourhood & Community Services,NCS,Care Purchase - PD,54440,CP-Domicil.External,440950,22-Nov-12,1900105017,"1,294.00",Safehands Network Ltd,103226
WARRINGTON BOROUGH COUNCIL,http://statistics.data.gov.uk/id/local-authority/00EU,Neighbourhood & Community Services,NCS,Care Purchase - OP & OT Central,54420,CP-Domicil.External,440950,22-Nov-12,1900105017,"5,658.00",Safehands Network Ltd,103226
WARRINGTON BOROUGH COUNCIL,http://statistics.data.gov.uk/id/local-authority/00EU,Neighbourhood & Community Services,NCS,Care Purchase - OP & OT West,54470,CP-Domicil.External,440950,22-Nov-12,1900105017,"10,952.00",Safehands Network Ltd,103226
WARRINGTON BOROUGH COUNCIL,http://statistics.data.gov.uk/id/local-authority/00EU,Neighbourhood & Community Services,NCS,Care Purchase - OP & OT South,54480,CP-Domicil.External,440950,22-Nov-12,1900105017,"11,140.00",Safehands Network Ltd,103226
WARRINGTON BOROUGH COUNCIL,http://statistics.data.gov.uk/id/local-authority/00EU,Neighbourhood & Community Services,NCS,Care Purchase -OP & OT East,54430,CP-Domicil.External,440950,22-Nov-12,1900105017,"12,433.00",Safehands Network Ltd,103226
WARRINGTON BOROUGH COUNCIL,http://statistics.data.gov.uk/id/local-authority/00EU,Neighbourhood & Community Services,NCS,Care Purchase Budget,54490,CP - Cont Care - External,441350,07-Nov-12,1900103124,"2,178.00",Home Instead Senior Care,103236
WARRINGTON BOROUGH COUNCIL,http://statistics.data.gov.uk/id/local-authority/00EU,Neighbourhood & Community Services,NCS,Care Purchase Budget,54490,CP - Cont Care - External,441350,27-Nov-12,1900105324,"2,178.00",Home Instead Senior Care,103236
WARRINGTON BOROUGH COUNCIL,http://statistics.data.gov.uk/id/local-authority/00EU,Children & Young People,CHL,Placement Support Team,31103,Car Leasing Charges,350000,26-Nov-12,1700006023,"1,386.00",Arnold Clark Finance Ltd,103263
WARRINGTON BOROUGH COUNCIL,http://statistics.data.gov.uk/id/local-authority/00EU,Children & Young People,CHL,Duty and Assessment Team,31000,Car Leasing Charges,350000,20-Nov-12,1900104329,"1,386.00",Arnold Clark Finance Ltd,103263
WARRINGTON BOROUGH COUNCIL,http://statistics.data.gov.uk/id/local-authority/00EU,Children & Young People,CHL,Duty and Assessment Team,31000,Car Leasing Charges,350000,21-Nov-12,1900104860,927,Arnold Clark Finance Ltd,103263
WARRINGTON BOROUGH COUNCIL,http://statistics.data.gov.uk/id/local-authority/00EU,Environment & Regeneration,ER0,Env. Health Public Protection,41530,Car Leasing Charges,350000,28-Nov-12,1900105339,"3,017.00",Arnold Clark Finance Ltd,103263
WARRINGTON BOROUGH COUNCIL,http://statistics.data.gov.uk/id/local-authority/00EU,Neighbourhood & Community Services,NCS,Care Purchase - PD,54440,Direct Payments,552000,13-Nov-12,1900103729,935,Redacted Personal Data,103320
WARRINGTON BOROUGH COUNCIL,http://statistics.data.gov.uk/id/local-authority/00EU,Neighbourhood & Community Services,NCS,Care Purchase - PD,54440,Direct Payments,552000,13-Nov-12,1900103730,"1,740.00",Redacted Personal Data,103372
WARRINGTON BOROUGH COUNCIL,http://statistics.data.gov.uk/id/local-authority/00EU,Neighbourhood & Community Services,NCS,Care Purchase - PD,54440,Direct Payments,552000,13-Nov-12,1900103731,"1,732.00",Redacted Personal Data,103404
WARRINGTON BOROUGH COUNCIL,http://statistics.data.gov.uk/id/local-authority/00EU,Children & Young People,CHL,Agency Placements,30904,CP ExternalOther Exp,440800,14-Nov-12,1900104147,735,Bed Space,103530
WARRINGTON BOROUGH COUNCIL,http://statistics.data.gov.uk/id/local-authority/00EU,Children & Young People,CHL,Agency Placements,30904,CP ExternalOther Exp,440800,23-Nov-12,1900105078,650,Bed Space,103530
WARRINGTON BOROUGH COUNCIL,http://statistics.data.gov.uk/id/local-authority/00EU,Children & Young People,CHL,Agency Placements,30904,CP ExternalOther Exp,440800,23-Nov-12,1900105080,550,Bed Space,103530
WARRINGTON BOROUGH COUNCIL,http://statistics.data.gov.uk/id/local-authority/00EU,Children & Young People,CHL,Agency Placements,30904,CP ExternalOther Exp,440800,23-Nov-12,1900105084,650,Bed Space,103530
WARRINGTON BOROUGH COUNCIL,http://statistics.data.gov.uk/id/local-authority/00EU,Children & Young People,CHL,Agency Placements,30904,CP ExternalOther Exp,440800,23-Nov-12,1900105086,550,Bed Space,103530
WARRINGTON BOROUGH COUNCIL,http://statistics.data.gov.uk/id/local-authority/00EU,Children & Young People,CHL,Domestic Abuse,31206,Domestic Violence,490300,23-Nov-12,1900105090,650,Bed Space,103530
WARRINGTON BOROUGH COUNCIL,http://statistics.data.gov.uk/id/local-authority/00EU,Children & Young People,CHL,Agency Placements,30904,CP ExternalOther Exp,440800,23-Nov-12,1900105092,550,Bed Space,103530
WARRINGTON BOROUGH COUNCIL,http://statistics.data.gov.uk/id/local-authority/00EU,Children & Young People,CHL,Agency Placements,30904,CP ExternalOther Exp,440800,23-Nov-12,1900105099,550,Bed Space,103530
WARRINGTON BOROUGH COUNCIL,http://statistics.data.gov.uk/id/local-authority/00EU,Children & Young People,CHL,Agency Placements,30904,CP ExternalOther Exp,440800,23-Nov-12,1900105102,650,Bed Space,103530
WARRINGTON BOROUGH COUNCIL,http://statistics.data.gov.uk/id/local-authority/00EU,Neighbourhood & Community Services,NCS,Care Purchase - PD,54440,Direct Payments,552000,13-Nov-12,1900103739,"1,109.00",Redacted Personal Data,103587
WARRINGTON BOROUGH COUNCIL,http://statistics.data.gov.uk/id/local-authority/00EU,Neighbourhood & Community Services,NCS,Care Purchase - OP & OT West,54470,CP-Nursing Care-External,441200,05-Nov-12,1900102961,"1,427.00",Four Seasons Ta Cherry Trees,103592
WARRINGTON BOROUGH COUNCIL,http://statistics.data.gov.uk/id/local-authority/00EU,Neighbourhood & Community Services,NCS,Care Purchase - PD,54440,Direct Payments,552000,13-Nov-12,1900103740,952,Redacted Personal Data,103593
WARRINGTON BOROUGH COUNCIL,http://statistics.data.gov.uk/id/local-authority/00EU,Neighbourhood & Community Services,NCS,Care Purchase - OP & OT South,54480,CP-LongStayExternal,441150,13-Nov-12,1900103482,"1,898.00",Lady Elsie Finney House Lancashire,103595
WARRINGTON BOROUGH COUNCIL,http://statistics.data.gov.uk/id/local-authority/00EU,Children & Young People,CYP,Childrens Other,81004,Contract Works,492550,15-Nov-12,1900104162,"9,016.00",Hartwell Developments,103603
WARRINGTON BOROUGH COUNCIL,http://statistics.data.gov.uk/id/local-authority/00EU,Children & Young People,CYP,Secondary,81002,Contract Works,492550,22-Nov-12,1900105020,"7,290.00",Hartwell Developments,103603
WARRINGTON BOROUGH COUNCIL,http://statistics.data.gov.uk/id/local-authority/00EU,Neighbourhood & Community Services,NCS,Care Purchase - Learning Disability,54450,Direct Payments,552000,13-Nov-12,1900103741,"1,167.00",Redacted Personal Data,103611
WARRINGTON BOROUGH COUNCIL,http://statistics.data.gov.uk/id/local-authority/00EU,Neighbourhood & Community Services,NCS,Care Purchase - PD,54440,Direct Payments,552000,13-Nov-12,1900103742,"1,594.00",Redacted Personal Data,103613
WARRINGTON BOROUGH COUNCIL,http://statistics.data.gov.uk/id/local-authority/00EU,Neighbourhood & Community Services,NCS,Care Purchase - Learning Disability,54450,Direct Payments,552000,13-Nov-12,1900103743,"1,641.00",Redacted Personal Data,103614
WARRINGTON BOROUGH COUNCIL,http://statistics.data.gov.uk/id/local-authority/00EU,Environment & Regeneration,ENP,Environment & Regeneration,82000,Consult.& Prof. Serv,440000,05-Nov-12,1900102886,"1,200.00",Sda Consulting Llp,103628
WARRINGTON BOROUGH COUNCIL,http://statistics.data.gov.uk/id/local-authority/00EU,Assistant Chief Executive,CEX,HOS Finance,10000,Training,190150,05-Nov-12,1900102878,514,CIPFA Business Limited,103650
WARRINGTON BOROUGH COUNCIL,http://statistics.data.gov.uk/id/local-authority/00EU,Neighbourhood & Community Services,NCS,Care Purchase - Learning Disability,54450,CP Adult Placement,443450,08-Nov-12,1900103165,518,Redacted Personal Data,103658
WARRINGTON BOROUGH COUNCIL,http://statistics.data.gov.uk/id/local-authority/00EU,Neighbourhood & Community Services,NCS,Care Purchase - Learning Disability,54450,Direct Payments,552000,13-Nov-12,1900103745,964,Redacted Personal Data,103660
WARRINGTON BOROUGH COUNCIL,http://statistics.data.gov.uk/id/local-authority/00EU,Neighbourhood & Community Services,NCS,Care Purchase - PD,54440,Direct Payments,552000,13-Nov-12,1900103746,"1,105.00",Redacted Personal Data,103668
WARRINGTON BOROUGH COUNCIL,http://statistics.data.gov.uk/id/local-authority/00EU,Neighbourhood & Community Services,NCS,Care Purchase - PD,54440,Direct Payments,552000,13-Nov-12,1900103747,896,Redacted Personal Data,103674
WARRINGTON BOROUGH COUNCIL,http://statistics.data.gov.uk/id/local-authority/00EU,Neighbourhood & Community Services,NCS,Care Purchase - Learning Disability,54450,CP-LongStayExternal,441150,21-Nov-12,1900104933,"10,388.00",Bank Hall Farm,103693
WARRINGTON BOROUGH COUNCIL,http://statistics.data.gov.uk/id/local-authority/00EU,Neighbourhood & Community Services,NCS,Care Purchase - Learning Disability,54450,Direct Payments,552000,06-Nov-12,1900103076,"2,501.00",Redacted Personal Data,103696
WARRINGTON BOROUGH COUNCIL,http://statistics.data.gov.uk/id/local-authority/00EU,Neighbourhood & Community Services,NCS,Care Purchase - Learning Disability,54450,Direct Payments,552000,13-Nov-12,1900103748,"2,060.00",Redacted Personal Data,103696
WARRINGTON BOROUGH COUNCIL,http://statistics.data.gov.uk/id/local-authority/00EU,Neighbourhood & Community Services,NCS,Care Purchase - Learning Disability,54450,Direct Payments,552000,13-Nov-12,1900103749,"1,146.00",Redacted Personal Data,103697
WARRINGTON BOROUGH COUNCIL,http://statistics.data.gov.uk/id/local-authority/00EU,Children & Young People,CHL,Foster Allowances,31106,Travel Allowance,550250,30-Nov-12,1900105510,529,Redacted Personal Data,103715
WARRINGTON BOROUGH COUNCIL,http://statistics.data.gov.uk/id/local-authority/00EU,Neighbourhood & Community Services,NCS,Care Purchase - OP & OT Central,54420,Direct Payments,552000,13-Nov-12,1900103751,881,Redacted Personal Data,103723
WARRINGTON BOROUGH COUNCIL,http://statistics.data.gov.uk/id/local-authority/00EU,Neighbourhood & Community Services,NCS,Care Purchase - PD,54440,Direct Payments,552000,13-Nov-12,1900103754,"2,443.00",Redacted Personal Data,103730
WARRINGTON BOROUGH COUNCIL,http://statistics.data.gov.uk/id/local-authority/00EU,Neighbourhood & Community Services,NCS,Care Purchase - Learning Disability,54450,Direct Payments,552000,13-Nov-12,1900103758,"9,177.00",Redacted Personal Data,103771
WARRINGTON BOROUGH COUNCIL,http://statistics.data.gov.uk/id/local-authority/00EU,Neighbourhood & Community Services,NCS,Care Purchase - PD,54440,Direct Payments,552000,13-Nov-12,1900103759,"1,061.00",Redacted Personal Data,103794
WARRINGTON BOROUGH COUNCIL,http://statistics.data.gov.uk/id/local-authority/00EU,Neighbourhood & Community Services,NCS,Care Purchase - OP & OT Central,54420,Direct Payments,552000,13-Nov-12,1900103602,739,Redacted Personal Data,103802
WARRINGTON BOROUGH COUNCIL,http://statistics.data.gov.uk/id/local-authority/00EU,Neighbourhood & Community Services,NCS,Care Purchase - OP & OT Central,54420,Direct Payments,552000,13-Nov-12,1900103760,739,Redacted Personal Data,103802
WARRINGTON BOROUGH COUNCIL,http://statistics.data.gov.uk/id/local-authority/00EU,Children & Young People,CHL,Child Disability,32212,Direct Payments,552000,13-Nov-12,1900103761,502,Redacted Personal Data,103820
WARRINGTON BOROUGH COUNCIL,http://statistics.data.gov.uk/id/local-authority/00EU,Neighbourhood & Community Services,NCS,Care Purchase - Learning Disability,54450,CP-LongStayExternal,441150,23-Nov-12,1900105051,"3,477.00",Manor Care Centre,103831
WARRINGTON BOROUGH COUNCIL,http://statistics.data.gov.uk/id/local-authority/00EU,Neighbourhood & Community Services,NCS,Care Purchase - Learning Disability,54450,Direct Payments,552000,13-Nov-12,1900103763,672,Redacted Personal Data,103832
WARRINGTON BOROUGH COUNCIL,http://statistics.data.gov.uk/id/local-authority/00EU,Neighbourhood & Community Services,NCS,Care Purchase - PD,54440,Direct Payments,552000,13-Nov-12,1900103764,800,Redacted Personal Data,103871
WARRINGTON BOROUGH COUNCIL,http://statistics.data.gov.uk/id/local-authority/00EU,Neighbourhood & Community Services,NCS,Care Purchase - OP & OT South,54480,CP-Nursing Care-External,441200,06-Nov-12,1900102985,"2,064.00",St Monica Trust,104021
WARRINGTON BOROUGH COUNCIL,http://statistics.data.gov.uk/id/local-authority/00EU,Neighbourhood & Community Services,NCS,Care Purchase - Mental Health Team 1,54230,CP-Domicil.External,440950,02-Nov-12,1900102840,535,Bluebird Care Warrington,104094
WARRINGTON BOROUGH COUNCIL,http://statistics.data.gov.uk/id/local-authority/00EU,Neighbourhood & Community Services,NCS,Care Purchase - OPMH,54220,CP-Domicil.External,440950,02-Nov-12,1900102840,635,Bluebird Care Warrington,104094
WARRINGTON BOROUGH COUNCIL,http://statistics.data.gov.uk/id/local-authority/00EU,Neighbourhood & Community Services,NCS,Care Purchase - Mental Health Team 2,54240,CP-Domicil.External,440950,02-Nov-12,1900102840,782,Bluebird Care Warrington,104094
WARRINGTON BOROUGH COUNCIL,http://statistics.data.gov.uk/id/local-authority/00EU,Neighbourhood & Community Services,NCS,Care Purchase - Hospital Discharge Team,54280,CP-Domicil.External,440950,02-Nov-12,1900102840,"1,274.00",Bluebird Care Warrington,104094
WARRINGTON BOROUGH COUNCIL,http://statistics.data.gov.uk/id/local-authority/00EU,Neighbourhood & Community Services,NCS,Care Purchase Budget,54490,CP - Cont Care - External,441350,02-Nov-12,1900102840,"1,803.00",Bluebird Care Warrington,104094
WARRINGTON BOROUGH COUNCIL,http://statistics.data.gov.uk/id/local-authority/00EU,Neighbourhood & Community Services,NCS,Care Purchase - OP & OT Central,54420,CP-Domicil.External,440950,02-Nov-12,1900102840,"4,179.00",Bluebird Care Warrington,104094
WARRINGTON BOROUGH COUNCIL,http://statistics.data.gov.uk/id/local-authority/00EU,Neighbourhood & Community Services,NCS,Care Purchase - OP & OT West,54470,CP-Domicil.External,440950,02-Nov-12,1900102840,"9,292.00",Bluebird Care Warrington,104094
WARRINGTON BOROUGH COUNCIL,http://statistics.data.gov.uk/id/local-authority/00EU,Neighbourhood & Community Services,NCS,Care Purchase - PD,54440,CP-Domicil.External,440950,02-Nov-12,1900102840,"12,282.00",Bluebird Care Warrington,104094
WARRINGTON BOROUGH COUNCIL,http://statistics.data.gov.uk/id/local-authority/00EU,Neighbourhood & Community Services,NCS,Care Purchase -OP & OT East,54430,CP-Domicil.External,440950,02-Nov-12,1900102840,"13,197.00",Bluebird Care Warrington,104094
WARRINGTON BOROUGH COUNCIL,http://statistics.data.gov.uk/id/local-authority/00EU,Neighbourhood & Community Services,NCS,Care Purchase - OP & OT South,54480,CP-Domicil.External,440950,02-Nov-12,1900102840,"13,947.00",Bluebird Care Warrington,104094
WARRINGTON BOROUGH COUNCIL,http://statistics.data.gov.uk/id/local-authority/00EU,Neighbourhood & Community Services,NCS,Care Purchase - Mental Health Team 1,54230,CP-Domicil.External,440950,28-Nov-12,1900105333,524,Bluebird Care Warrington,104094
WARRINGTON BOROUGH COUNCIL,http://statistics.data.gov.uk/id/local-authority/00EU,Neighbourhood & Community Services,NCS,Care Purchase - OPMH,54220,CP-Domicil.External,440950,28-Nov-12,1900105333,635,Bluebird Care Warrington,104094
WARRINGTON BOROUGH COUNCIL,http://statistics.data.gov.uk/id/local-authority/00EU,Neighbourhood & Community Services,NCS,Care Purchase - Mental Health Team 2,54240,CP-Domicil.External,440950,28-Nov-12,1900105333,743,Bluebird Care Warrington,104094
WARRINGTON BOROUGH COUNCIL,http://statistics.data.gov.uk/id/local-authority/00EU,Neighbourhood & Community Services,NCS,Care Purchase - Learning Disability,54450,CP-Domicil.External,440950,28-Nov-12,1900105333,994,Bluebird Care Warrington,104094
WARRINGTON BOROUGH COUNCIL,http://statistics.data.gov.uk/id/local-authority/00EU,Neighbourhood & Community Services,NCS,Care Purchase Budget,54490,CP - Cont Care - External,441350,28-Nov-12,1900105333,"1,732.00",Bluebird Care Warrington,104094
WARRINGTON BOROUGH COUNCIL,http://statistics.data.gov.uk/id/local-authority/00EU,Neighbourhood & Community Services,NCS,Care Purchase - Hospital Discharge Team,54280,CP-Domicil.External,440950,28-Nov-12,1900105333,"2,020.00",Bluebird Care Warrington,104094
WARRINGTON BOROUGH COUNCIL,http://statistics.data.gov.uk/id/local-authority/00EU,Neighbourhood & Community Services,NCS,Care Purchase - OP & OT Central,54420,CP-Domicil.External,440950,28-Nov-12,1900105333,"4,589.00",Bluebird Care Warrington,104094
WARRINGTON BOROUGH COUNCIL,http://statistics.data.gov.uk/id/local-authority/00EU,Neighbourhood & Community Services,NCS,Care Purchase - OP & OT West,54470,CP-Domicil.External,440950,28-Nov-12,1900105333,"9,252.00",Bluebird Care Warrington,104094
WARRINGTON BOROUGH COUNCIL,http://statistics.data.gov.uk/id/local-authority/00EU,Neighbourhood & Community Services,NCS,Care Purchase - PD,54440,CP-Domicil.External,440950,28-Nov-12,1900105333,"11,895.00",Bluebird Care Warrington,104094
WARRINGTON BOROUGH COUNCIL,http://statistics.data.gov.uk/id/local-authority/00EU,Neighbourhood & Community Services,NCS,Care Purchase -OP & OT East,54430,CP-Domicil.External,440950,28-Nov-12,1900105333,"12,207.00",Bluebird Care Warrington,104094
WARRINGTON BOROUGH COUNCIL,http://statistics.data.gov.uk/id/local-authority/00EU,Neighbourhood & Community Services,NCS,Care Purchase - OP & OT South,54480,CP-Domicil.External,440950,28-Nov-12,1900105333,"15,284.00",Bluebird Care Warrington,104094
WARRINGTON BOROUGH COUNCIL,http://statistics.data.gov.uk/id/local-authority/00EU,Neighbourhood & Community Services,NCS,Care Purchase - Mental Health Team 1,54230,CP-Domicil.External,440950,28-Nov-12,1900105343,524,Bluebird Care Warrington,104094
WARRINGTON BOROUGH COUNCIL,http://statistics.data.gov.uk/id/local-authority/00EU,Neighbourhood & Community Services,NCS,Care Purchase - OPMH,54220,CP-Domicil.External,440950,28-Nov-12,1900105343,635,Bluebird Care Warrington,104094
WARRINGTON BOROUGH COUNCIL,http://statistics.data.gov.uk/id/local-authority/00EU,Neighbourhood & Community Services,NCS,Care Purchase - Mental Health Team 2,54240,CP-Domicil.External,440950,28-Nov-12,1900105343,743,Bluebird Care Warrington,104094
WARRINGTON BOROUGH COUNCIL,http://statistics.data.gov.uk/id/local-authority/00EU,Neighbourhood & Community Services,NCS,Care Purchase - Learning Disability,54450,CP-Domicil.External,440950,28-Nov-12,1900105343,994,Bluebird Care Warrington,104094
WARRINGTON BOROUGH COUNCIL,http://statistics.data.gov.uk/id/local-authority/00EU,Neighbourhood & Community Services,NCS,Care Purchase Budget,54490,CP - Cont Care - External,441350,28-Nov-12,1900105343,"1,732.00",Bluebird Care Warrington,104094
WARRINGTON BOROUGH COUNCIL,http://statistics.data.gov.uk/id/local-authority/00EU,Neighbourhood & Community Services,NCS,Care Purchase - Hospital Discharge Team,54280,CP-Domicil.External,440950,28-Nov-12,1900105343,"2,020.00",Bluebird Care Warrington,104094
WARRINGTON BOROUGH COUNCIL,http://statistics.data.gov.uk/id/local-authority/00EU,Neighbourhood & Community Services,NCS,Care Purchase - OP & OT Central,54420,CP-Domicil.External,440950,28-Nov-12,1900105343,"4,589.00",Bluebird Care Warrington,104094
WARRINGTON BOROUGH COUNCIL,http://statistics.data.gov.uk/id/local-authority/00EU,Neighbourhood & Community Services,NCS,Care Purchase - OP & OT West,54470,CP-Domicil.External,440950,28-Nov-12,1900105343,"9,252.00",Bluebird Care Warrington,104094
WARRINGTON BOROUGH COUNCIL,http://statistics.data.gov.uk/id/local-authority/00EU,Neighbourhood & Community Services,NCS,Care Purchase - PD,54440,CP-Domicil.External,440950,28-Nov-12,1900105343,"11,895.00",Bluebird Care Warrington,104094
WARRINGTON BOROUGH COUNCIL,http://statistics.data.gov.uk/id/local-authority/00EU,Neighbourhood & Community Services,NCS,Care Purchase -OP & OT East,54430,CP-Domicil.External,440950,28-Nov-12,1900105343,"12,207.00",Bluebird Care Warrington,104094
WARRINGTON BOROUGH COUNCIL,http://statistics.data.gov.uk/id/local-authority/00EU,Neighbourhood & Community Services,NCS,Care Purchase - OP & OT South,54480,CP-Domicil.External,440950,28-Nov-12,1900105343,"15,284.00",Bluebird Care Warrington,104094
WARRINGTON BOROUGH COUNCIL,http://statistics.data.gov.uk/id/local-authority/00EU,Children & Young People,CHL,Critical Incident Support Team,32214,Consult.& Prof. Serv,440000,21-Nov-12,1900104952,"2,317.00",Nottingham University Consultants,104104
WARRINGTON BOROUGH COUNCIL,http://statistics.data.gov.uk/id/local-authority/00EU,Neighbourhood & Community Services,NCS,Care Purchase - PD,54440,Direct Payments,552000,13-Nov-12,1900103773,"1,179.00",Redacted Personal Data,104205
WARRINGTON BOROUGH COUNCIL,http://statistics.data.gov.uk/id/local-authority/00EU,Neighbourhood & Community Services,NCS,DAT Pooled Budget,53860,Drug Action,443600,28-Nov-12,1900105412,549,Hall And Stevens Pharmacy,104278
WARRINGTON BOROUGH COUNCIL,http://statistics.data.gov.uk/id/local-authority/00EU,Neighbourhood & Community Services,NCS,Care Purchase - OP & OT Central,54420,CP-LongStayExternal,441150,21-Nov-12,1900104906,"2,208.00",HC1 Ltd County Homes,104325
WARRINGTON BOROUGH COUNCIL,http://statistics.data.gov.uk/id/local-authority/00EU,Neighbourhood & Community Services,NCS,Care Purchase - OP & OT Central,54420,CP-Nursing Care-External,441200,21-Nov-12,1900104930,"2,208.00",HC1 Ltd County Homes,104325
WARRINGTON BOROUGH COUNCIL,http://statistics.data.gov.uk/id/local-authority/00EU,Neighbourhood & Community Services,NCS,Care Purchase - PD,54440,Direct Payments,552000,13-Nov-12,1900103775,849,Redacted Personal Data,104327
WARRINGTON BOROUGH COUNCIL,http://statistics.data.gov.uk/id/local-authority/00EU,Neighbourhood & Community Services,NCS,Neighbourhood Co-o South,51308,Payment of Grants,470050,19-Nov-12,1900104312,"3,000.00",Lymm Youth & Community Association,104342
WARRINGTON BOROUGH COUNCIL,http://statistics.data.gov.uk/id/local-authority/00EU,Assistant Chief Executive,CEX,Coroners Service,11100,Post Mortem Fees-Rep,440250,30-Nov-12,1900105528,"1,690.00",Dr M S Al-Jafari,104464
WARRINGTON BOROUGH COUNCIL,http://statistics.data.gov.uk/id/local-authority/00EU,Neighbourhood & Community Services,NCS,Care Purchase - Learning Disability,54450,Supporting People - External,441250,05-Nov-12,1900102966,775,Alternative Futures Group,104468
WARRINGTON BOROUGH COUNCIL,http://statistics.data.gov.uk/id/local-authority/00EU,Neighbourhood & Community Services,NCS,Care Purchase - Learning Disability,54450,Supporting People - External,441250,05-Nov-12,1900102974,"1,034.00",Alternative Futures Group,104468
WARRINGTON BOROUGH COUNCIL,http://statistics.data.gov.uk/id/local-authority/00EU,Neighbourhood & Community Services,NCS,Care Purchase - Learning Disability,54450,Supporting People - External,441250,05-Nov-12,1900102975,"1,034.00",Alternative Futures Group,104468
WARRINGTON BOROUGH COUNCIL,http://statistics.data.gov.uk/id/local-authority/00EU,Neighbourhood & Community Services,NCS,Care Purchase - Learning Disability,54450,Supporting People - External,441250,05-Nov-12,1900102976,"1,034.00",Alternative Futures Group,104468
WARRINGTON BOROUGH COUNCIL,http://statistics.data.gov.uk/id/local-authority/00EU,Neighbourhood & Community Services,NCS,Care Purchase - Learning Disability,54450,Supporting People - External,441250,05-Nov-12,1900102977,"1,034.00",Alternative Futures Group,104468
WARRINGTON BOROUGH COUNCIL,http://statistics.data.gov.uk/id/local-authority/00EU,Neighbourhood & Community Services,NCS,Care Purchase - Learning Disability,54450,CP-Domicil.External,440950,06-Nov-12,1900102987,"3,163.00",Alternative Futures Group,104468
WARRINGTON BOROUGH COUNCIL,http://statistics.data.gov.uk/id/local-authority/00EU,Neighbourhood & Community Services,NCS,Care Purchase Budget,54490,CP ExternalOther Exp,440800,05-Nov-12,1900102955,"3,462.00",Arlington House,104491
WARRINGTON BOROUGH COUNCIL,http://statistics.data.gov.uk/id/local-authority/00EU,Neighbourhood & Community Services,NCS,Care Purchase Budget,54490,CP ExternalOther Exp,440800,13-Nov-12,1900103496,"22,000.00",Arlington House,104491
WARRINGTON BOROUGH COUNCIL,http://statistics.data.gov.uk/id/local-authority/00EU,Corporate Financing,COR,Fees & Subscriptions,60020,Audit Comm-Fee,441550,01-Nov-12,1900102723,"17,552.00",Audit Commission,104501
WARRINGTON BOROUGH COUNCIL,http://statistics.data.gov.uk/id/local-authority/00EU,Corporate Financing,COR,Fees & Subscriptions,60020,Audit Comm-Fee,441550,01-Nov-12,1900102793,"17,552.00",Audit Commission,104501
WARRINGTON BOROUGH COUNCIL,http://statistics.data.gov.uk/id/local-authority/00EU,Neighbourhood & Community Services,NCS,Care Purchase - Learning Disability,54450,CP-Domicil.External,440950,06-Nov-12,1900103012,"6,926.00",Autism Initiatives,104503
WARRINGTON BOROUGH COUNCIL,http://statistics.data.gov.uk/id/local-authority/00EU,Neighbourhood & Community Services,NCS,Care Purchase - Learning Disability,54450,CP-Domicil.External,440950,06-Nov-12,1900103015,885,Autism Initiatives,104503
WARRINGTON BOROUGH COUNCIL,http://statistics.data.gov.uk/id/local-authority/00EU,Neighbourhood & Community Services,NCS,Care Purchase - Learning Disability,54450,CP-Day Care-External,441100,06-Nov-12,1900103015,"1,081.00",Autism Initiatives,104503
WARRINGTON BOROUGH COUNCIL,http://statistics.data.gov.uk/id/local-authority/00EU,Neighbourhood & Community Services,NCS,Care Purchase - Learning Disability,54450,CP-Domicil.External,440950,08-Nov-12,1900103143,"2,255.00",Autism Initiatives,104503
WARRINGTON BOROUGH COUNCIL,http://statistics.data.gov.uk/id/local-authority/00EU,Neighbourhood & Community Services,NCS,Care Purchase - Learning Disability,54450,CP-Day Care-External,441100,13-Nov-12,1900103471,"5,362.00",Autism Initiatives,104503
WARRINGTON BOROUGH COUNCIL,http://statistics.data.gov.uk/id/local-authority/00EU,Neighbourhood & Community Services,NCS,Care Purchase - Learning Disability,54450,CP-Day Care-External,441100,13-Nov-12,1900103472,"1,005.00",Autism Initiatives,104503
WARRINGTON BOROUGH COUNCIL,http://statistics.data.gov.uk/id/local-authority/00EU,Neighbourhood & Community Services,NCS,Care Purchase - Learning Disability,54450,CP-Day Care-External,441100,13-Nov-12,1900103475,"1,005.00",Autism Initiatives,104503
WARRINGTON BOROUGH COUNCIL,http://statistics.data.gov.uk/id/local-authority/00EU,Neighbourhood & Community Services,NCS,Care Purchase - Learning Disability,54450,CP-Day Care-External,441100,13-Nov-12,1900103476,"1,005.00",Autism Initiatives,104503
WARRINGTON BOROUGH COUNCIL,http://statistics.data.gov.uk/id/local-authority/00EU,Neighbourhood & Community Services,NCS,Care Purchase - Learning Disability,54450,CP-Day Care-External,441100,13-Nov-12,1900103477,649,Autism Initiatives,104503
WARRINGTON BOROUGH COUNCIL,http://statistics.data.gov.uk/id/local-authority/00EU,Neighbourhood & Community Services,NCS,Care Purchase - Learning Disability,54450,CP-Domicil.External,440950,13-Nov-12,1900103479,643,Autism Initiatives,104503
WARRINGTON BOROUGH COUNCIL,http://statistics.data.gov.uk/id/local-authority/00EU,Neighbourhood & Community Services,NCS,Care Purchase - Learning Disability,54450,CP-Domicil.External,440950,13-Nov-12,1900103480,"1,074.00",Autism Initiatives,104503
WARRINGTON BOROUGH COUNCIL,http://statistics.data.gov.uk/id/local-authority/00EU,Neighbourhood & Community Services,NCS,Care Purchase - Learning Disability,54450,CP-Day Care-External,441100,13-Nov-12,1900103494,"2,785.00",Autism Initiatives,104503
WARRINGTON BOROUGH COUNCIL,http://statistics.data.gov.uk/id/local-authority/00EU,Children & Young People,CHL,Agency Placements,30904,CP ExternalOther Exp,440800,15-Nov-12,1900104173,"1,617.00",Autism Initiatives,104503
WARRINGTON BOROUGH COUNCIL,http://statistics.data.gov.uk/id/local-authority/00EU,Neighbourhood & Community Services,NCS,Care Purchase - Learning Disability,54450,CP-Domicil.External,440950,21-Nov-12,1900104941,885,Autism Initiatives,104503
WARRINGTON BOROUGH COUNCIL,http://statistics.data.gov.uk/id/local-authority/00EU,Neighbourhood & Community Services,NCS,Care Purchase - Learning Disability,54450,CP-Day Care-External,441100,21-Nov-12,1900104941,"1,081.00",Autism Initiatives,104503
WARRINGTON BOROUGH COUNCIL,http://statistics.data.gov.uk/id/local-authority/00EU,Neighbourhood & Community Services,NCS,Care Purchase - Learning Disability,54450,CP-Day Care-External,441100,21-Nov-12,1900104943,"1,005.00",Autism Initiatives,104503
WARRINGTON BOROUGH COUNCIL,http://statistics.data.gov.uk/id/local-authority/00EU,Neighbourhood & Community Services,NCS,Care Purchase - Learning Disability,54450,CP-LongStayExternal,441150,21-Nov-12,1900104946,"4,496.00",Autism Initiatives,104503
WARRINGTON BOROUGH COUNCIL,http://statistics.data.gov.uk/id/local-authority/00EU,Neighbourhood & Community Services,NCS,Care Purchase - Learning Disability,54450,CP-Domicil.External,440950,23-Nov-12,1900105052,644,Autism Initiatives,104503
WARRINGTON BOROUGH COUNCIL,http://statistics.data.gov.uk/id/local-authority/00EU,Neighbourhood & Community Services,NCS,Care Purchase - Learning Disability,54450,CP-Domicil.External,440950,23-Nov-12,1900105053,"6,926.00",Autism Initiatives,104503
WARRINGTON BOROUGH COUNCIL,http://statistics.data.gov.uk/id/local-authority/00EU,Neighbourhood & Community Services,NCS,Care Purchase - Learning Disability,54450,CP-Day Care-External,441100,23-Nov-12,1900105054,"3,651.00",Autism Initiatives,104503
WARRINGTON BOROUGH COUNCIL,http://statistics.data.gov.uk/id/local-authority/00EU,Children & Young People,CHL,Agency Placements,30904,CP ExternalOther Exp,440800,23-Nov-12,1900105123,"6,198.00",Autism Initiatives,104503
WARRINGTON BOROUGH COUNCIL,http://statistics.data.gov.uk/id/local-authority/00EU,Neighbourhood & Community Services,NCS,Care Purchase - Learning Disability,54450,CP-Domicil.External,440950,27-Nov-12,1900105277,"8,275.00",Autism Initiatives,104503
WARRINGTON BOROUGH COUNCIL,http://statistics.data.gov.uk/id/local-authority/00EU,Neighbourhood & Community Services,NCS,Care Purchase - Learning Disability,54450,CP-Domicil.External,440950,27-Nov-12,1900105278,"5,654.00",Autism Initiatives,104503
WARRINGTON BOROUGH COUNCIL,http://statistics.data.gov.uk/id/local-authority/00EU,Neighbourhood & Community Services,NCS,Care Purchase - Learning Disability,54450,CP-Domicil.External,440950,27-Nov-12,1900105279,"7,216.00",Autism Initiatives,104503
WARRINGTON BOROUGH COUNCIL,http://statistics.data.gov.uk/id/local-authority/00EU,Neighbourhood & Community Services,NCS,Care Purchase - Learning Disability,54450,CP-Domicil.External,440950,27-Nov-12,1900105280,"6,735.00",Autism Initiatives,104503
WARRINGTON BOROUGH COUNCIL,http://statistics.data.gov.uk/id/local-authority/00EU,Neighbourhood & Community Services,NCS,Care Purchase - Learning Disability,54450,CP-Domicil.External,440950,27-Nov-12,1900105281,"6,735.00",Autism Initiatives,104503
WARRINGTON BOROUGH COUNCIL,http://statistics.data.gov.uk/id/local-authority/00EU,Children & Young People,CHL,St Katherine's Children's Home,31109,Car Leasing Charges,350000,19-Nov-12,1700006006,"2,415.00",Automotive Leasing Ltd,104504
WARRINGTON BOROUGH COUNCIL,http://statistics.data.gov.uk/id/local-authority/00EU,Children & Young People,CHL,Effective Practice,33300,Car Leasing Charges,350000,09-Nov-12,1900103282,"1,015.00",Automotive Leasing Ltd,104504
WARRINGTON BOROUGH COUNCIL,http://statistics.data.gov.uk/id/local-authority/00EU,Holding Accounts,HOL,Single Billing Holding Account,91130,Gas,210050,09-Nov-12,1900103274,"5,454.00",British Gas Business,104540
WARRINGTON BOROUGH COUNCIL,http://statistics.data.gov.uk/id/local-authority/00EU,Holding Accounts,HOL,Single Billing Holding Account,91130,Gas,210050,09-Nov-12,1900103274,"6,402.00",British Gas Business,104540
WARRINGTON BOROUGH COUNCIL,http://statistics.data.gov.uk/id/local-authority/00EU,Holding Accounts,HOL,Single Billing Holding Account,91130,Gas,210050,09-Nov-12,1900103275,"6,568.00",British Gas Business,104540
WARRINGTON BOROUGH COUNCIL,http://statistics.data.gov.uk/id/local-authority/00EU,Holding Accounts,HOL,Single Billing Holding Account,91130,Gas,210050,09-Nov-12,1900103275,"28,070.00",British Gas Business,104540
WARRINGTON BOROUGH COUNCIL,http://statistics.data.gov.uk/id/local-authority/00EU,Holding Accounts,HOL,Single Billing Holding Account,91130,Gas,210050,09-Nov-12,1900103276,"4,939.00",British Gas Business,104540
WARRINGTON BOROUGH COUNCIL,http://statistics.data.gov.uk/id/local-authority/00EU,Holding Accounts,HOL,Single Billing Holding Account,91130,Gas,210050,09-Nov-12,1900103276,"32,392.00",British Gas Business,104540
WARRINGTON BOROUGH COUNCIL,http://statistics.data.gov.uk/id/local-authority/00EU,Neighbourhood & Community Services,NCS,Care Purchase - OP & OT Central,54420,CP-LongStayExternal,441150,21-Nov-12,1900104861,"1,764.00",Bupa Care Homes - Broadoak Manor,104546
WARRINGTON BOROUGH COUNCIL,http://statistics.data.gov.uk/id/local-authority/00EU,Neighbourhood & Community Services,NCS,Care Purchase - OP & OT South,54480,CP-LongStayExternal,441150,01-Nov-12,1900102741,"1,540.00",Barchester Healthcare Ltd,104548
WARRINGTON BOROUGH COUNCIL,http://statistics.data.gov.uk/id/local-authority/00EU,Neighbourhood & Community Services,NCS,Care Purchase - OP & OT South,54480,CP-LongStayExternal,441150,01-Nov-12,1900102742,"1,540.00",Barchester Healthcare Ltd,104548
WARRINGTON BOROUGH COUNCIL,http://statistics.data.gov.uk/id/local-authority/00EU,Neighbourhood & Community Services,NCS,Care Purchase - Hospital Discharge Team,54280,CP-LongStayExternal,441150,01-Nov-12,1900102743,"1,540.00",Barchester Healthcare Ltd,104548
WARRINGTON BOROUGH COUNCIL,http://statistics.data.gov.uk/id/local-authority/00EU,Neighbourhood & Community Services,NCS,Care Purchase - OP & OT South,54480,CP-LongStayExternal,441150,01-Nov-12,1900102744,"2,080.00",Barchester Healthcare Ltd,104548
WARRINGTON BOROUGH COUNCIL,http://statistics.data.gov.uk/id/local-authority/00EU,Neighbourhood & Community Services,NCS,Care Purchase - OP & OT South,54480,CP-LongStayExternal,441150,01-Nov-12,1900102746,"1,540.00",Barchester Healthcare Ltd,104548
WARRINGTON BOROUGH COUNCIL,http://statistics.data.gov.uk/id/local-authority/00EU,Neighbourhood & Community Services,NCS,Care Purchase - OP & OT South,54480,CP-LongStayExternal,441150,27-Nov-12,1900105282,"1,540.00",Barchester Healthcare Ltd,104548
WARRINGTON BOROUGH COUNCIL,http://statistics.data.gov.uk/id/local-authority/00EU,Neighbourhood & Community Services,NCS,Care Purchase - OP & OT South,54480,CP-LongStayExternal,441150,27-Nov-12,1900105283,"1,540.00",Barchester Healthcare Ltd,104548
WARRINGTON BOROUGH COUNCIL,http://statistics.data.gov.uk/id/local-authority/00EU,Neighbourhood & Community Services,NCS,Care Purchase - OP & OT South,54480,CP-LongStayExternal,441150,27-Nov-12,1900105292,"2,080.00",Barchester Healthcare Ltd,104548
WARRINGTON BOROUGH COUNCIL,http://statistics.data.gov.uk/id/local-authority/00EU,Neighbourhood & Community Services,NCS,Care Purchase - OP & OT Telecare,54460,CP-LongStayExternal,441150,27-Nov-12,1900105293,"1,540.00",Barchester Healthcare Ltd,104548
WARRINGTON BOROUGH COUNCIL,http://statistics.data.gov.uk/id/local-authority/00EU,Neighbourhood & Community Services,NCS,Care Purchase - OP & OT South,54480,CP-LongStayExternal,441150,27-Nov-12,1900105295,"1,540.00",Barchester Healthcare Ltd,104548
WARRINGTON BOROUGH COUNCIL,http://statistics.data.gov.uk/id/local-authority/00EU,Neighbourhood & Community Services,NCS,Care Purchase -OP & OT East,54430,CP-Nursing Care-External,441200,01-Nov-12,1900102750,"1,628.00",BUPA - Bedford Res,104569
WARRINGTON BOROUGH COUNCIL,http://statistics.data.gov.uk/id/local-authority/00EU,Neighbourhood & Community Services,NCS,Care Purchase - OP & OT Central,54420,CP-Nursing Care-External,441200,21-Nov-12,1900104902,"1,628.00",BUPA - Bedford Res,104569
WARRINGTON BOROUGH COUNCIL,http://statistics.data.gov.uk/id/local-authority/00EU,Neighbourhood & Community Services,NCS,Care Purchase Budget,54490,CP ExternalOther Exp,440800,13-Nov-12,1900103462,"10,592.00",Bupa Care Homes,104572
WARRINGTON BOROUGH COUNCIL,http://statistics.data.gov.uk/id/local-authority/00EU,Neighbourhood & Community Services,NCS,Care Purchase Budget,54490,CP ExternalOther Exp,440800,13-Nov-12,1900103516,"188,000.00",Bupa Care Homes,104572
WARRINGTON BOROUGH COUNCIL,http://statistics.data.gov.uk/id/local-authority/00EU,Neighbourhood & Community Services,NCS,Care Purchase - Learning Disability,54450,Supporting People - External,441250,22-Nov-12,1900105013,667,Carewatch North Cheshire,104573
WARRINGTON BOROUGH COUNCIL,http://statistics.data.gov.uk/id/local-authority/00EU,Neighbourhood & Community Services,NCS,Care Purchase - PD,54440,CP-Domicil.External,440950,22-Nov-12,1900105013,"1,724.00",Carewatch North Cheshire,104573
WARRINGTON BOROUGH COUNCIL,http://statistics.data.gov.uk/id/local-authority/00EU,Neighbourhood & Community Services,NCS,Care Purchase - Learning Disability,54450,CP-Domicil.External,440950,22-Nov-12,1900105013,"5,957.00",Carewatch North Cheshire,104573
WARRINGTON BOROUGH COUNCIL,http://statistics.data.gov.uk/id/local-authority/00EU,Neighbourhood & Community Services,NCS,Care Purchase -OP & OT East,54430,CP-Domicil.External,440950,22-Nov-12,1900105013,"10,778.00",Carewatch North Cheshire,104573
WARRINGTON BOROUGH COUNCIL,http://statistics.data.gov.uk/id/local-authority/00EU,Neighbourhood & Community Services,NCS,Care Purchase - Learning Disability,54450,CP ExternalOther Exp,440800,22-Nov-12,1900105016,871,Carewatch North Cheshire,104573
WARRINGTON BOROUGH COUNCIL,http://statistics.data.gov.uk/id/local-authority/00EU,Neighbourhood & Community Services,NCS,Wolves Event,54700,Events Costs,490000,05-Nov-12,1900102877,"7,500.00",Cheshire Police Authority,104596
WARRINGTON BOROUGH COUNCIL,http://statistics.data.gov.uk/id/local-authority/00EU,Assistant Chief Executive,CEX,Building Safer Communities,16000,Security Systems,250000,28-Nov-12,1900105387,"259,600.00",Cheshire Police Authority,104596
WARRINGTON BOROUGH COUNCIL,http://statistics.data.gov.uk/id/local-authority/00EU,Assistant Chief Executive,CEX,Training & Development,22440,Training,190150,29-Nov-12,1900105452,"1,239.00",City And Guilds,104610
WARRINGTON BOROUGH COUNCIL,http://statistics.data.gov.uk/id/local-authority/00EU,Neighbourhood & Community Services,NCS,Care Purchase Budget,54490,CP ExternalOther Exp,440800,05-Nov-12,1900102953,"8,747.00",Cls Care Services Ltd,104615
WARRINGTON BOROUGH COUNCIL,http://statistics.data.gov.uk/id/local-authority/00EU,Neighbourhood & Community Services,NCS,Care Purchase Budget,54490,CP ExternalOther Exp,440800,13-Nov-12,1900103517,"65,000.00",Cls Care Services Ltd,104615
WARRINGTON BOROUGH COUNCIL,http://statistics.data.gov.uk/id/local-authority/00EU,Neighbourhood & Community Services,NCS,Care Purchase Budget,54490,Voids,515150,27-Nov-12,1900105300,982,Cotebrook,104638
WARRINGTON BOROUGH COUNCIL,http://statistics.data.gov.uk/id/local-authority/00EU,Neighbourhood & Community Services,NCS,Care Purchase - ABI,54260,CP-LongStayExternal,441150,27-Nov-12,1900105300,"2,764.00",Cotebrook,104638
WARRINGTON BOROUGH COUNCIL,http://statistics.data.gov.uk/id/local-authority/00EU,Neighbourhood & Community Services,NCS,Care Purchase - OP & OT South,54480,CP-LongStayExternal,441150,27-Nov-12,1900105300,"4,629.00",Cotebrook,104638
WARRINGTON BOROUGH COUNCIL,http://statistics.data.gov.uk/id/local-authority/00EU,Neighbourhood & Community Services,NCS,Care Purchase - PD,54440,CP-LongStayExternal,441150,27-Nov-12,1900105300,"15,712.00",Cotebrook,104638
WARRINGTON BOROUGH COUNCIL,http://statistics.data.gov.uk/id/local-authority/00EU,Neighbourhood & Community Services,NCS,Care Purchase - PD,54440,CP-Day Care-External,441100,27-Nov-12,1900105301,"1,838.00",Cotebrook,104638
WARRINGTON BOROUGH COUNCIL,http://statistics.data.gov.uk/id/local-authority/00EU,Neighbourhood & Community Services,NCS,Care Purchase - OP & OT South,54480,CP-LongStayExternal,441150,27-Nov-12,1900105302,"9,820.00",Cotebrook,104638
WARRINGTON BOROUGH COUNCIL,http://statistics.data.gov.uk/id/local-authority/00EU,Neighbourhood & Community Services,NCS,The Recreation Centre,51008,Events Costs,490000,26-Nov-12,1900105138,"18,946.00",Phosco Ltd,104646
WARRINGTON BOROUGH COUNCIL,http://statistics.data.gov.uk/id/local-authority/00EU,Neighbourhood & Community Services,NCS,The Recreation Centre,51008,Events Costs,490000,26-Nov-12,1900105225,"11,346.00",Phosco Ltd,104646
WARRINGTON BOROUGH COUNCIL,http://statistics.data.gov.uk/id/local-authority/00EU,Children & Young People,CYP,Childrens Other,81004,Furniture & Fittings,400150,14-Nov-12,1900104124,847,Dart Office Supplies,104651
WARRINGTON BOROUGH COUNCIL,http://statistics.data.gov.uk/id/local-authority/00EU,Children & Young People,CHL,Administration,33006,Agency Supply - GF,180000,19-Nov-12,1900104317,546,Forrest Recruitment,104728
WARRINGTON BOROUGH COUNCIL,http://statistics.data.gov.uk/id/local-authority/00EU,Children & Young People,CHL,Administration,33006,Agency Supply - GF,180000,19-Nov-12,1900104319,528,Forrest Recruitment,104728
WARRINGTON BOROUGH COUNCIL,http://statistics.data.gov.uk/id/local-authority/00EU,Holding Accounts,HOL,Insurance Fund,91100,Insurance Claims,443400,20-Nov-12,1900104366,"37,636.00",Gallagher Bassett International Ltd,104739
WARRINGTON BOROUGH COUNCIL,http://statistics.data.gov.uk/id/local-authority/00EU,Neighbourhood & Community Services,NCS,Care Purchase Budget,54490,CP ExternalOther Exp,440800,06-Nov-12,1900102989,"5,983.00",Ashberry Healthcare Ltd,104776
WARRINGTON BOROUGH COUNCIL,http://statistics.data.gov.uk/id/local-authority/00EU,Neighbourhood & Community Services,NCS,Care Purchase Budget,54490,CP ExternalOther Exp,440800,13-Nov-12,1900103515,"135,000.00",Ashberry Healthcare Ltd,104776
WARRINGTON BOROUGH COUNCIL,http://statistics.data.gov.uk/id/local-authority/00EU,Neighbourhood & Community Services,NCS,Care Purchase Budget,54490,CP ExternalOther Exp,440800,01-Nov-12,1900102769,"6,882.00",Heathside Elderly Persons Home,104777
WARRINGTON BOROUGH COUNCIL,http://statistics.data.gov.uk/id/local-authority/00EU,Neighbourhood & Community Services,NCS,Care Purchase Budget,54490,CP ExternalOther Exp,440800,13-Nov-12,1900103519,"50,000.00",Heathside Elderly Persons Home,104777
WARRINGTON BOROUGH COUNCIL,http://statistics.data.gov.uk/id/local-authority/00EU,Neighbourhood & Community Services,NCS,Care Purchase - Mental Health Team 1,54230,CP-LongStayExternal,441150,28-Nov-12,1900105336,"1,564.00",Hilton Residential Homes Ltd,104783
WARRINGTON BOROUGH COUNCIL,http://statistics.data.gov.uk/id/local-authority/00EU,Neighbourhood & Community Services,NCS,Care Purchase - PD,54440,CP-Nursing Care-External,441200,21-Nov-12,1900104909,"2,372.00",Beechley Care Home,104790
WARRINGTON BOROUGH COUNCIL,http://statistics.data.gov.uk/id/local-authority/00EU,Children & Young People,CYP,Primary,81001,Furniture & Fittings,400150,01-Nov-12,1900102719,"1,048.00",H Jenkinson + Co Ltd,104829
WARRINGTON BOROUGH COUNCIL,http://statistics.data.gov.uk/id/local-authority/00EU,Children & Young People,CYP,Primary,81001,Furniture & Fittings,400150,01-Nov-12,1900102734,"1,182.00",H Jenkinson + Co Ltd,104829
WARRINGTON BOROUGH COUNCIL,http://statistics.data.gov.uk/id/local-authority/00EU,Children & Young People,CYP,Primary,81001,Furniture & Fittings,400150,15-Nov-12,1900104168,560,H Jenkinson + Co Ltd,104829
WARRINGTON BOROUGH COUNCIL,http://statistics.data.gov.uk/id/local-authority/00EU,Children & Young People,CYP,Primary,81001,Furniture & Fittings,400150,28-Nov-12,1900105428,"16,600.00",H Jenkinson + Co Ltd,104829
WARRINGTON BOROUGH COUNCIL,http://statistics.data.gov.uk/id/local-authority/00EU,Children & Young People,CHL,SCM Park Road Primary School,33155,Equipment Purchase & Contract,400000,06-Nov-12,1900103002,554,E Jordon (Refrigeration) Ltd,104843
WARRINGTON BOROUGH COUNCIL,http://statistics.data.gov.uk/id/local-authority/00EU,Neighbourhood & Community Services,NCS,Care Purchase Budget,54490,CP ExternalOther Exp,440800,01-Nov-12,1900102774,"1,326.00",Keate House Residential Home,104849
WARRINGTON BOROUGH COUNCIL,http://statistics.data.gov.uk/id/local-authority/00EU,Neighbourhood & Community Services,NCS,Care Purchase Budget,54490,CP ExternalOther Exp,440800,13-Nov-12,1900103520,"50,000.00",Keate House Residential Home,104849
WARRINGTON BOROUGH COUNCIL,http://statistics.data.gov.uk/id/local-authority/00EU,Assistant Chief Executive,CEX,Coroners Service,11100,Post Mortem Fees-Rep,440250,20-Nov-12,1900104327,"2,607.00",Dr W E Kenyon,104851
WARRINGTON BOROUGH COUNCIL,http://statistics.data.gov.uk/id/local-authority/00EU,Neighbourhood & Community Services,NCS,Care Purchase - Learning Disability,54450,CP-Nursing Care-External,441200,01-Nov-12,1900102762,"10,016.00",The David Lewis Centre,104879
WARRINGTON BOROUGH COUNCIL,http://statistics.data.gov.uk/id/local-authority/00EU,Neighbourhood & Community Services,NCS,Care Purchase - Learning Disability,54450,CP-LongStayExternal,441150,01-Nov-12,1900102763,"13,864.00",The David Lewis Centre,104879
WARRINGTON BOROUGH COUNCIL,http://statistics.data.gov.uk/id/local-authority/00EU,Neighbourhood & Community Services,NCS,Care Purchase - Learning Disability,54450,CP-LongStayExternal,441150,07-Nov-12,1900103116,"1,161.00",The David Lewis Centre,104879
WARRINGTON BOROUGH COUNCIL,http://statistics.data.gov.uk/id/local-authority/00EU,Neighbourhood & Community Services,NCS,Care Purchase - Learning Disability,54450,CP-LongStayExternal,441150,07-Nov-12,1900103120,"2,548.00",The David Lewis Centre,104879
WARRINGTON BOROUGH COUNCIL,http://statistics.data.gov.uk/id/local-authority/00EU,Neighbourhood & Community Services,NCS,Care Purchase - PD,54440,CP-LongStayExternal,441150,08-Nov-12,1900103179,"6,895.00",The David Lewis Centre,104879
WARRINGTON BOROUGH COUNCIL,http://statistics.data.gov.uk/id/local-authority/00EU,Neighbourhood & Community Services,NCS,Care Purchase - Learning Disability,54450,CP-LongStayExternal,441150,21-Nov-12,1900104932,"13,864.00",The David Lewis Centre,104879
WARRINGTON BOROUGH COUNCIL,http://statistics.data.gov.uk/id/local-authority/00EU,Neighbourhood & Community Services,NCS,Care Purchase - Learning Disability,54450,CP-LongStayExternal,441150,21-Nov-12,1900104947,"10,016.00",The David Lewis Centre,104879
WARRINGTON BOROUGH COUNCIL,http://statistics.data.gov.uk/id/local-authority/00EU,Neighbourhood & Community Services,NCS,Care Purchase - PD,54440,CP-LongStayExternal,441150,23-Nov-12,1900105050,"6,895.00",The David Lewis Centre,104879
WARRINGTON BOROUGH COUNCIL,http://statistics.data.gov.uk/id/local-authority/00EU,Neighbourhood & Community Services,NCS,Care Purchase - Learning Disability,54450,CP-LongStayExternal,441150,27-Nov-12,1900105303,"2,466.00",The David Lewis Centre,104879
WARRINGTON BOROUGH COUNCIL,http://statistics.data.gov.uk/id/local-authority/00EU,Neighbourhood & Community Services,NCS,Care Purchase - Learning Disability,54450,CP-LongStayExternal,441150,27-Nov-12,1900105306,"1,049.00",The David Lewis Centre,104879
WARRINGTON BOROUGH COUNCIL,http://statistics.data.gov.uk/id/local-authority/00EU,Neighbourhood & Community Services,NCS,Care Purchase - Learning Disability,54450,CP-Domicil.External,440950,07-Nov-12,1900103125,"7,420.00",Macintyre Care,104907
WARRINGTON BOROUGH COUNCIL,http://statistics.data.gov.uk/id/local-authority/00EU,Neighbourhood & Community Services,NCS,Care Purchase - Learning Disability,54450,CP-Domicil.External,440950,07-Nov-12,1900103128,"14,273.00",Macintyre Care,104907
WARRINGTON BOROUGH COUNCIL,http://statistics.data.gov.uk/id/local-authority/00EU,Neighbourhood & Community Services,NCS,Care Purchase - Learning Disability,54450,CP ExternalOther Exp,440800,07-Nov-12,1900103129,920,Macintyre Care,104907
WARRINGTON BOROUGH COUNCIL,http://statistics.data.gov.uk/id/local-authority/00EU,Neighbourhood & Community Services,NCS,Care Purchase - Learning Disability,54450,Supporting People - External,441250,07-Nov-12,1900103130,"26,188.00",Macintyre Care,104907
WARRINGTON BOROUGH COUNCIL,http://statistics.data.gov.uk/id/local-authority/00EU,Neighbourhood & Community Services,NCS,Care Purchase - Learning Disability,54450,CP-Domicil.External,440950,07-Nov-12,1900103130,"108,203.00",Macintyre Care,104907
WARRINGTON BOROUGH COUNCIL,http://statistics.data.gov.uk/id/local-authority/00EU,Neighbourhood & Community Services,NCS,Care Purchase - Learning Disability,54450,CP-Day Care-External,441100,21-Nov-12,1900104866,"16,423.00",Macintyre Care,104907
WARRINGTON BOROUGH COUNCIL,http://statistics.data.gov.uk/id/local-authority/00EU,Neighbourhood & Community Services,NCS,Care Purchase - Learning Disability,54450,CP-LongStayExternal,441150,21-Nov-12,1900104867,"5,076.00",Macintyre Care,104907
WARRINGTON BOROUGH COUNCIL,http://statistics.data.gov.uk/id/local-authority/00EU,Neighbourhood & Community Services,NCS,Care Purchase - Mental Health Team 1,54230,CP-Domicil.External,440950,01-Nov-12,1900102779,947,Mayfield Home Care Agency,104928
WARRINGTON BOROUGH COUNCIL,http://statistics.data.gov.uk/id/local-authority/00EU,Neighbourhood & Community Services,NCS,Care Purchase - OP & OT West,54470,CP-Domicil.External,440950,01-Nov-12,1900102779,"1,410.00",Mayfield Home Care Agency,104928
WARRINGTON BOROUGH COUNCIL,http://statistics.data.gov.uk/id/local-authority/00EU,Neighbourhood & Community Services,NCS,Care Purchase - Learning Disability,54450,CP-Domicil.External,440950,01-Nov-12,1900102779,"3,471.00",Mayfield Home Care Agency,104928
WARRINGTON BOROUGH COUNCIL,http://statistics.data.gov.uk/id/local-authority/00EU,Neighbourhood & Community Services,NCS,Care Purchase Budget,54490,CP - Cont Care - External,441350,01-Nov-12,1900102779,"10,306.00",Mayfield Home Care Agency,104928
WARRINGTON BOROUGH COUNCIL,http://statistics.data.gov.uk/id/local-authority/00EU,Neighbourhood & Community Services,NCS,Care Purchase - Learning Disability,54450,CP-Domicil.External,440950,13-Nov-12,1900103455,571,Mayfield Home Care Agency,104928
WARRINGTON BOROUGH COUNCIL,http://statistics.data.gov.uk/id/local-authority/00EU,Neighbourhood & Community Services,NCS,Care Purchase - Mental Health Team 1,54230,CP-Domicil.External,440950,23-Nov-12,1900105065,947,Mayfield Home Care Agency,104928
WARRINGTON BOROUGH COUNCIL,http://statistics.data.gov.uk/id/local-authority/00EU,Neighbourhood & Community Services,NCS,Care Purchase - OP & OT West,54470,CP-Domicil.External,440950,23-Nov-12,1900105065,"1,297.00",Mayfield Home Care Agency,104928
WARRINGTON BOROUGH COUNCIL,http://statistics.data.gov.uk/id/local-authority/00EU,Neighbourhood & Community Services,NCS,Care Purchase - Learning Disability,54450,CP-Domicil.External,440950,23-Nov-12,1900105065,"3,853.00",Mayfield Home Care Agency,104928
WARRINGTON BOROUGH COUNCIL,http://statistics.data.gov.uk/id/local-authority/00EU,Neighbourhood & Community Services,NCS,Care Purchase Budget,54490,CP - Cont Care - External,441350,23-Nov-12,1900105065,"10,316.00",Mayfield Home Care Agency,104928
WARRINGTON BOROUGH COUNCIL,http://statistics.data.gov.uk/id/local-authority/00EU,Environment & Regeneration,ER0,Markets,43711,Resaleables,400600,14-Nov-12,1900104127,"3,831.00",National Express Ltd,104957
WARRINGTON BOROUGH COUNCIL,http://statistics.data.gov.uk/id/local-authority/00EU,Children & Young People,CYP,Childrens Other,81004,Furniture & Fittings,400150,23-Nov-12,1900105121,634,Newton Le Willows Blinds,104968
WARRINGTON BOROUGH COUNCIL,http://statistics.data.gov.uk/id/local-authority/00EU,Neighbourhood & Community Services,NCS,Care Purchase - OP & OT Telecare,54460,CP-Domicil.External,440950,23-Nov-12,1900105128,507,Nightingales Homecare Services Agen,104972
WARRINGTON BOROUGH COUNCIL,http://statistics.data.gov.uk/id/local-authority/00EU,Neighbourhood & Community Services,NCS,Care Purchase - Hospital Discharge Team,54280,CP-Domicil.External,440950,23-Nov-12,1900105128,"4,178.00",Nightingales Homecare Services Agen,104972
WARRINGTON BOROUGH COUNCIL,http://statistics.data.gov.uk/id/local-authority/00EU,Neighbourhood & Community Services,NCS,Care Purchase - OP & OT Central,54420,CP-Domicil.External,440950,23-Nov-12,1900105128,"6,478.00",Nightingales Homecare Services Agen,104972
WARRINGTON BOROUGH COUNCIL,http://statistics.data.gov.uk/id/local-authority/00EU,Neighbourhood & Community Services,NCS,Care Purchase - Learning Disability,54450,CP-Domicil.External,440950,23-Nov-12,1900105128,"6,493.00",Nightingales Homecare Services Agen,104972
WARRINGTON BOROUGH COUNCIL,http://statistics.data.gov.uk/id/local-authority/00EU,Neighbourhood & Community Services,NCS,Care Purchase - PD,54440,CP-Domicil.External,440950,23-Nov-12,1900105128,"7,904.00",Nightingales Homecare Services Agen,104972
WARRINGTON BOROUGH COUNCIL,http://statistics.data.gov.uk/id/local-authority/00EU,Neighbourhood & Community Services,NCS,Care Purchase -OP & OT East,54430,CP-Domicil.External,440950,23-Nov-12,1900105128,"9,483.00",Nightingales Homecare Services Agen,104972
WARRINGTON BOROUGH COUNCIL,http://statistics.data.gov.uk/id/local-authority/00EU,Neighbourhood & Community Services,NCS,Care Purchase - OP & OT West,54470,CP-Domicil.External,440950,23-Nov-12,1900105128,"10,529.00",Nightingales Homecare Services Agen,104972
WARRINGTON BOROUGH COUNCIL,http://statistics.data.gov.uk/id/local-authority/00EU,Neighbourhood & Community Services,NCS,Care Purchase - OP & OT South,54480,CP-Domicil.External,440950,23-Nov-12,1900105128,"15,226.00",Nightingales Homecare Services Agen,104972
WARRINGTON BOROUGH COUNCIL,http://statistics.data.gov.uk/id/local-authority/00EU,Children & Young People,CHL,St Werburghs,33206,Water & Sewerage Chg,240000,09-Nov-12,1900103278,522,United Utilities Water Limited,104982
WARRINGTON BOROUGH COUNCIL,http://statistics.data.gov.uk/id/local-authority/00EU,Environment & Regeneration,ER0,Sandy Lane Depot,44230,Water & Sewerage Chg,240000,09-Nov-12,1900103278,726,United Utilities Water Limited,104982
WARRINGTON BOROUGH COUNCIL,http://statistics.data.gov.uk/id/local-authority/00EU,Children & Young People,CHL,EIG Funding - Westy Childrens Centre,31541,Water & Sewerage Chg,240000,09-Nov-12,1900103278,"1,182.00",United Utilities Water Limited,104982
WARRINGTON BOROUGH COUNCIL,http://statistics.data.gov.uk/id/local-authority/00EU,Children & Young People,CHL,EIG Funding - Westy Childrens Centre,31541,Water & Sewerage Chg,240000,26-Nov-12,1900105141,"1,230.00",United Utilities Water Limited,104982
WARRINGTON BOROUGH COUNCIL,http://statistics.data.gov.uk/id/local-authority/00EU,Neighbourhood & Community Services,NCS,Care Purchase Budget,54490,CP ExternalOther Exp,440800,13-Nov-12,1900103485,"25,000.00",Old Rectory Private Nursing Home,104990
WARRINGTON BOROUGH COUNCIL,http://statistics.data.gov.uk/id/local-authority/00EU,Neighbourhood & Community Services,NCS,Care Purchase Budget,54490,CP ExternalOther Exp,440800,16-Nov-12,1900104283,"5,298.00",Old Rectory Private Nursing Home,104990
WARRINGTON BOROUGH COUNCIL,http://statistics.data.gov.uk/id/local-authority/00EU,Children & Young People,CHL,DSG Early Years PVI Settings,32417,Private & Voluntary 3 Year Olds,470100,14-Nov-12,1900104114,"1,500.00",The Old Vicarage,104991
WARRINGTON BOROUGH COUNCIL,http://statistics.data.gov.uk/id/local-authority/00EU,Neighbourhood & Community Services,NCS,Care Purchase - Learning Disability,54450,CP-Domicil.External,440950,01-Nov-12,1900102787,"2,814.00",The Ormerod Home Trust Ltd,104998
WARRINGTON BOROUGH COUNCIL,http://statistics.data.gov.uk/id/local-authority/00EU,Neighbourhood & Community Services,NCS,Care Purchase - Learning Disability,54450,CP-Domicil.External,440950,16-Nov-12,1900104281,"2,814.00",The Ormerod Home Trust Ltd,104998
WARRINGTON BOROUGH COUNCIL,http://statistics.data.gov.uk/id/local-authority/00EU,Neighbourhood & Community Services,NCS,Care Purchase - Learning Disability,54450,CP-Domicil.External,440950,28-Nov-12,1900105334,650,P S S,105048
WARRINGTON BOROUGH COUNCIL,http://statistics.data.gov.uk/id/local-authority/00EU,Neighbourhood & Community Services,NCS,Care Purchase - Mental Health Team 3,54250,CP-Domicil.External,440950,08-Nov-12,1900103144,"1,472.00",Medico Nursing and Homecare,105063
WARRINGTON BOROUGH COUNCIL,http://statistics.data.gov.uk/id/local-authority/00EU,Neighbourhood & Community Services,NCS,Care Purchase -OP & OT East,54430,CP-Domicil.External,440950,08-Nov-12,1900103144,"3,913.00",Medico Nursing and Homecare,105063
WARRINGTON BOROUGH COUNCIL,http://statistics.data.gov.uk/id/local-authority/00EU,Neighbourhood & Community Services,NCS,Care Purchase - OP & OT South,54480,CP-Domicil.External,440950,08-Nov-12,1900103144,"5,177.00",Medico Nursing and Homecare,105063
WARRINGTON BOROUGH COUNCIL,http://statistics.data.gov.uk/id/local-authority/00EU,Neighbourhood & Community Services,NCS,Care Purchase - OP & OT Central,54420,CP-Domicil.External,440950,08-Nov-12,1900103144,"6,571.00",Medico Nursing and Homecare,105063
WARRINGTON BOROUGH COUNCIL,http://statistics.data.gov.uk/id/local-authority/00EU,Neighbourhood & Community Services,NCS,Care Purchase - PD,54440,CP-Domicil.External,440950,08-Nov-12,1900103144,"6,619.00",Medico Nursing and Homecare,105063
WARRINGTON BOROUGH COUNCIL,http://statistics.data.gov.uk/id/local-authority/00EU,Neighbourhood & Community Services,NCS,Care Purchase - OP & OT West,54470,CP-Domicil.External,440950,08-Nov-12,1900103144,"6,620.00",Medico Nursing and Homecare,105063
WARRINGTON BOROUGH COUNCIL,http://statistics.data.gov.uk/id/local-authority/00EU,Neighbourhood & Community Services,NCS,Care Purchase - Mental Health Team 3,54250,CP-Domicil.External,440950,14-Nov-12,1900103575,"1,969.00",Medico Nursing and Homecare,105063
WARRINGTON BOROUGH COUNCIL,http://statistics.data.gov.uk/id/local-authority/00EU,Neighbourhood & Community Services,NCS,Care Purchase -OP & OT East,54430,CP-Domicil.External,440950,14-Nov-12,1900103575,"3,815.00",Medico Nursing and Homecare,105063
WARRINGTON BOROUGH COUNCIL,http://statistics.data.gov.uk/id/local-authority/00EU,Neighbourhood & Community Services,NCS,Care Purchase - OP & OT South,54480,CP-Domicil.External,440950,14-Nov-12,1900103575,"4,157.00",Medico Nursing and Homecare,105063
WARRINGTON BOROUGH COUNCIL,http://statistics.data.gov.uk/id/local-authority/00EU,Neighbourhood & Community Services,NCS,Care Purchase - OP & OT West,54470,CP-Domicil.External,440950,14-Nov-12,1900103575,"5,946.00",Medico Nursing and Homecare,105063
WARRINGTON BOROUGH COUNCIL,http://statistics.data.gov.uk/id/local-authority/00EU,Neighbourhood & Community Services,NCS,Care Purchase - PD,54440,CP-Domicil.External,440950,14-Nov-12,1900103575,"6,513.00",Medico Nursing and Homecare,105063
WARRINGTON BOROUGH COUNCIL,http://statistics.data.gov.uk/id/local-authority/00EU,Neighbourhood & Community Services,NCS,Care Purchase - OP & OT Central,54420,CP-Domicil.External,440950,14-Nov-12,1900103575,"6,966.00",Medico Nursing and Homecare,105063
WARRINGTON BOROUGH COUNCIL,http://statistics.data.gov.uk/id/local-authority/00EU,Children & Young People,CYP,Childrens Other,81004,ICT Comms - Equipment Purchase,450100,01-Nov-12,1900102724,"11,044.00",Rm Education Plc,105066
WARRINGTON BOROUGH COUNCIL,http://statistics.data.gov.uk/id/local-authority/00EU,Children & Young People,CYP,Primary,81001,ICT Comms - Equipment Purchase,450100,01-Nov-12,1900102724,"11,044.00",Rm Education Plc,105066
WARRINGTON BOROUGH COUNCIL,http://statistics.data.gov.uk/id/local-authority/00EU,Neighbourhood & Community Services,NCS,Care Purchase Budget,54490,CP ExternalOther Exp,440800,08-Nov-12,1900103145,"5,426.00",Rosevilla Residential Home,105084
WARRINGTON BOROUGH COUNCIL,http://statistics.data.gov.uk/id/local-authority/00EU,Neighbourhood & Community Services,NCS,Care Purchase Budget,54490,CP ExternalOther Exp,440800,13-Nov-12,1900103489,"13,000.00",Rosevilla Residential Home,105084
WARRINGTON BOROUGH COUNCIL,http://statistics.data.gov.uk/id/local-authority/00EU,Children & Young People,CHL,Safeguard Commissioning,31116,CP ExternalOther Exp,440800,15-Nov-12,1900104177,"4,899.00",St Josephs Family Centre,105100
WARRINGTON BOROUGH COUNCIL,http://statistics.data.gov.uk/id/local-authority/00EU,Neighbourhood & Community Services,NCS,Care Purchase - PD,54440,CP-LongStayExternal,441150,22-Nov-12,1900105011,"4,584.00",Scope,105109
WARRINGTON BOROUGH COUNCIL,http://statistics.data.gov.uk/id/local-authority/00EU,Environment & Regeneration,ER0,Development Control,43430,Data Storage,443050,02-Nov-12,1900102861,"6,878.00",Service Point Uk,105117
WARRINGTON BOROUGH COUNCIL,http://statistics.data.gov.uk/id/local-authority/00EU,Environment & Regeneration,ER0,Building Control,43410,Data Storage,443050,07-Nov-12,1900103114,515,Service Point Uk,105117
WARRINGTON BOROUGH COUNCIL,http://statistics.data.gov.uk/id/local-authority/00EU,Environment & Regeneration,ER0,Building Control,43410,Removal Bodies & Exc,440350,07-Nov-12,1900103119,"2,033.00",Service Point Uk,105117
WARRINGTON BOROUGH COUNCIL,http://statistics.data.gov.uk/id/local-authority/00EU,Assistant Chief Executive,CEX,Coroners Service,11100,Post Mortem Fees-Rep,440250,02-Nov-12,1900102853,900,Dr D S Shareef,105121
WARRINGTON BOROUGH COUNCIL,http://statistics.data.gov.uk/id/local-authority/00EU,Assistant Chief Executive,CEX,Coroners Service,11100,Post Mortem Fees-Rep,440250,30-Nov-12,1900105512,"2,203.00",Dr D S Shareef,105121
WARRINGTON BOROUGH COUNCIL,http://statistics.data.gov.uk/id/local-authority/00EU,Neighbourhood & Community Services,NCS,Care Purchase - Mental Health Team 1,54230,CP-Domicil.External,440950,02-Nov-12,1900102866,544,Premier Care Cheshire Ltd,105142
WARRINGTON BOROUGH COUNCIL,http://statistics.data.gov.uk/id/local-authority/00EU,Neighbourhood & Community Services,NCS,Care Purchase - PD,54440,Supporting People - External,441250,02-Nov-12,1900102866,615,Premier Care Cheshire Ltd,105142
WARRINGTON BOROUGH COUNCIL,http://statistics.data.gov.uk/id/local-authority/00EU,Neighbourhood & Community Services,NCS,Care Purchase - Hospital Discharge Team,54280,CP-Domicil.External,440950,02-Nov-12,1900102866,849,Premier Care Cheshire Ltd,105142
WARRINGTON BOROUGH COUNCIL,http://statistics.data.gov.uk/id/local-authority/00EU,Neighbourhood & Community Services,NCS,Care Purchase - Mental Health Team 2,54240,CP-Domicil.External,440950,02-Nov-12,1900102866,"1,918.00",Premier Care Cheshire Ltd,105142
WARRINGTON BOROUGH COUNCIL,http://statistics.data.gov.uk/id/local-authority/00EU,Neighbourhood & Community Services,NCS,Care Purchase - Learning Disability,54450,CP-Domicil.External,440950,02-Nov-12,1900102866,"2,058.00",Premier Care Cheshire Ltd,105142
WARRINGTON BOROUGH COUNCIL,http://statistics.data.gov.uk/id/local-authority/00EU,Neighbourhood & Community Services,NCS,Care Purchase Budget,54490,CP - Cont Care - External,441350,02-Nov-12,1900102866,"4,141.00",Premier Care Cheshire Ltd,105142
WARRINGTON BOROUGH COUNCIL,http://statistics.data.gov.uk/id/local-authority/00EU,Neighbourhood & Community Services,NCS,Care Purchase - OP & OT South,54480,CP-Domicil.External,440950,02-Nov-12,1900102866,"8,404.00",Premier Care Cheshire Ltd,105142
WARRINGTON BOROUGH COUNCIL,http://statistics.data.gov.uk/id/local-authority/00EU,Neighbourhood & Community Services,NCS,Care Purchase - PD,54440,CP-Domicil.External,440950,02-Nov-12,1900102866,"9,590.00",Premier Care Cheshire Ltd,105142
WARRINGTON BOROUGH COUNCIL,http://statistics.data.gov.uk/id/local-authority/00EU,Neighbourhood & Community Services,NCS,Care Purchase - OP & OT West,54470,CP-Domicil.External,440950,02-Nov-12,1900102866,"17,132.00",Premier Care Cheshire Ltd,105142
WARRINGTON BOROUGH COUNCIL,http://statistics.data.gov.uk/id/local-authority/00EU,Neighbourhood & Community Services,NCS,Care Purchase - OP & OT Central,54420,CP-Domicil.External,440950,02-Nov-12,1900102866,"17,168.00",Premier Care Cheshire Ltd,105142
WARRINGTON BOROUGH COUNCIL,http://statistics.data.gov.uk/id/local-authority/00EU,Neighbourhood & Community Services,NCS,Care Purchase -OP & OT East,54430,CP-Domicil.External,440950,02-Nov-12,1900102866,"18,789.00",Premier Care Cheshire Ltd,105142
WARRINGTON BOROUGH COUNCIL,http://statistics.data.gov.uk/id/local-authority/00EU,Neighbourhood & Community Services,NCS,Care Purchase - Mental Health Team 1,54230,CP-Domicil.External,440950,23-Nov-12,1900105129,539,Premier Care Cheshire Ltd,105142
WARRINGTON BOROUGH COUNCIL,http://statistics.data.gov.uk/id/local-authority/00EU,Neighbourhood & Community Services,NCS,Care Purchase - PD,54440,Supporting People - External,441250,23-Nov-12,1900105129,615,Premier Care Cheshire Ltd,105142
WARRINGTON BOROUGH COUNCIL,http://statistics.data.gov.uk/id/local-authority/00EU,Neighbourhood & Community Services,NCS,Care Purchase - Mental Health Team 2,54240,CP-Domicil.External,440950,23-Nov-12,1900105129,"1,940.00",Premier Care Cheshire Ltd,105142
WARRINGTON BOROUGH COUNCIL,http://statistics.data.gov.uk/id/local-authority/00EU,Neighbourhood & Community Services,NCS,Care Purchase - Learning Disability,54450,CP-Domicil.External,440950,23-Nov-12,1900105129,"2,010.00",Premier Care Cheshire Ltd,105142
WARRINGTON BOROUGH COUNCIL,http://statistics.data.gov.uk/id/local-authority/00EU,Neighbourhood & Community Services,NCS,Care Purchase Budget,54490,CP - Cont Care - External,441350,23-Nov-12,1900105129,"4,730.00",Premier Care Cheshire Ltd,105142
WARRINGTON BOROUGH COUNCIL,http://statistics.data.gov.uk/id/local-authority/00EU,Neighbourhood & Community Services,NCS,Care Purchase - OP & OT South,54480,CP-Domicil.External,440950,23-Nov-12,1900105129,"8,322.00",Premier Care Cheshire Ltd,105142
WARRINGTON BOROUGH COUNCIL,http://statistics.data.gov.uk/id/local-authority/00EU,Neighbourhood & Community Services,NCS,Care Purchase - PD,54440,CP-Domicil.External,440950,23-Nov-12,1900105129,"8,928.00",Premier Care Cheshire Ltd,105142
WARRINGTON BOROUGH COUNCIL,http://statistics.data.gov.uk/id/local-authority/00EU,Neighbourhood & Community Services,NCS,Care Purchase - OP & OT Central,54420,CP-Domicil.External,440950,23-Nov-12,1900105129,"15,533.00",Premier Care Cheshire Ltd,105142
WARRINGTON BOROUGH COUNCIL,http://statistics.data.gov.uk/id/local-authority/00EU,Neighbourhood & Community Services,NCS,Care Purchase - OP & OT West,54470,CP-Domicil.External,440950,23-Nov-12,1900105129,"16,709.00",Premier Care Cheshire Ltd,105142
WARRINGTON BOROUGH COUNCIL,http://statistics.data.gov.uk/id/local-authority/00EU,Neighbourhood & Community Services,NCS,Care Purchase -OP & OT East,54430,CP-Domicil.External,440950,23-Nov-12,1900105129,"17,507.00",Premier Care Cheshire Ltd,105142
WARRINGTON BOROUGH COUNCIL,http://statistics.data.gov.uk/id/local-authority/00EU,Neighbourhood & Community Services,NCS,Care Purchase Budget,54490,CP ExternalOther Exp,440800,07-Nov-12,1900103127,"8,236.00",Summerville Nursing Home -Private C,105162
WARRINGTON BOROUGH COUNCIL,http://statistics.data.gov.uk/id/local-authority/00EU,Neighbourhood & Community Services,NCS,Care Purchase Budget,54490,CP Free Nursing Care External,443500,07-Nov-12,1900103132,916,Summerville Nursing Home -Private C,105162
WARRINGTON BOROUGH COUNCIL,http://statistics.data.gov.uk/id/local-authority/00EU,Neighbourhood & Community Services,NCS,Care Purchase Budget,54490,CP ExternalOther Exp,440800,13-Nov-12,1900103526,"63,000.00",Summerville Nursing Home -Private C,105162
WARRINGTON BOROUGH COUNCIL,http://statistics.data.gov.uk/id/local-authority/00EU,Neighbourhood & Community Services,NCS,Care Purchase Budget,54490,CP ExternalOther Exp,440800,13-Nov-12,1900103467,"13,200.00",Thelwall Grange Nursing Home,105174
WARRINGTON BOROUGH COUNCIL,http://statistics.data.gov.uk/id/local-authority/00EU,Neighbourhood & Community Services,NCS,Care Purchase Budget,54490,CP ExternalOther Exp,440800,13-Nov-12,1900103486,"25,000.00",Thelwall Grange Nursing Home,105174
WARRINGTON BOROUGH COUNCIL,http://statistics.data.gov.uk/id/local-authority/00EU,Neighbourhood & Community Services,NCS,Care Purchase Budget,54490,CP ExternalOther Exp,440800,13-Nov-12,1900103525,"64,000.00",Minster Care Management Ltd,105179
WARRINGTON BOROUGH COUNCIL,http://statistics.data.gov.uk/id/local-authority/00EU,Children & Young People,CYP,Primary,81001,ICT Comms - Equipment Purchase,450100,06-Nov-12,1900103067,"21,905.00",Unitec Communications Ltd,105211
WARRINGTON BOROUGH COUNCIL,http://statistics.data.gov.uk/id/local-authority/00EU,Children & Young People,CYP,Primary,81001,ICT Comms - Equipment Purchase,450100,06-Nov-12,1900103068,"10,908.00",Unitec Communications Ltd,105211
WARRINGTON BOROUGH COUNCIL,http://statistics.data.gov.uk/id/local-authority/00EU,Holding Accounts,HOL,Single Billing Holding Account,91130,ICT Comms - Line Rental,450200,02-Nov-12,1900102841,"2,027.00",Vodafone Corporate Ltd,105222
WARRINGTON BOROUGH COUNCIL,http://statistics.data.gov.uk/id/local-authority/00EU,Holding Accounts,HOL,Single Billing Holding Account,91130,ICT Comms - Line Rental,450200,02-Nov-12,1900102852,"48,493.00",Vodafone Corporate Ltd,105222
WARRINGTON BOROUGH COUNCIL,http://statistics.data.gov.uk/id/local-authority/00EU,Neighbourhood & Community Services,NCS,Care Purchase Budget,54490,CP ExternalOther Exp,440800,02-Nov-12,1900102824,"4,801.00",Warrington Community Care,105229
WARRINGTON BOROUGH COUNCIL,http://statistics.data.gov.uk/id/local-authority/00EU,Neighbourhood & Community Services,NCS,Care Purchase Budget,54490,CP ExternalOther Exp,440800,13-Nov-12,1900103529,"72,000.00",Warrington Community Care,105229
WARRINGTON BOROUGH COUNCIL,http://statistics.data.gov.uk/id/local-authority/00EU,Neighbourhood & Community Services,NCS,Care Purchase - Learning Disability,54450,CP-Nursing Care-External,441200,02-Nov-12,1900102825,"2,018.00",WCL - Warrington Community Living,105230
WARRINGTON BOROUGH COUNCIL,http://statistics.data.gov.uk/id/local-authority/00EU,Neighbourhood & Community Services,NCS,Care Purchase Budget,54490,CP Free Nursing Care External,443500,02-Nov-12,1900102831,"3,100.00",WCL - Warrington Community Living,105230
WARRINGTON BOROUGH COUNCIL,http://statistics.data.gov.uk/id/local-authority/00EU,Neighbourhood & Community Services,NCS,Care Purchase - Learning Disability,54450,CP-Nursing Care-External,441200,02-Nov-12,1900102831,"57,151.00",WCL - Warrington Community Living,105230
WARRINGTON BOROUGH COUNCIL,http://statistics.data.gov.uk/id/local-authority/00EU,Neighbourhood & Community Services,NCS,Care Purchase Budget,54490,Voids,515150,02-Nov-12,1900102834,"9,947.00",WCL - Warrington Community Living,105230
WARRINGTON BOROUGH COUNCIL,http://statistics.data.gov.uk/id/local-authority/00EU,Neighbourhood & Community Services,NCS,Care Purchase - Learning Disability,54450,Supporting People - External,441250,02-Nov-12,1900102834,"11,506.00",WCL - Warrington Community Living,105230
WARRINGTON BOROUGH COUNCIL,http://statistics.data.gov.uk/id/local-authority/00EU,Neighbourhood & Community Services,NCS,Care Purchase - Learning Disability,54450,CP-Domicil.External,440950,02-Nov-12,1900102834,"95,300.00",WCL - Warrington Community Living,105230
WARRINGTON BOROUGH COUNCIL,http://statistics.data.gov.uk/id/local-authority/00EU,Children & Young People,CHL,CIN Team 3,31003,Legal Costs Incurred,440200,26-Nov-12,1900105174,777,Watsons Solicitors,105241
WARRINGTON BOROUGH COUNCIL,http://statistics.data.gov.uk/id/local-authority/00EU,Children & Young People,CHL,CIN Team 3,31003,Legal Costs Incurred,440200,29-Nov-12,1900105454,777,Watsons Solicitors,105241
WARRINGTON BOROUGH COUNCIL,http://statistics.data.gov.uk/id/local-authority/00EU,Neighbourhood & Community Services,NCS,Care Purchase Budget,54490,CP ExternalOther Exp,440800,06-Nov-12,1900103022,"2,440.00",Waverley House,105242
WARRINGTON BOROUGH COUNCIL,http://statistics.data.gov.uk/id/local-authority/00EU,Neighbourhood & Community Services,NCS,Care Purchase Budget,54490,CP ExternalOther Exp,440800,13-Nov-12,1900103483,"33,000.00",Waverley House,105242
WARRINGTON BOROUGH COUNCIL,http://statistics.data.gov.uk/id/local-authority/00EU,Neighbourhood & Community Services,NCS,Care Purchase - OP & OT West,54470,CP-Nursing Care-External,441200,02-Nov-12,1900102826,"1,520.00",Barchester Homes Ltd,105246
WARRINGTON BOROUGH COUNCIL,http://statistics.data.gov.uk/id/local-authority/00EU,Neighbourhood & Community Services,NCS,Care Purchase Budget,54490,CP Free Nursing Care External,443500,05-Nov-12,1900102968,"17,245.00",Barchester Homes Ltd,105246
WARRINGTON BOROUGH COUNCIL,http://statistics.data.gov.uk/id/local-authority/00EU,Neighbourhood & Community Services,NCS,Care Purchase - OP & OT West,54470,CP-LongStayExternal,441150,27-Nov-12,1900105253,"1,520.00",Barchester Homes Ltd,105246
WARRINGTON BOROUGH COUNCIL,http://statistics.data.gov.uk/id/local-authority/00EU,Neighbourhood & Community Services,NCS,Care Purchase - Learning Disability,54450,CP-LongStayExternal,441150,13-Nov-12,1900103444,"4,113.00",Wirral Autistic Society,105251
WARRINGTON BOROUGH COUNCIL,http://statistics.data.gov.uk/id/local-authority/00EU,Neighbourhood & Community Services,NCS,Care Purchase - Learning Disability,54450,CP-LongStayExternal,441150,13-Nov-12,1900103474,"4,113.00",Wirral Autistic Society,105251
WARRINGTON BOROUGH COUNCIL,http://statistics.data.gov.uk/id/local-authority/00EU,Neighbourhood & Community Services,NCS,Care Purchase - Learning Disability,54450,CP-LongStayExternal,441150,21-Nov-12,1900104894,"4,113.00",Wirral Autistic Society,105251
WARRINGTON BOROUGH COUNCIL,http://statistics.data.gov.uk/id/local-authority/00EU,Environment & Regeneration,ER0,Printing & Graphics,23040,Equipment Purchase & Contract,400000,16-Nov-12,1900104234,"6,099.00",Xerox Finance,105255
WARRINGTON BOROUGH COUNCIL,http://statistics.data.gov.uk/id/local-authority/00EU,Environment & Regeneration,ER0,Printing & Graphics,23040,Equipment Purchase & Contract,400000,19-Nov-12,1900104300,"1,828.00",Xerox Finance,105255
WARRINGTON BOROUGH COUNCIL,http://statistics.data.gov.uk/id/local-authority/00EU,Environment & Regeneration,ER0,Printing & Graphics,23040,Equipment Purchase & Contract,400000,19-Nov-12,1900104302,"4,441.00",Xerox Finance,105255
WARRINGTON BOROUGH COUNCIL,http://statistics.data.gov.uk/id/local-authority/00EU,Holding Accounts,HOL,Insurance Fund,91100,Insurance Claims,443400,26-Nov-12,1900105235,"2,281.00",Zurich Insurance Company,105263
WARRINGTON BOROUGH COUNCIL,http://statistics.data.gov.uk/id/local-authority/00EU,Neighbourhood & Community Services,NCS,Care Purchase -OP & OT East,54430,CP-Domicil.External,440950,07-Nov-12,1900103109,802,Castlerock Care Services,105279
WARRINGTON BOROUGH COUNCIL,http://statistics.data.gov.uk/id/local-authority/00EU,Neighbourhood & Community Services,NCS,Care Purchase - PD,54440,CP-Domicil.External,440950,07-Nov-12,1900103109,854,Castlerock Care Services,105279
WARRINGTON BOROUGH COUNCIL,http://statistics.data.gov.uk/id/local-authority/00EU,Neighbourhood & Community Services,NCS,Care Purchase - OP & OT South,54480,CP-Domicil.External,440950,07-Nov-12,1900103109,"1,594.00",Castlerock Care Services,105279
WARRINGTON BOROUGH COUNCIL,http://statistics.data.gov.uk/id/local-authority/00EU,Neighbourhood & Community Services,NCS,Care Purchase - OP & OT Central,54420,CP-Domicil.External,440950,07-Nov-12,1900103109,"2,160.00",Castlerock Care Services,105279
WARRINGTON BOROUGH COUNCIL,http://statistics.data.gov.uk/id/local-authority/00EU,Neighbourhood & Community Services,NCS,Care Purchase - PD,54440,CP-Domicil.External,440950,07-Nov-12,1900103111,796,Castlerock Care Services,105279
WARRINGTON BOROUGH COUNCIL,http://statistics.data.gov.uk/id/local-authority/00EU,Neighbourhood & Community Services,NCS,Care Purchase -OP & OT East,54430,CP-Domicil.External,440950,07-Nov-12,1900103111,904,Castlerock Care Services,105279
WARRINGTON BOROUGH COUNCIL,http://statistics.data.gov.uk/id/local-authority/00EU,Neighbourhood & Community Services,NCS,Care Purchase - OP & OT South,54480,CP-Domicil.External,440950,07-Nov-12,1900103111,"1,898.00",Castlerock Care Services,105279
WARRINGTON BOROUGH COUNCIL,http://statistics.data.gov.uk/id/local-authority/00EU,Neighbourhood & Community Services,NCS,Care Purchase - OP & OT Central,54420,CP-Domicil.External,440950,07-Nov-12,1900103111,"2,204.00",Castlerock Care Services,105279
WARRINGTON BOROUGH COUNCIL,http://statistics.data.gov.uk/id/local-authority/00EU,Neighbourhood & Community Services,NCS,Care Purchase - PD,54440,CP-Domicil.External,440950,07-Nov-12,1900103112,803,Castlerock Care Services,105279
WARRINGTON BOROUGH COUNCIL,http://statistics.data.gov.uk/id/local-authority/00EU,Neighbourhood & Community Services,NCS,Care Purchase -OP & OT East,54430,CP-Domicil.External,440950,07-Nov-12,1900103112,911,Castlerock Care Services,105279
WARRINGTON BOROUGH COUNCIL,http://statistics.data.gov.uk/id/local-authority/00EU,Neighbourhood & Community Services,NCS,Care Purchase - OP & OT South,54480,CP-Domicil.External,440950,07-Nov-12,1900103112,"1,820.00",Castlerock Care Services,105279
WARRINGTON BOROUGH COUNCIL,http://statistics.data.gov.uk/id/local-authority/00EU,Neighbourhood & Community Services,NCS,Care Purchase - OP & OT Central,54420,CP-Domicil.External,440950,07-Nov-12,1900103112,"2,343.00",Castlerock Care Services,105279
WARRINGTON BOROUGH COUNCIL,http://statistics.data.gov.uk/id/local-authority/00EU,Neighbourhood & Community Services,NCS,Care Purchase -OP & OT East,54430,CP-Domicil.External,440950,07-Nov-12,1900103113,801,Castlerock Care Services,105279
WARRINGTON BOROUGH COUNCIL,http://statistics.data.gov.uk/id/local-authority/00EU,Neighbourhood & Community Services,NCS,Care Purchase - PD,54440,CP-Domicil.External,440950,07-Nov-12,1900103113,823,Castlerock Care Services,105279
WARRINGTON BOROUGH COUNCIL,http://statistics.data.gov.uk/id/local-authority/00EU,Neighbourhood & Community Services,NCS,Care Purchase - OP & OT South,54480,CP-Domicil.External,440950,07-Nov-12,1900103113,"1,845.00",Castlerock Care Services,105279
WARRINGTON BOROUGH COUNCIL,http://statistics.data.gov.uk/id/local-authority/00EU,Neighbourhood & Community Services,NCS,Care Purchase - OP & OT Central,54420,CP-Domicil.External,440950,07-Nov-12,1900103113,"2,322.00",Castlerock Care Services,105279
WARRINGTON BOROUGH COUNCIL,http://statistics.data.gov.uk/id/local-authority/00EU,Assistant Chief Executive,CEX,Coroners Service,11100,Analysts Fees,440300,05-Nov-12,1900102943,"2,016.00",Roar Forensics Ltd,105295
WARRINGTON BOROUGH COUNCIL,http://statistics.data.gov.uk/id/local-authority/00EU,Assistant Chief Executive,CEX,Coroners Service,11100,Analysts Fees,440300,07-Nov-12,1900103105,"1,584.00",Roar Forensics Ltd,105295
WARRINGTON BOROUGH COUNCIL,http://statistics.data.gov.uk/id/local-authority/00EU,Assistant Chief Executive,CEX,Coroners Service,11100,Analysts Fees,440300,20-Nov-12,1900104374,891,Roar Forensics Ltd,105295
WARRINGTON BOROUGH COUNCIL,http://statistics.data.gov.uk/id/local-authority/00EU,Assistant Chief Executive,CEX,Coroners Service,11100,Analysts Fees,440300,26-Nov-12,1900105155,756,Roar Forensics Ltd,105295
WARRINGTON BOROUGH COUNCIL,http://statistics.data.gov.uk/id/local-authority/00EU,Assistant Chief Executive,CEX,Coroners Service,11100,Analysts Fees,440300,30-Nov-12,1900105497,891,Roar Forensics Ltd,105295
WARRINGTON BOROUGH COUNCIL,http://statistics.data.gov.uk/id/local-authority/00EU,Assistant Chief Executive,CEX,Coroners Service,11100,Analysts Fees,440300,30-Nov-12,1900105501,"1,984.00",Roar Forensics Ltd,105295
WARRINGTON BOROUGH COUNCIL,http://statistics.data.gov.uk/id/local-authority/00EU,Neighbourhood & Community Services,NCS,The Recreation Centre,51008,Equipment Purchase & Contract,400000,02-Nov-12,1900102846,"2,042.00",Continental Sports Ltd,105338
WARRINGTON BOROUGH COUNCIL,http://statistics.data.gov.uk/id/local-authority/00EU,Environment & Regeneration,ENO,Housing Projects,82008,Disabled Persons Grant 1996,554000,21-Nov-12,1900104958,"1,422.00",Crest Environmental Ltd,105340
WARRINGTON BOROUGH COUNCIL,http://statistics.data.gov.uk/id/local-authority/00EU,Children & Young People,CYP,Childrens & Young People,81000,Works Contract Paymt,442500,09-Nov-12,1900103277,"3,000.00",Cruden Construction Ltd,105341
WARRINGTON BOROUGH COUNCIL,http://statistics.data.gov.uk/id/local-authority/00EU,Environment & Regeneration,ER0,Or Rm C'way & F'way,44260,M.C.R.Flexible Cat1,530850,08-Nov-12,1900103232,"14,539.00",Dowhigh Ltd,105350
WARRINGTON BOROUGH COUNCIL,http://statistics.data.gov.uk/id/local-authority/00EU,Environment & Regeneration,ENO,Highways LTP,82004,Works Contract Paymt,442500,13-Nov-12,1900103523,"2,018.00",Enterprise Aol Ltd H2,105353
WARRINGTON BOROUGH COUNCIL,http://statistics.data.gov.uk/id/local-authority/00EU,Environment & Regeneration,ER0,Safety Cameras,44360,"Campaigns,  Projects and Events",491950,13-Nov-12,1900103523,"2,874.00",Enterprise Aol Ltd H2,105353
WARRINGTON BOROUGH COUNCIL,http://statistics.data.gov.uk/id/local-authority/00EU,Environment & Regeneration,ER0,Or Rm C'way & F'way,44260,Environmental Works,531050,30-Nov-12,1900105524,"5,006.00",Enterprise Aol Ltd H2,105353
WARRINGTON BOROUGH COUNCIL,http://statistics.data.gov.uk/id/local-authority/00EU,Children & Young People,CYP,Primary,81001,Equipment Purchase & Contract,400000,26-Nov-12,1900105212,550,Glasdon Uk Ltd,105365
WARRINGTON BOROUGH COUNCIL,http://statistics.data.gov.uk/id/local-authority/00EU,Environment & Regeneration,ENO,Housing Projects,82008,Disabled Persons Grant 1996,554000,15-Nov-12,1900104159,"5,231.00",Independent Lifestyles Northwest Lt,105371
WARRINGTON BOROUGH COUNCIL,http://statistics.data.gov.uk/id/local-authority/00EU,Environment & Regeneration,ENO,Housing Projects,82008,Disabled Persons Grant 1996,554000,13-Nov-12,1900103513,"2,156.00",ThyssenKrupp Encasa Ltd,105382
WARRINGTON BOROUGH COUNCIL,http://statistics.data.gov.uk/id/local-authority/00EU,Environment & Regeneration,ENO,Housing Projects,82008,Disabled Persons Grant 1996,554000,19-Nov-12,1900104313,"9,424.00",Mint Northwest Ltd,105390
WARRINGTON BOROUGH COUNCIL,http://statistics.data.gov.uk/id/local-authority/00EU,Environment & Regeneration,ENO,Housing Projects,82008,Disabled Persons Grant 1996,554000,28-Nov-12,1900105409,"3,030.00",Mint Northwest Ltd,105390
WARRINGTON BOROUGH COUNCIL,http://statistics.data.gov.uk/id/local-authority/00EU,Children & Young People,CYP,Childrens Other,81004,Contract Works,492550,27-Nov-12,1900105245,"14,362.00",Maple Leaf Designs,105480
WARRINGTON BOROUGH COUNCIL,http://statistics.data.gov.uk/id/local-authority/00EU,Children & Young People,CYP,Childrens Other,81004,Contract Works,492550,27-Nov-12,1900105246,"15,309.00",Maple Leaf Designs,105480
WARRINGTON BOROUGH COUNCIL,http://statistics.data.gov.uk/id/local-authority/00EU,Assistant Chief Executive,CEX,Electoral Registration,11500,External Printing,430100,05-Nov-12,1900102947,"9,362.00",Print Image Network Limited,105535
WARRINGTON BOROUGH COUNCIL,http://statistics.data.gov.uk/id/local-authority/00EU,Assistant Chief Executive,CEX,Police and Crime Commissioner Election,11640,External Printing,430100,22-Nov-12,1900105026,"5,733.00",Print Image Network Limited,105535
WARRINGTON BOROUGH COUNCIL,http://statistics.data.gov.uk/id/local-authority/00EU,Assistant Chief Executive,CEX,Police and Crime Commissioner Election,11640,External Printing,430100,29-Nov-12,1900105455,778,Print Image Network Limited,105535
WARRINGTON BOROUGH COUNCIL,http://statistics.data.gov.uk/id/local-authority/00EU,Assistant Chief Executive,CEX,Police and Crime Commissioner Election,11640,External Printing,430100,29-Nov-12,1900105456,590,Print Image Network Limited,105535
WARRINGTON BOROUGH COUNCIL,http://statistics.data.gov.uk/id/local-authority/00EU,Environment & Regeneration,ENO,Housing Projects,82008,Disabled Persons Grant 1996,554000,12-Nov-12,1900103397,"6,345.00",Acorn Building Projects Ltd,105557
WARRINGTON BOROUGH COUNCIL,http://statistics.data.gov.uk/id/local-authority/00EU,Environment & Regeneration,ENO,Housing Projects,82008,Disabled Persons Grant 1996,554000,15-Nov-12,1900104158,"12,500.00",Acorn Building Projects Ltd,105557
WARRINGTON BOROUGH COUNCIL,http://statistics.data.gov.uk/id/local-authority/00EU,Neighbourhood & Community Services,NCS,Care Purchase - Learning Disability,54450,Direct Payments,552000,13-Nov-12,1900103777,"1,240.00",Redacted Personal Data,105576
WARRINGTON BOROUGH COUNCIL,http://statistics.data.gov.uk/id/local-authority/00EU,Neighbourhood & Community Services,NCS,Care Purchase - Learning Disability,54450,Direct Payments,552000,13-Nov-12,1900103779,538,Redacted Personal Data,105598
WARRINGTON BOROUGH COUNCIL,http://statistics.data.gov.uk/id/local-authority/00EU,Neighbourhood & Community Services,NCS,Care Purchase - Learning Disability,54450,Direct Payments,552000,13-Nov-12,1900103781,"1,010.00",Redacted Personal Data,105621
WARRINGTON BOROUGH COUNCIL,http://statistics.data.gov.uk/id/local-authority/00EU,Neighbourhood & Community Services,NCS,Care Purchase - Learning Disability,54450,Direct Payments,552000,13-Nov-12,1900103785,638,Redacted Personal Data,105625
WARRINGTON BOROUGH COUNCIL,http://statistics.data.gov.uk/id/local-authority/00EU,Neighbourhood & Community Services,NCS,Care Purchase - Learning Disability,54450,Direct Payments,552000,13-Nov-12,1900103791,669,Redacted Personal Data,105641
WARRINGTON BOROUGH COUNCIL,http://statistics.data.gov.uk/id/local-authority/00EU,Holding Accounts,HOL,Single Billing Holding Account,91130,Specific Work,200200,14-Nov-12,1900104128,"54,439.00",Manchester Working Limited,105646
WARRINGTON BOROUGH COUNCIL,http://statistics.data.gov.uk/id/local-authority/00EU,Environment & Regeneration,ER0,"Sandy Lane Depot, 6 Sandy Lane",45086,Response Maintenance,200000,14-Nov-12,1900104133,583,Manchester Working Limited,105646
WARRINGTON BOROUGH COUNCIL,http://statistics.data.gov.uk/id/local-authority/00EU,Assistant Chief Executive,CEX,Civic,11440,Non BMP General Repairs,200050,16-Nov-12,1900104248,588,Manchester Working Limited,105646
WARRINGTON BOROUGH COUNCIL,http://statistics.data.gov.uk/id/local-authority/00EU,Neighbourhood & Community Services,NCS,Houghton Hall Intermediate Care,54770,Non BMP General Repairs,200050,16-Nov-12,1900104248,"1,961.00",Manchester Working Limited,105646
WARRINGTON BOROUGH COUNCIL,http://statistics.data.gov.uk/id/local-authority/00EU,Environment & Regeneration,ER0,New Town House,43119,Non BMP General Repairs,200050,16-Nov-12,1900104285,"1,792.00",Manchester Working Limited,105646
WARRINGTON BOROUGH COUNCIL,http://statistics.data.gov.uk/id/local-authority/00EU,Holding Accounts,HOL,Single Billing Holding Account,91130,Specific Work,200200,20-Nov-12,1900104364,"18,887.00",Manchester Working Limited,105646
WARRINGTON BOROUGH COUNCIL,http://statistics.data.gov.uk/id/local-authority/00EU,Holding Accounts,HOL,Single Billing Holding Account,91130,Specific Work,200200,20-Nov-12,1900104365,"4,942.00",Manchester Working Limited,105646
WARRINGTON BOROUGH COUNCIL,http://statistics.data.gov.uk/id/local-authority/00EU,Neighbourhood & Community Services,NCS,Care Purchase - PD,54440,Direct Payments,552000,13-Nov-12,1900103792,784,Redacted Personal Data,105665
WARRINGTON BOROUGH COUNCIL,http://statistics.data.gov.uk/id/local-authority/00EU,Neighbourhood & Community Services,NCS,Care Purchase - OP & OT Central,54420,Direct Payments,552000,13-Nov-12,1900103793,693,Redacted Personal Data,105666
WARRINGTON BOROUGH COUNCIL,http://statistics.data.gov.uk/id/local-authority/00EU,Neighbourhood & Community Services,NCS,Care Purchase - OP & OT South,54480,Direct Payments,552000,13-Nov-12,1900103799,"3,141.00",Redacted Personal Data,105687
WARRINGTON BOROUGH COUNCIL,http://statistics.data.gov.uk/id/local-authority/00EU,Children & Young People,CHL,DSG Early Years PVI Settings,32417,Private & Voluntary 3 Year Olds,470100,14-Nov-12,1900103591,"1,111.00",Kids Planet Warrington,105710
WARRINGTON BOROUGH COUNCIL,http://statistics.data.gov.uk/id/local-authority/00EU,Children & Young People,CHL,EIG Funding - 2 Year Old,31601,Payment of Grants,470050,14-Nov-12,1900103591,"2,485.00",Kids Planet Warrington,105710
WARRINGTON BOROUGH COUNCIL,http://statistics.data.gov.uk/id/local-authority/00EU,Children & Young People,CHL,DSG Early Years PVI Settings,32417,Private & Voluntary 3 Year Olds,470100,14-Nov-12,1900104084,"1,500.00",Kids Planet Warrington,105710
WARRINGTON BOROUGH COUNCIL,http://statistics.data.gov.uk/id/local-authority/00EU,Children & Young People,CHL,DSG Early Years PVI Settings,32417,Private & Voluntary 3 Year Olds,470100,14-Nov-12,1900104085,"1,000.00",Kids Planet Warrington,105710
WARRINGTON BOROUGH COUNCIL,http://statistics.data.gov.uk/id/local-authority/00EU,Neighbourhood & Community Services,NCS,Care Purchase - PD,54440,Direct Payments,552000,13-Nov-12,1900103801,"2,912.00",Redacted Personal Data,105727
WARRINGTON BOROUGH COUNCIL,http://statistics.data.gov.uk/id/local-authority/00EU,Neighbourhood & Community Services,NCS,Care Purchase - OP & OT South,54480,Direct Payments,552000,13-Nov-12,1900103803,964,Redacted Personal Data,105729
WARRINGTON BOROUGH COUNCIL,http://statistics.data.gov.uk/id/local-authority/00EU,Neighbourhood & Community Services,NCS,Spencer House,53280,ICT Comms - Line Rental,450200,15-Nov-12,1900104196,"3,000.00",CareConcepts (Appleton) Ltd,105804
WARRINGTON BOROUGH COUNCIL,http://statistics.data.gov.uk/id/local-authority/00EU,Neighbourhood & Community Services,NCS,Spencer House,53280,ICT Comms - Line Purchase,450150,15-Nov-12,1900104201,"1,000.00",CareConcepts (Appleton) Ltd,105804
WARRINGTON BOROUGH COUNCIL,http://statistics.data.gov.uk/id/local-authority/00EU,Neighbourhood & Community Services,NCS,Care Purchase - OP & OT Central,54420,CP-Day Care-External,441100,27-Nov-12,1900105252,"1,889.00",CareConcepts (Appleton) Ltd,105804
WARRINGTON BOROUGH COUNCIL,http://statistics.data.gov.uk/id/local-authority/00EU,Neighbourhood & Community Services,NCS,Care Purchase - OP & OT West,54470,CP-Day Care-External,441100,27-Nov-12,1900105252,"2,692.00",CareConcepts (Appleton) Ltd,105804
WARRINGTON BOROUGH COUNCIL,http://statistics.data.gov.uk/id/local-authority/00EU,Neighbourhood & Community Services,NCS,Care Purchase Budget,54490,Voids,515150,27-Nov-12,1900105252,"3,187.00",CareConcepts (Appleton) Ltd,105804
WARRINGTON BOROUGH COUNCIL,http://statistics.data.gov.uk/id/local-authority/00EU,Neighbourhood & Community Services,NCS,Care Purchase - OP & OT South,54480,CP-Day Care-External,441100,27-Nov-12,1900105252,"4,300.00",CareConcepts (Appleton) Ltd,105804
WARRINGTON BOROUGH COUNCIL,http://statistics.data.gov.uk/id/local-authority/00EU,Neighbourhood & Community Services,NCS,Care Purchase -OP & OT East,54430,CP-Day Care-External,441100,27-Nov-12,1900105252,"7,533.00",CareConcepts (Appleton) Ltd,105804
WARRINGTON BOROUGH COUNCIL,http://statistics.data.gov.uk/id/local-authority/00EU,Neighbourhood & Community Services,NCS,Care Purchase - IC,54290,CP - Intermediate Care - External,441300,27-Nov-12,1900105287,"35,202.00",CareConcepts (Appleton) Ltd,105804
WARRINGTON BOROUGH COUNCIL,http://statistics.data.gov.uk/id/local-authority/00EU,Environment & Regeneration,ENO,Housing Projects,82008,Disabled Persons Grant 1996,554000,19-Nov-12,1900104316,"4,726.00",Handicare,105805
WARRINGTON BOROUGH COUNCIL,http://statistics.data.gov.uk/id/local-authority/00EU,Neighbourhood & Community Services,NCS,NHMF Lottery,51171,Equipment Purchase & Contract,400000,21-Nov-12,1900104966,"2,108.00",Buttressfulleralsopwilliams,105828
WARRINGTON BOROUGH COUNCIL,http://statistics.data.gov.uk/id/local-authority/00EU,Children & Young People,CYP,Childrens Other,81004,Furniture & Fittings,400150,14-Nov-12,1900104125,560,Foundation Furniture Ltd,105839
WARRINGTON BOROUGH COUNCIL,http://statistics.data.gov.uk/id/local-authority/00EU,Neighbourhood & Community Services,NCS,Care Purchase - OP & OT Central,54420,Direct Payments,552000,13-Nov-12,1900103805,576,Redacted Personal Data,105861
WARRINGTON BOROUGH COUNCIL,http://statistics.data.gov.uk/id/local-authority/00EU,Neighbourhood & Community Services,NCS,Care Purchase - PD,54440,Direct Payments,552000,13-Nov-12,1900103807,"1,273.00",Redacted Personal Data,105909
WARRINGTON BOROUGH COUNCIL,http://statistics.data.gov.uk/id/local-authority/00EU,Assistant Chief Executive,CEX,Coroners Service,11100,Post Mortem Fees-Rep,440250,20-Nov-12,1900104858,"5,238.00",Dr Suboda M Weerasinghe,105924
WARRINGTON BOROUGH COUNCIL,http://statistics.data.gov.uk/id/local-authority/00EU,Neighbourhood & Community Services,NCS,Care Purchase - Learning Disability,54450,Direct Payments,552000,13-Nov-12,1900103809,637,Redacted Personal Data,106066
WARRINGTON BOROUGH COUNCIL,http://statistics.data.gov.uk/id/local-authority/00EU,Neighbourhood & Community Services,NCS,Intermediate Care at Home,54520,Car Leasing Charges,350000,08-Nov-12,1900103231,565,Alphabet UK Fleet Management,106080
WARRINGTON BOROUGH COUNCIL,http://statistics.data.gov.uk/id/local-authority/00EU,Assistant Chief Executive,CEX,Legal Services,11200,Car Leasing Charges,350000,09-Nov-12,1900103289,524,Alphabet UK Fleet Management,106080
WARRINGTON BOROUGH COUNCIL,http://statistics.data.gov.uk/id/local-authority/00EU,Assistant Chief Executive,CEX,Legal Services,11200,Car Leasing Charges,350000,09-Nov-12,1900103289,"2,426.00",Alphabet UK Fleet Management,106080
WARRINGTON BOROUGH COUNCIL,http://statistics.data.gov.uk/id/local-authority/00EU,Children & Young People,CHL,Safeguarding Support,31200,Car Leasing Charges,350000,09-Nov-12,1900103290,"2,634.00",Alphabet UK Fleet Management,106080
WARRINGTON BOROUGH COUNCIL,http://statistics.data.gov.uk/id/local-authority/00EU,Environment & Regeneration,ER0,Estates & Valuation,43520,Car Leasing Charges,350000,09-Nov-12,1900103292,"2,379.00",Alphabet UK Fleet Management,106080
WARRINGTON BOROUGH COUNCIL,http://statistics.data.gov.uk/id/local-authority/00EU,Children & Young People,CHL,Effective Practice,33300,Car Leasing Charges,350000,09-Nov-12,1900103294,595,Alphabet UK Fleet Management,106080
WARRINGTON BOROUGH COUNCIL,http://statistics.data.gov.uk/id/local-authority/00EU,Children & Young People,CHL,Effective Practice,33300,Car Leasing Charges,350000,09-Nov-12,1900103294,"2,820.00",Alphabet UK Fleet Management,106080
WARRINGTON BOROUGH COUNCIL,http://statistics.data.gov.uk/id/local-authority/00EU,Neighbourhood & Community Services,NCS,Care Purchase - PD,54440,Direct Payments,552000,13-Nov-12,1900103812,634,Redacted Personal Data,106145
WARRINGTON BOROUGH COUNCIL,http://statistics.data.gov.uk/id/local-authority/00EU,Assistant Chief Executive,CEX,Police and Crime Commissioner Election,11640,Equipment Purchase & Contract,400000,22-Nov-12,1900105042,822,Pakflatt (UK) Limited,106175
WARRINGTON BOROUGH COUNCIL,http://statistics.data.gov.uk/id/local-authority/00EU,Neighbourhood & Community Services,NCS,Care Purchase - Learning Disability,54450,CP-Domicil.External,440950,27-Nov-12,1900105258,"2,420.00",G-Map Services,106244
WARRINGTON BOROUGH COUNCIL,http://statistics.data.gov.uk/id/local-authority/00EU,Neighbourhood & Community Services,NCS,Care Purchase -OP & OT East,54430,CP-LongStayExternal,441150,01-Nov-12,1900102766,"2,059.00",Eton House Residential Home,106252
WARRINGTON BOROUGH COUNCIL,http://statistics.data.gov.uk/id/local-authority/00EU,Neighbourhood & Community Services,NCS,Care Purchase -OP & OT East,54430,CP-LongStayExternal,441150,27-Nov-12,1900105257,"1,993.00",Eton House Residential Home,106252
WARRINGTON BOROUGH COUNCIL,http://statistics.data.gov.uk/id/local-authority/00EU,Neighbourhood & Community Services,NCS,Care Purchase - OP & OT West,54470,Direct Payments,552000,13-Nov-12,1900103814,546,Redacted Personal Data,106258
WARRINGTON BOROUGH COUNCIL,http://statistics.data.gov.uk/id/local-authority/00EU,Children & Young People,CHL,DSG Early Years PVI Settings,32417,Private & Voluntary 3 Year Olds,470100,14-Nov-12,1900104073,"1,500.00",Cheshire Day Nursery Guardian St,106265
WARRINGTON BOROUGH COUNCIL,http://statistics.data.gov.uk/id/local-authority/00EU,Environment & Regeneration,ENP,Environment & Regeneration,82000,Consult.& Prof. Serv,440000,06-Nov-12,1900103053,"1,229.00",Ross Quality Control Limited,106280
WARRINGTON BOROUGH COUNCIL,http://statistics.data.gov.uk/id/local-authority/00EU,Neighbourhood & Community Services,NCS,Care Purchase - OP & OT South,54480,Direct Payments,552000,06-Nov-12,1900103078,901,Redacted Personal Data,106294
WARRINGTON BOROUGH COUNCIL,http://statistics.data.gov.uk/id/local-authority/00EU,Neighbourhood & Community Services,NCS,Care Purchase - OP & OT South,54480,Direct Payments,552000,13-Nov-12,1900103815,"1,395.00",Redacted Personal Data,106294
WARRINGTON BOROUGH COUNCIL,http://statistics.data.gov.uk/id/local-authority/00EU,Children & Young People,CYP,Primary,81001,ICT Comms - Equipment Purchase,450100,15-Nov-12,1900104165,"3,716.00",MGL,106315
WARRINGTON BOROUGH COUNCIL,http://statistics.data.gov.uk/id/local-authority/00EU,Children & Young People,CYP,Primary,81001,ICT Comms - Equipment Purchase,450100,15-Nov-12,1900104167,"2,499.00",MGL,106315
WARRINGTON BOROUGH COUNCIL,http://statistics.data.gov.uk/id/local-authority/00EU,Children & Young People,CYP,Childrens Other,81004,ICT Comms - Equipment Purchase,450100,23-Nov-12,1900105122,"3,698.00",MGL,106315
WARRINGTON BOROUGH COUNCIL,http://statistics.data.gov.uk/id/local-authority/00EU,Children & Young People,CYP,Primary,81001,Contract Works,492550,15-Nov-12,1900104160,992,Duncan Ross Ltd,106355
WARRINGTON BOROUGH COUNCIL,http://statistics.data.gov.uk/id/local-authority/00EU,Neighbourhood & Community Services,NCS,Care Purchase - OP & OT West,54470,Direct Payments,552000,13-Nov-12,1900103817,706,Redacted Personal Data,106441
WARRINGTON BOROUGH COUNCIL,http://statistics.data.gov.uk/id/local-authority/00EU,Environment & Regeneration,ER0,Finance Office Services,42110,ICT Comms - Device Maintenance,450450,30-Nov-12,1900105541,"1,505.00",BSI - British Standards,106453
WARRINGTON BOROUGH COUNCIL,http://statistics.data.gov.uk/id/local-authority/00EU,Children & Young People,CYP,Primary,81001,Contract Works,492550,12-Nov-12,1900103393,"6,335.00",P D Sutcliffe Building Contractors,106462
WARRINGTON BOROUGH COUNCIL,http://statistics.data.gov.uk/id/local-authority/00EU,Children & Young People,CYP,Primary,81001,Contract Works,492550,12-Nov-12,1900103410,"23,726.00",P D Sutcliffe Building Contractors,106462
WARRINGTON BOROUGH COUNCIL,http://statistics.data.gov.uk/id/local-authority/00EU,Children & Young People,CYP,Childrens Other,81004,Contract Works,492550,16-Nov-12,1900104235,"3,028.00",P D Sutcliffe Building Contractors,106462
WARRINGTON BOROUGH COUNCIL,http://statistics.data.gov.uk/id/local-authority/00EU,Neighbourhood & Community Services,NCS,Administration,51010,Gen. Personal Needs,490850,23-Nov-12,1900105130,"64,006.00",PriceWaterhouseCoopers LLP,106475
WARRINGTON BOROUGH COUNCIL,http://statistics.data.gov.uk/id/local-authority/00EU,Neighbourhood & Community Services,NCS,Care Purchase - OP & OT South,54480,Direct Payments,552000,13-Nov-12,1900103822,666,Redacted Personal Data,106603
WARRINGTON BOROUGH COUNCIL,http://statistics.data.gov.uk/id/local-authority/00EU,Neighbourhood & Community Services,NCS,Care Purchase - PD,54440,Direct Payments,552000,13-Nov-12,1900103823,855,Redacted Personal Data,106630
WARRINGTON BOROUGH COUNCIL,http://statistics.data.gov.uk/id/local-authority/00EU,Children & Young People,CHL,Child Disability,32212,Direct Payments,552000,13-Nov-12,1900103825,687,Redacted Personal Data,106708
WARRINGTON BOROUGH COUNCIL,http://statistics.data.gov.uk/id/local-authority/00EU,Environment & Regeneration,ER0,ICT & Business Improvement,23020,ICT Comms - Line Rental,450200,02-Nov-12,1900102804,"2,309.00",Virgin Media Business,106824
WARRINGTON BOROUGH COUNCIL,http://statistics.data.gov.uk/id/local-authority/00EU,Environment & Regeneration,ER0,ICT & Business Improvement,23020,ICT Comms - Line Rental,450200,02-Nov-12,1900102812,"1,200.00",Virgin Media Business,106824
WARRINGTON BOROUGH COUNCIL,http://statistics.data.gov.uk/id/local-authority/00EU,Environment & Regeneration,ER0,Schools & Libraries Internet Project,23030,ICT Comms - Line Rental,450200,02-Nov-12,1900102812,"6,000.00",Virgin Media Business,106824
WARRINGTON BOROUGH COUNCIL,http://statistics.data.gov.uk/id/local-authority/00EU,Children & Young People,CHL,Connexions 14-19,32065,ICT Comms - Line Rental,450200,02-Nov-12,1900102812,"7,084.00",Virgin Media Business,106824
WARRINGTON BOROUGH COUNCIL,http://statistics.data.gov.uk/id/local-authority/00EU,Environment & Regeneration,ER0,ICT Centralised Budget,23100,ICT Comms - Line Rental,450200,02-Nov-12,1900102814,761,Virgin Media Business,106824
WARRINGTON BOROUGH COUNCIL,http://statistics.data.gov.uk/id/local-authority/00EU,Environment & Regeneration,ER0,ICT Centralised Budget,23100,ICT Comms - Line Rental,450200,02-Nov-12,1900102815,761,Virgin Media Business,106824
WARRINGTON BOROUGH COUNCIL,http://statistics.data.gov.uk/id/local-authority/00EU,Environment & Regeneration,ER0,ICT & Business Improvement,23020,ICT Comms - Line Rental,450200,02-Nov-12,1900102816,"1,200.00",Virgin Media Business,106824
WARRINGTON BOROUGH COUNCIL,http://statistics.data.gov.uk/id/local-authority/00EU,Environment & Regeneration,ER0,Schools & Libraries Internet Project,23030,ICT Comms - Line Rental,450200,02-Nov-12,1900102816,"1,200.00",Virgin Media Business,106824
WARRINGTON BOROUGH COUNCIL,http://statistics.data.gov.uk/id/local-authority/00EU,Environment & Regeneration,ER0,ICT & Business Improvement,23020,ICT Comms - Line Rental,450200,02-Nov-12,1900102821,"1,680.00",Virgin Media Business,106824
WARRINGTON BOROUGH COUNCIL,http://statistics.data.gov.uk/id/local-authority/00EU,Environment & Regeneration,ER0,ICT & Business Improvement,23020,ICT Comms - Line Rental,450200,02-Nov-12,1900102822,"1,680.00",Virgin Media Business,106824
WARRINGTON BOROUGH COUNCIL,http://statistics.data.gov.uk/id/local-authority/00EU,Environment & Regeneration,ER0,Schools & Libraries Internet Project,23030,ICT Comms - Line Rental,450200,02-Nov-12,1900102822,"1,680.00",Virgin Media Business,106824
WARRINGTON BOROUGH COUNCIL,http://statistics.data.gov.uk/id/local-authority/00EU,Environment & Regeneration,ER0,Schools & Libraries Internet Project,23030,ICT Comms - Line Rental,450200,02-Nov-12,1900102823,"5,735.00",Virgin Media Business,106824
WARRINGTON BOROUGH COUNCIL,http://statistics.data.gov.uk/id/local-authority/00EU,Environment & Regeneration,ER0,Schools & Libraries Internet Project,23030,ICT Comms - Line Rental,450200,15-Nov-12,1900104184,"1,966.00",Virgin Media Business,106824
WARRINGTON BOROUGH COUNCIL,http://statistics.data.gov.uk/id/local-authority/00EU,Neighbourhood & Community Services,NCS,Orford Day Centre,51243,ICT Comms - Line Rental,450200,15-Nov-12,1900104184,"1,966.00",Virgin Media Business,106824
WARRINGTON BOROUGH COUNCIL,http://statistics.data.gov.uk/id/local-authority/00EU,Children & Young People,CHL,Ross Close,31102,ICT Comms - Line Rental,450200,15-Nov-12,1900104184,"2,050.00",Virgin Media Business,106824
WARRINGTON BOROUGH COUNCIL,http://statistics.data.gov.uk/id/local-authority/00EU,Environment & Regeneration,ER0,ICT & Business Improvement,23020,ICT Comms - Line Rental,450200,15-Nov-12,1900104184,"28,283.00",Virgin Media Business,106824
WARRINGTON BOROUGH COUNCIL,http://statistics.data.gov.uk/id/local-authority/00EU,Environment & Regeneration,ER0,ICT & Business Improvement,23020,ICT Comms - Line Rental,450200,22-Nov-12,1900105007,"6,000.00",Virgin Media Business,106824
WARRINGTON BOROUGH COUNCIL,http://statistics.data.gov.uk/id/local-authority/00EU,Environment & Regeneration,ER0,ICT Centralised Budget,23100,ICT Comms - Line Rental,450200,22-Nov-12,1900105012,761,Virgin Media Business,106824
WARRINGTON BOROUGH COUNCIL,http://statistics.data.gov.uk/id/local-authority/00EU,Environment & Regeneration,ER0,Schools & Libraries Internet Project,23030,ICT Comms - Line Rental,450200,22-Nov-12,1900105015,"1,680.00",Virgin Media Business,106824
WARRINGTON BOROUGH COUNCIL,http://statistics.data.gov.uk/id/local-authority/00EU,Environment & Regeneration,ER0,ICT & Business Improvement,23020,ICT Comms - Line Rental,450200,22-Nov-12,1900105015,"2,680.00",Virgin Media Business,106824
WARRINGTON BOROUGH COUNCIL,http://statistics.data.gov.uk/id/local-authority/00EU,Environment & Regeneration,ER0,Schools & Libraries Internet Project,23030,ICT Comms - Line Rental,450200,22-Nov-12,1900105021,"5,545.00",Virgin Media Business,106824
WARRINGTON BOROUGH COUNCIL,http://statistics.data.gov.uk/id/local-authority/00EU,Children & Young People,CHL,St Werburghs,33206,ICT Comms - Line Rental,450200,22-Nov-12,1900105029,803,Virgin Media Business,106824
WARRINGTON BOROUGH COUNCIL,http://statistics.data.gov.uk/id/local-authority/00EU,Neighbourhood & Community Services,NCS,Care Purchase - Learning Disability,54450,Direct Payments,552000,13-Nov-12,1900103830,668,Redacted Personal Data,106866
WARRINGTON BOROUGH COUNCIL,http://statistics.data.gov.uk/id/local-authority/00EU,Assistant Chief Executive,CEX,Coroners Service,11100,Post Mortem Fees-Rep,440250,20-Nov-12,1900104348,"2,964.00",Dr Debdeep Dey,106869
WARRINGTON BOROUGH COUNCIL,http://statistics.data.gov.uk/id/local-authority/00EU,Children & Young People,CHL,Agency Placements,30904,CP ExternalOther Exp,440800,05-Nov-12,1900102945,"9,156.00",Penarth Group Kamina House,106915
WARRINGTON BOROUGH COUNCIL,http://statistics.data.gov.uk/id/local-authority/00EU,Children & Young People,CHL,Agency Placements,30904,CP ExternalOther Exp,440800,05-Nov-12,1900102946,"9,156.00",Penarth Group Kamina House,106915
WARRINGTON BOROUGH COUNCIL,http://statistics.data.gov.uk/id/local-authority/00EU,Assistant Chief Executive,CEX,Coroners Service,11100,Consult.& Prof. Serv,440000,07-Nov-12,1900103100,"2,690.00",LGC Ltd,107222
WARRINGTON BOROUGH COUNCIL,http://statistics.data.gov.uk/id/local-authority/00EU,Neighbourhood & Community Services,NCS,Care Purchase - Learning Disability,54450,Direct Payments,552000,13-Nov-12,1900103839,679,Redacted Personal Data,107297
WARRINGTON BOROUGH COUNCIL,http://statistics.data.gov.uk/id/local-authority/00EU,Neighbourhood & Community Services,NCS,Care Purchase - PD,54440,Direct Payments,552000,13-Nov-12,1900103841,733,Redacted Personal Data,107299
WARRINGTON BOROUGH COUNCIL,http://statistics.data.gov.uk/id/local-authority/00EU,Environment & Regeneration,ER0,ICT & Business Improvement,23020,Computer Hardware - Purchase,450700,09-Nov-12,1900103246,"1,351.00",Redacted Personal Data,107340
WARRINGTON BOROUGH COUNCIL,http://statistics.data.gov.uk/id/local-authority/00EU,Neighbourhood & Community Services,NCS,Director of Public Health,55000,Computer Software - Purchase,450800,09-Nov-12,1900103247,991,Redacted Personal Data,107340
WARRINGTON BOROUGH COUNCIL,http://statistics.data.gov.uk/id/local-authority/00EU,Neighbourhood & Community Services,NCS,Care Purchase - PD,54440,Direct Payments,552000,13-Nov-12,1900103842,560,Redacted Personal Data,107363
WARRINGTON BOROUGH COUNCIL,http://statistics.data.gov.uk/id/local-authority/00EU,Children & Young People,CHL,Fostering Team,31105,Agency Supply - GF,180000,13-Nov-12,1900103506,"1,950.00",Redacted Personal Data,107397
WARRINGTON BOROUGH COUNCIL,http://statistics.data.gov.uk/id/local-authority/00EU,Children & Young People,CHL,Fostering Team,31105,Agency Supply - GF,180000,26-Nov-12,1900105137,700,Redacted Personal Data,107397
WARRINGTON BOROUGH COUNCIL,http://statistics.data.gov.uk/id/local-authority/00EU,Neighbourhood & Community Services,NCS,Care Purchase -OP & OT East,54430,Direct Payments,552000,13-Nov-12,1900103844,687,Redacted Personal Data,107436
WARRINGTON BOROUGH COUNCIL,http://statistics.data.gov.uk/id/local-authority/00EU,Neighbourhood & Community Services,NCS,Care Purchase - Learning Disability,54450,Direct Payments,552000,13-Nov-12,1900103845,"1,202.00",Redacted Personal Data,107437
WARRINGTON BOROUGH COUNCIL,http://statistics.data.gov.uk/id/local-authority/00EU,Children & Young People,CHL,Legal Fees - Safeguarding,30100,Legal Costs Incurred,440200,02-Nov-12,1900102830,"1,650.00",Redacted Personal Data,107663
WARRINGTON BOROUGH COUNCIL,http://statistics.data.gov.uk/id/local-authority/00EU,Neighbourhood & Community Services,NCS,Care Purchase - PD,54440,Direct Payments,552000,13-Nov-12,1900103848,"1,019.00",Redacted Personal Data,107665
WARRINGTON BOROUGH COUNCIL,http://statistics.data.gov.uk/id/local-authority/00EU,Neighbourhood & Community Services,NCS,Care Purchase - OP & OT West,54470,Direct Payments,552000,13-Nov-12,1900103849,561,Redacted Personal Data,107667
WARRINGTON BOROUGH COUNCIL,http://statistics.data.gov.uk/id/local-authority/00EU,Children & Young People,CHL,DSG Early Years PVI Settings,32417,Private & Voluntary 3 Year Olds,470100,14-Nov-12,1900104071,"1,500.00",Butterflys Nursery,107718
WARRINGTON BOROUGH COUNCIL,http://statistics.data.gov.uk/id/local-authority/00EU,Neighbourhood & Community Services,NCS,Care Purchase - OP & OT Central,54420,CP-LongStayExternal,441150,21-Nov-12,1900104912,"1,459.00",Haddon Court Rest Home,107727
WARRINGTON BOROUGH COUNCIL,http://statistics.data.gov.uk/id/local-authority/00EU,Children & Young People,CHL,Agency Placements,30904,CP ExternalOther Exp,440800,23-Nov-12,1900105114,"5,357.00",Crossway Services,107762
WARRINGTON BOROUGH COUNCIL,http://statistics.data.gov.uk/id/local-authority/00EU,Neighbourhood & Community Services,NCS,Care Purchase - Mental Health Team 1,54230,Direct Payments,552000,13-Nov-12,1900103856,560,Redacted Personal Data,107791
WARRINGTON BOROUGH COUNCIL,http://statistics.data.gov.uk/id/local-authority/00EU,Neighbourhood & Community Services,NCS,Care Purchase - Learning Disability,54450,CP-Nursing Care-External,441200,21-Nov-12,1900104884,"2,445.00",Thornton Manor,107806
WARRINGTON BOROUGH COUNCIL,http://statistics.data.gov.uk/id/local-authority/00EU,Neighbourhood & Community Services,NCS,Care Purchase - Learning Disability,54450,CP-LongStayExternal,441150,21-Nov-12,1900104885,"2,880.00",Thornton Manor,107806
WARRINGTON BOROUGH COUNCIL,http://statistics.data.gov.uk/id/local-authority/00EU,Environment & Regeneration,ER0,Schools & Libraries Internet Project,23030,ICT Comms - Line Rental,450200,22-Nov-12,1900105002,834,Daisy Communcations Limited,107866
WARRINGTON BOROUGH COUNCIL,http://statistics.data.gov.uk/id/local-authority/00EU,Neighbourhood & Community Services,NCS,Contract Review,54710,Consult.& Prof. Serv,440000,12-Nov-12,1900103377,"3,042.00",Commercial and Clinical Solutions,107895
WARRINGTON BOROUGH COUNCIL,http://statistics.data.gov.uk/id/local-authority/00EU,Neighbourhood & Community Services,NCS,Care Purchase - Learning Disability,54450,CP-LongStayExternal,441150,01-Nov-12,1900102782,"28,770.00",Oliver House Priory,107946
WARRINGTON BOROUGH COUNCIL,http://statistics.data.gov.uk/id/local-authority/00EU,Neighbourhood & Community Services,NCS,Care Purchase - Learning Disability,54450,CP-LongStayExternal,441150,21-Nov-12,1900104901,"19,951.00",Oliver House Priory,107946
